Workbook

Sheet Main
B10: 2021-09-30
B12: Sheet No. | C12: Template Name | D12: Summary
B13: 1 | C13: Future Intra | D13: For Intraday trading in F&O segment
B14: 2 | C14: Cash Intra | D14: For Intraday trading in cash market segment
B15: 3 | C15: Mid-cap Intra | D15: For Intraday trading in Mid-cap stocks
B16: 4 | C16: Bulk Deals | D16: Reveals Bulk Deals carried on NSE & BSE
B17: 5 | C17: Call Tracker
K27: `

Sheet Future Intra
M5: Back to Main Page
A6: FOR INTRA DAY TRADING | L6: =Main!B10 -> 2021-09-30
A9: Sr.no | B9: Sector | C9: Scrip | D9: Expiry Date | E9: CLOSE RATE | F9: Pivot Point | G9: Supports | J9: Resistances
E10: Point | F10: Point | G10: S1 | H10: S2 | I10: S3 | J10: R1 | K10: R2 | L10: R3 | M10: HIGH | N10: LOW | O10: OI | P10: % Change in OI
A11: 1 | B11: Index | C11: BANKNIFTY | D11: 2021-09-30 | E11: 37878.50 | F11: 37773.33 | G11: 37497.82 | H11: 37117.13 | I11: 36841.62 | J11: 38154.02 | K11: 38429.53 | L11: 38810.22 | M11: 38048.85 | N11: 37392.65 | O11: 2248700 | P11: 15.94%
A12: 2 | B12: Index | C12: NIFTY | D12: 2021-09-30 | E12: 17708.00 | F12: 17705.03 | G12: 17616.02 | H12: 17524.03 | I12: 17435.02 | J12: 17797.02 | K12: 17886.03 | L12: 17978.02 | M12: 17794.05 | N12: 17613.05 | O12: 15353100 | P12: 0.18%
A13: 3 | B13: Index | C13: FINNIFTY | D13: 2021-09-30 | E13: 18412.85 | F13: 18393.25 | G13: 18324.60 | H13: 18236.35 | I13: 18167.70 | J13: 18481.50 | K13: 18550.15 | L13: 18638.40 | M13: 18461.9 | N13: 18305 | O13: 3880 | P13: -7.62%
A14: 4 | B14: Chemical | C14: AARTIIND | D14: 2021-09-30 | E14: 938.20 | F14: 931.63 | G14: 920.72 | H14: 903.23 | I14: 892.32 | J14: 949.12 | K14: 960.03 | L14: 977.52 | M14: 942.55 | N14: 914.15 | O14: 3245300 | P14: -1.62%
A15: 5 | B15: Textile | C15: ABFRL | D15: 2021-09-30 | E15: 231.75 | F15: 228.18 | G15: 222.77 | H15: 213.78 | I15: 208.37 | J15: 237.17 | K15: 242.58 | L15: 251.57 | M15: 233.6 | N15: 219.2 | O15: 13527800 | P15: -0.97%
A16: 6 | B16: Cement | C16: ACC | D16: 2021-09-30 | E16: 2274.10 | F16: 2271.15 | G16: 2250.70 | H16: 2227.30 | I16: 2206.85 | J16: 2294.55 | K16: 2315.00 | L16: 2338.40 | M16: 2291.6 | N16: 2247.75 | O16: 3047000 | P16: -1.53%
A17: 7 | B17: Others | C17: ADANIENT | D17: 2021-09-30 | E17: 1487.10 | F17: 1484.02 | G17: 1468.03 | H17: 1448.97 | I17: 1432.98 | J17: 1503.08 | K17: 1519.07 | L17: 1538.13 | M17: 1500 | N17: 1464.95 | O17: 27235000 | P17: -0.81%
A18: 8 | B18: Others | C18: ADANIPORTS | D18: 2021-09-30 | E18: 740.70 | F18: 741.50 | G18: 734.55 | H18: 728.40 | I18: 721.45 | J18: 747.65 | K18: 754.60 | L18: 760.75 | M18: 748.45 | N18: 735.35 | O18: 91231250 | P18: -0.63%
A19: 9 | B19: Pharma | C19: ALKEM | D19: 2021-09-30 | E19: 3946.70 | F19: 3965.45 | G19: 3891.65 | H19: 3836.60 | I19: 3762.80 | J19: 4020.50 | K19: 4094.30 | L19: 4149.35 | M19: 4039.25 | N19: 3910.4 | O19: 393400 | P19: -5.30%
A20: 10 | B20: Automobile | C20: AMARAJABAT | D20: 2021-09-30 | E20: 758.80 | F20: 755.33 | G20: 746.72 | H20: 734.63 | I20: 726.02 | J20: 767.42 | K20: 776.03 | L20: 788.12 | M20: 763.95 | N20: 743.25 | O20: 8832000 | P20: -5.28%
A21: 11 | B21: Cement | C21: AMBUJACEM | D21: 2021-09-30 | E21: 407.80 | F21: 407.07 | G21: 403.48 | H21: 399.17 | I21: 395.58 | J21: 411.38 | K21: 414.97 | L21: 419.28 | M21: 410.65 | N21: 402.75 | O21: 16791000 | P21: 1.71%
A22: 12 | B22: Pharma | C22: APLLTD | D22: 2021-09-30 | E22: 797.00 | F22: 790.47 | G22: 781.13 | H22: 765.27 | I22: 755.93 | J22: 806.33 | K22: 815.67 | L22: 831.53 | M22: 799.8 | N22: 774.6 | O22: 2432650 | P22: -1.95%
A23: 13 | B23: Others | C23: APOLLOHOSP | D23: 2021-09-30 | E23: 4423.50 | F23: 4446.33 | G23: 4388.27 | H23: 4353.03 | I23: 4294.97 | J23: 4481.57 | K23: 4539.63 | L23: 4574.87 | M23: 4504.4 | N23: 4411.1 | O23: 2897250 | P23: -3.32%
A24: 14 | B24: Automobile | C24: APOLLOTYRE | D24: 2021-09-30 | E24: 225.00 | F24: 225.15 | G24: 220.70 | H24: 216.40 | I24: 211.95 | J24: 229.45 | K24: 233.90 | L24: 238.20 | M24: 229.6 | N24: 220.85 | O24: 13522500 | P24: -7.11%
A25: 15 | B25: Automobile | C25: ASHOKLEY | D25: 2021-09-30 | E25: 129.55 | F25: 128.98 | G25: 126.77 | H25: 123.98 | I25: 121.77 | J25: 131.77 | K25: 133.98 | L25: 136.77 | M25: 131.2 | N25: 126.2 | O25: 53887500 | P25: 2.61%
A26: 16 | B26: FMCG | C26: ASIANPAINT | D26: 2021-09-30 | E26: 3321.80 | F26: 3341.17 | G26: 3296.03 | H26: 3270.27 | I26: 3225.13 | J26: 3366.93 | K26: 3412.07 | L26: 3437.83 | M26: 3386.3 | N26: 3315.4 | O26: 4067100 | P26: -5.76%
A27: 17 | B27: Others | C27: ASTRAL | D27: 2021-09-30 | E27: 2139.05 | F27: 2109.33 | G27: 2065.72 | H27: 1992.38 | I27: 1948.77 | J27: 2182.67 | K27: 2226.28 | L27: 2299.62 | M27: 2152.95 | N27: 2036 | O27: 482625 | P27: -7.00%
A28: 18 | B28: Banking | C28: AUBANK | D28: 2021-09-30 | E28: 1163.60 | F28: 1150.77 | G28: 1123.88 | H28: 1084.17 | I28: 1057.28 | J28: 1190.48 | K28: 1217.37 | L28: 1257.08 | M28: 1177.65 | N28: 1111.05 | O28: 5289500 | P28: -18.70%
A29: 19 | B29: Pharma | C29: AUROPHARMA | D29: 2021-09-30 | E29: 729.90 | F29: 728.97 | G29: 719.93 | H29: 709.97 | I29: 700.93 | J29: 738.93 | K29: 747.97 | L29: 757.93 | M29: 738 | N29: 719 | O29: 14937650 | P29: -0.28%
A30: 20 | B30: Banking | C30: AXISBANK | D30: 2021-09-30 | E30: 783.55 | F30: 784.23 | G30: 779.22 | H30: 774.88 | I30: 769.87 | J30: 788.57 | K30: 793.58 | L30: 797.92 | M30: 789.25 | N30: 779.9 | O30: 36078000 | P30: 4.85%
A31: 21 | B31: Automobile | C31: BAJAJ-AUTO | D31: 2021-09-30 | E31: 3901.50 | F31: 3897.68 | G31: 3855.72 | H31: 3809.93 | I31: 3767.97 | J31: 3943.47 | K31: 3985.43 | L31: 4031.22 | M31: 3939.65 | N31: 3851.9 | O31: 3000500 | P31: -2.34%
A32: 22 | B32: Finance | C32: BAJAJFINSV | D32: 2021-09-30 | E32: 17495.75 | F32: 17517.05 | G32: 17337.10 | H32: 17178.45 | I32: 16998.50 | J32: 17675.70 | K32: 17855.65 | L32: 18014.30 | M32: 17697 | N32: 17358.4 | O32: 860925 | P32: 0.66%
A33: 23 | B33: Finance | C33: BAJFINANCE | D33: 2021-09-30 | E33: 7534.70 | F33: 7547.98 | G33: 7452.72 | H33: 7370.73 | I33: 7275.47 | J33: 7629.97 | K33: 7725.23 | L33: 7807.22 | M33: 7643.25 | N33: 7466 | O33: 4401750 | P33: -1.30%
A34: 24 | B34: Automobile | C34: BALKRISIND | D34: 2021-09-30 | E34: 2515.00 | F34: 2529.93 | G34: 2485.17 | H34: 2455.33 | I34: 2410.57 | J34: 2559.77 | K34: 2604.53 | L34: 2634.37 | M34: 2574.7 | N34: 2500.1 | O34: 1887200 | P34: -0.04%
A35: 25 | B35: Banking | C35: BANDHANBNK | D35: 2021-09-30 | E35: 285.50 | F35: 285.18 | G35: 279.87 | H35: 274.23 | I35: 268.92 | J35: 290.82 | K35: 296.13 | L35: 301.77 | M35: 290.5 | N35: 279.55 | O35: 26883000 | P35: -2.15%
A36: 26 | B36: Banking | C36: BANKBARODA | D36: 2021-09-30 | E36: 81.60 | F36: 80.58 | G36: 78.97 | H36: 76.33 | I36: 74.72 | J36: 83.22 | K36: 84.83 | L36: 87.47 | M36: 82.2 | N36: 77.95 | O36: 175581900 | P36: 1.41%
A37: 27 | B37: FMCG | C37: BATAINDIA | D37: 2021-09-30 | E37: 1764.20 | F37: 1762.28 | G37: 1744.62 | H37: 1725.03 | I37: 1707.37 | J37: 1781.87 | K37: 1799.53 | L37: 1819.12 | M37: 1779.95 | N37: 1742.7 | O37: 1909050 | P37: -0.57%
A38: 28 | B38: Capital_Goods | C38: BEL | D38: 2021-09-30 | E38: 205.40 | F38: 207.25 | G38: 202.00 | H38: 198.60 | I38: 193.35 | J38: 210.65 | K38: 215.90 | L38: 219.30 | M38: 212.5 | N38: 203.85 | O38: 26432800 | P38: -1.71%
A39: 29 | B39: FMCG | C39: BERGEPAINT | D39: 2021-09-30 | E39: 817.55 | F39: 815.78 | G39: 811.02 | H39: 804.48 | I39: 799.72 | J39: 822.32 | K39: 827.08 | L39: 833.62 | M39: 820.55 | N39: 809.25 | O39: 4941200 | P39: -3.42%
A40: 30 | B40: Automobile | C40: BHARATFORG | D40: 2021-09-30 | E40: 744.80 | F40: 744.17 | G40: 736.53 | H40: 728.27 | I40: 720.63 | J40: 752.43 | K40: 760.07 | L40: 768.33 | M40: 751.8 | N40: 735.9 | O40: 10641000 | P40: 3.97%
A41: 31 | B41: Telecom | C41: BHARTIARTL | D41: 2021-09-30 | E41: 693.85 | F41: 695.17 | G41: 687.93 | H41: 682.02 | I41: 674.78 | J41: 701.08 | K41: 708.32 | L41: 714.23 | M41: 702.4 | N41: 689.25 | O41: 78804624 | P41: 7.28%
A42: 32 | B42: Capital_Goods | C42: BHEL | D42: 2021-09-30 | E42: 62.80 | F42: 62.40 | G42: 60.70 | H42: 58.60 | I42: 56.90 | J42: 64.50 | K42: 66.20 | L42: 68.30 | M42: 64.1 | N42: 60.3 | O42: 125653500 | P42: 1.42%
A43: 33 | B43: Pharma | C43: BIOCON | D43: 2021-09-30 | E43: 362.95 | F43: 363.20 | G43: 359.75 | H43: 356.55 | I43: 353.10 | J43: 366.40 | K43: 369.85 | L43: 373.05 | M43: 366.65 | N43: 360 | O43: 18103300 | P43: 0.69%
A44: 34 | B44: Automobile | C44: BOSCHLTD | D44: 2021-09-30 | E44: 15670.45 | F44: 15717.65 | G44: 15468.25 | H44: 15266.05 | I44: 15016.65 | J44: 15919.85 | K44: 16169.25 | L44: 16371.45 | M44: 15967.05 | N44: 15515.45 | O44: 157000 | P44: 0.90%
A45: 35 | B45: Oil_Gas | C45: BPCL | D45: 2021-09-30 | E45: 436.40 | F45: 433.28 | G45: 428.97 | H45: 421.53 | I45: 417.22 | J45: 440.72 | K45: 445.03 | L45: 452.47 | M45: 437.6 | N45: 425.85 | O45: 40417200 | P45: -1.14%
A46: 36 | B46: FMCG | C46: BRITANNIA | D46: 2021-09-30 | E46: 3981.85 | F46: 3991.57 | G46: 3953.78 | H46: 3925.72 | I46: 3887.93 | J46: 4019.63 | K46: 4057.42 | L46: 4085.48 | M46: 4029.35 | N46: 3963.5 | O46: 1191600 | P46: -1.55%
A47: 37 | B47: Pharma | C47: CADILAHC | D47: 2021-09-30 | E47: 549.10 | F47: 548.65 | G47: 539.95 | H47: 530.80 | I47: 522.10 | J47: 557.80 | K47: 566.50 | L47: 575.65 | M47: 557.35 | N47: 539.5 | O47: 18471200 | P47: 0.25%
A48: 38 | B48: Banking | C48: CANBK | D48: 2021-09-30 | E48: 168.55 | F48: 167.42 | G48: 162.48 | H48: 156.42 | I48: 151.48 | J48: 173.48 | K48: 178.42 | L48: 184.48 | M48: 172.35 | N48: 161.35 | O48: 77733000 | P48: 8.75%
A49: 39 | B49: Finance | C49: CANFINHOME | D49: 2021-09-30 | E49: 654.35 | F49: 655.43 | G49: 643.52 | H49: 632.68 | I49: 620.77 | J49: 666.27 | K49: 678.18 | L49: 689.02 | M49: 667.35 | N49: 644.6 | O49: 3858075 | P49: 7.29%
A50: 40 | B50: Finance | C50: CHOLAFIN | D50: 2021-09-30 | E50: 572.70 | F50: 564.58 | G50: 552.67 | H50: 532.63 | I50: 520.72 | J50: 584.62 | K50: 596.53 | L50: 616.57 | M50: 576.5 | N50: 544.55 | O50: 11470000 | P50: -4.18%
A51: 41 | B51: Pharma | C51: CIPLA | D51: 2021-09-30 | E51: 984.65 | F51: 985.95 | G51: 965.25 | H51: 945.85 | I51: 925.15 | J51: 1005.35 | K51: 1026.05 | L51: 1045.45 | M51: 1006.65 | N51: 966.55 | O51: 10839400 | P51: -1.07%
A52: 42 | B52: Others | C52: COALINDIA | D52: 2021-09-30 | E52: 185.85 | F52: 184.90 | G52: 174.15 | H52: 162.45 | I52: 151.70 | J52: 196.60 | K52: 207.35 | L52: 219.05 | M52: 195.65 | N52: 173.2 | O52: 64936200 | P52: 0.12%
A53: 43 | B53: Technology | C53: COFORGE | D53: 2021-09-30 | E53: 5272.00 | F53: 5154.82 | G53: 4998.28 | H53: 4724.57 | I53: 4568.03 | J53: 5428.53 | K53: 5585.07 | L53: 5858.78 | M53: 5311.35 | N53: 4881.1 | O53: 880200 | P53: -1.79%
A54: 44 | B54: FMCG | C54: COLPAL | D54: 2021-09-30 | E54: 1678.05 | F54: 1677.28 | G54: 1669.87 | H54: 1661.68 | I54: 1654.27 | J54: 1685.47 | K54: 1692.88 | L54: 1701.07 | M54: 1684.7 | N54: 1669.1 | O54: 3229800 | P54: -2.97%
A55: 45 | B55: Others | C55: CONCOR | D55: 2021-09-30 | E55: 704.65 | F55: 704.57 | G55: 696.73 | H55: 688.82 | I55: 680.98 | J55: 712.48 | K55: 720.32 | L55: 728.23 | M55: 712.4 | N55: 696.65 | O55: 7830630 | P55: 0.10%
A56: 46 | B56: Others | C56: COROMANDEL | D56: 2021-09-30 | E56: 800.35 | F56: 800.42 | G56: 785.83 | H56: 771.32 | I56: 756.73 | J56: 814.93 | K56: 829.52 | L56: 844.03 | M56: 815 | N56: 785.9 | O56: 2259375 | P56: 1.60%
A57: 47 | B57: Banking | C57: CUB | D57: 2021-09-30 | E57: 159.45 | F57: 156.40 | G57: 151.95 | H57: 144.45 | I57: 140.00 | J57: 163.90 | K57: 168.35 | L57: 175.85 | M57: 160.85 | N57: 148.9 | O57: 7756200 | P57: -22.92%
A58: 48 | B58: Capital_Goods | C58: CUMMINSIND | D58: 2021-09-30 | E58: 999.90 | F58: 1001.28 | G58: 990.87 | H58: 981.83 | I58: 971.42 | J58: 1010.32 | K58: 1020.73 | L58: 1029.77 | M58: 1011.7 | N58: 992.25 | O58: 2246400 | P58: -0.64%
A59: 49 | B59: FMCG | C59: DABUR | D59: 2021-09-30 | E59: 624.05 | F59: 624.92 | G59: 620.33 | H59: 616.62 | I59: 612.03 | J59: 628.63 | K59: 633.22 | L59: 636.93 | M59: 629.5 | N59: 621.2 | O59: 10892500 | P59: -0.42%
A60: 50 | B60: Chemical | C60: DEEPAKNTR | D60: 2021-09-30 | E60: 2375.25 | F60: 2368.73 | G60: 2341.47 | H60: 2307.68 | I60: 2280.42 | J60: 2402.52 | K60: 2429.78 | L60: 2463.57 | M60: 2396 | N60: 2334.95 | O60: 2694000 | P60: 0.04%
A61: 51 | B61: Pharma | C61: DIVISLAB | D61: 2021-09-30 | E61: 4816.55 | F61: 4830.17 | G61: 4747.33 | H61: 4678.12 | I61: 4595.28 | J61: 4899.38 | K61: 4982.22 | L61: 5051.43 | M61: 4913 | N61: 4760.95 | O61: 2454400 | P61: -0.68%
A62: 52 | B62: Others | C62: DIXON | D62: 2021-09-30 | E62: 4444.90 | F62: 4415.27 | G62: 4353.53 | H62: 4262.17 | I62: 4200.43 | J62: 4506.63 | K62: 4568.37 | L62: 4659.73 | M62: 4477 | N62: 4323.9 | O62: 448750 | P62: -6.49%
A63: 53 | B63: Realty | C63: DLF | D63: 2021-09-30 | E63: 410.55 | F63: 412.28 | G63: 402.87 | H63: 395.18 | I63: 385.77 | J63: 419.97 | K63: 429.38 | L63: 437.07 | M63: 421.7 | N63: 404.6 | O63: 34260600 | P63: -2.53%
A64: 54 | B64: Pharma | C64: DRREDDY | D64: 2021-09-30 | E64: 4883.00 | F64: 4865.43 | G64: 4806.62 | H64: 4730.23 | I64: 4671.42 | J64: 4941.82 | K64: 5000.63 | L64: 5077.02 | M64: 4924.25 | N64: 4789.05 | O64: 2848375 | P64: -1.43%
A65: 55 | B65: Automobile | C65: EICHERMOT | D65: 2021-09-30 | E65: 2844.65 | F65: 2855.63 | G65: 2823.47 | H65: 2802.28 | I65: 2770.12 | J65: 2876.82 | K65: 2908.98 | L65: 2930.17 | M65: 2887.8 | N65: 2834.45 | O65: 4240600 | P65: -2.90%
A66: 56 | B66: Automobile | C66: ESCORTS | D66: 2021-09-30 | E66: 1491.25 | F66: 1490.60 | G66: 1471.20 | H66: 1451.15 | I66: 1431.75 | J66: 1510.65 | K66: 1530.05 | L66: 1550.10 | M66: 1510 | N66: 1470.55 | O66: 6722650 | P66: 1.71%
A67: 57 | B67: Automobile | C67: EXIDEIND | D67: 2021-09-30 | E67: 180.65 | F67: 180.68 | G67: 178.57 | H67: 176.48 | I67: 174.37 | J67: 182.77 | K67: 184.88 | L67: 186.97 | M67: 182.8 | N67: 178.6 | O67: 33379200 | P67: -5.12%
A68: 58 | B68: Banking | C68: FEDERALBNK | D68: 2021-09-30 | E68: 81.65 | F68: 81.15 | G68: 79.90 | H68: 78.15 | I68: 76.90 | J68: 82.90 | K68: 84.15 | L68: 85.90 | M68: 82.4 | N68: 79.4 | O68: 97800000 | P68: 4.77%
A69: 59 | B69: Oil_Gas | C69: GAIL | D69: 2021-09-30 | E69: 156.50 | F69: 157.60 | G69: 153.50 | H69: 150.50 | I69: 146.40 | J69: 160.60 | K69: 164.70 | L69: 167.70 | M69: 161.7 | N69: 154.6 | O69: 49129400 | P69: 2.08%
A70: 60 | B70: Pharma | C70: GLENMARK | D70: 2021-09-30 | E70: 510.35 | F70: 506.47 | G70: 496.83 | H70: 483.32 | I70: 473.68 | J70: 519.98 | K70: 529.62 | L70: 543.13 | M70: 516.1 | N70: 492.95 | O70: 7598050 | P70: 1.60%
A71: 61 | B71: Infrastructure | C71: GMRINFRA | D71: 2021-09-30 | E71: 38.05 | F71: 37.67 | G71: 35.83 | H71: 33.62 | I71: 31.78 | J71: 39.88 | K71: 41.72 | L71: 43.93 | M71: 39.5 | N71: 35.45 | O71: 135450000 | P71: 9.41%
A72: 62 | B72: FMCG | C72: GODREJCP | D72: 2021-09-30 | E72: 1023.90 | F72: 1033.57 | G72: 1008.13 | H72: 992.37 | I72: 966.93 | J72: 1049.33 | K72: 1074.77 | L72: 1090.53 | M72: 1059 | N72: 1017.8 | O72: 5698000 | P72: -5.58%
A73: 63 | B73: Realty | C73: GODREJPROP | D73: 2021-09-30 | E73: 2312.15 | F73: 2309.15 | G73: 2205.10 | H73: 2098.05 | I73: 1994.00 | J73: 2416.20 | K73: 2520.25 | L73: 2627.30 | M73: 2413.2 | N73: 2202.1 | O73: 2769650 | P73: -3.25%
A74: 64 | B74: Pharma | C74: GRANULES | D74: 2021-09-30 | E74: 322.70 | F74: 321.55 | G74: 317.15 | H74: 311.60 | I74: 307.20 | J74: 327.10 | K74: 331.50 | L74: 337.05 | M74: 325.95 | N74: 316 | O74: 11815650 | P74: -0.53%
A75: 65 | B75: Cement | C75: GRASIM | D75: 2021-09-30 | E75: 1668.55 | F75: 1661.20 | G75: 1643.95 | H75: 1619.35 | I75: 1602.10 | J75: 1685.80 | K75: 1703.05 | L75: 1727.65 | M75: 1678.45 | N75: 1636.6 | O75: 10537400 | P75: -0.20%
A76: 66 | B76: Oil_Gas | C76: GUJGASLTD | D76: 2021-09-30 | E76: 627.80 | F76: 626.42 | G76: 619.83 | H76: 611.87 | I76: 605.28 | J76: 634.38 | K76: 640.97 | L76: 648.93 | M76: 633 | N76: 618.45 | O76: 7670000 | P76: 5.54%
A77: 67 | B77: Others | C77: HAL | D77: 2021-09-30 | E77: 1344.00 | F77: 1351.67 | G77: 1331.63 | H77: 1319.27 | I77: 1299.23 | J77: 1364.03 | K77: 1384.07 | L77: 1396.43 | M77: 1371.7 | N77: 1339.3 | O77: 1903800 | P77: -3.93%
A78: 68 | B78: Capital_Goods | C78: HAVELLS | D78: 2021-09-30 | E78: 1371.95 | F78: 1368.88 | G78: 1357.42 | H78: 1342.88 | I78: 1331.42 | J78: 1383.42 | K78: 1394.88 | L78: 1409.42 | M78: 1380.35 | N78: 1354.35 | O78: 5351500 | P78: -1.61%
A79: 69 | B79: Technology | C79: HCLTECH | D79: 2021-09-30 | E79: 1278.45 | F79: 1279.30 | G79: 1260.60 | H79: 1242.75 | I79: 1224.05 | J79: 1297.15 | K79: 1315.85 | L79: 1333.70 | M79: 1298 | N79: 1261.45 | O79: 17697400 | P79: 2.33%
A80: 70 | B80: Finance | C80: HDFC | D80: 2021-09-30 | E80: 2752.95 | F80: 2765.25 | G80: 2733.10 | H80: 2713.25 | I80: 2681.10 | J80: 2785.10 | K80: 2817.25 | L80: 2837.10 | M80: 2797.4 | N80: 2745.4 | O80: 12951300 | P80: 2.41%
A81: 71 | B81: Finance | C81: HDFCAMC | D81: 2021-09-30 | E81: 2915.70 | F81: 2913.08 | G81: 2882.32 | H81: 2848.93 | I81: 2818.17 | J81: 2946.47 | K81: 2977.23 | L81: 3010.62 | M81: 2943.85 | N81: 2879.7 | O81: 3416400 | P81: 112.78%
A82: 72 | B82: Banking | C82: HDFCBANK | D82: 2021-09-30 | E82: 1599.25 | F82: 1598.40 | G82: 1587.00 | H82: 1574.75 | I82: 1563.35 | J82: 1610.65 | K82: 1622.05 | L82: 1634.30 | M82: 1609.8 | N82: 1586.15 | O82: 33831050 | P82: 8.42%
A83: 73 | B83: Finance | C83: HDFCLIFE | D83: 2021-09-30 | E83: 734.05 | F83: 731.08 | G83: 724.72 | H83: 715.38 | I83: 709.02 | J83: 740.42 | K83: 746.78 | L83: 756.12 | M83: 737.45 | N83: 721.75 | O83: 18665900 | P83: -0.64%
A84: 74 | B84: Automobile | C84: HEROMOTOCO | D84: 2021-09-30 | E84: 2887.20 | F84: 2889.75 | G84: 2863.50 | H84: 2839.80 | I84: 2813.55 | J84: 2913.45 | K84: 2939.70 | L84: 2963.40 | M84: 2916 | N84: 2866.05 | O84: 4095600 | P84: 1.24%
A85: 75 | B85: Metals | C85: HINDALCO | D85: 2021-09-30 | E85: 493.15 | F85: 488.07 | G85: 479.33 | H85: 465.52 | I85: 456.78 | J85: 501.88 | K85: 510.62 | L85: 524.43 | M85: 496.8 | N85: 474.25 | O85: 39396600 | P85: 14.36%
A86: 76 | B86: Oil_Gas | C86: HINDPETRO | D86: 2021-09-30 | E86: 299.50 | F86: 296.23 | G86: 291.87 | H86: 284.23 | I86: 279.87 | J86: 303.87 | K86: 308.23 | L86: 315.87 | M86: 300.6 | N86: 288.6 | O86: 21802500 | P86: -7.70%
A87: 77 | B87: FMCG | C87: HINDUNILVR | D87: 2021-09-30 | E87: 2688.75 | F87: 2705.98 | G87: 2663.42 | H87: 2638.08 | I87: 2595.52 | J87: 2731.32 | K87: 2773.88 | L87: 2799.22 | M87: 2748.55 | N87: 2680.65 | O87: 5961000 | P87: -7.13%
A88: 78 | B88: Finance | C88: IBULHSGFIN | D88: 2021-09-30 | E88: 229.10 | F88: 228.45 | G88: 223.25 | H88: 217.40 | I88: 212.20 | J88: 234.30 | K88: 239.50 | L88: 245.35 | M88: 233.65 | N88: 222.6 | O88: 38579500 | P88: 2.18%
A89: 79 | B89: Banking | C89: ICICIBANK | D89: 2021-09-30 | E89: 709.75 | F89: 708.22 | G89: 703.68 | H89: 697.62 | I89: 693.08 | J89: 714.28 | K89: 718.82 | L89: 724.88 | M89: 712.75 | N89: 702.15 | O89: 80172125 | P89: 0.44%
A90: 80 | B90: Finance | C90: ICICIGI | D90: 2021-09-30 | E90: 1593.25 | F90: 1579.18 | G90: 1560.12 | H90: 1526.98 | I90: 1507.92 | J90: 1612.32 | K90: 1631.38 | L90: 1664.52 | M90: 1598.25 | N90: 1546.05 | O90: 2462875 | P90: -12.20%
A91: 81 | B91: Finance | C91: ICICIPRULI | D91: 2021-09-30 | E91: 674.10 | F91: 671.42 | G91: 663.68 | H91: 653.27 | I91: 645.53 | J91: 681.83 | K91: 689.57 | L91: 699.98 | M91: 679.15 | N91: 661 | O91: 5947500 | P91: -2.60%
A92: 82 | B92: Telecom | C92: IDEA | D92: 2021-09-30 | E92: 11.30 | F92: 11.28 | G92: 11.07 | H92: 10.83 | I92: 10.62 | J92: 11.52 | K92: 11.73 | L92: 11.97 | M92: 11.5 | N92: 11.05 | O92: 629720000 | P92: -3.25%
A93: 83 | B93: Banking | C93: IDFCFIRSTB | D93: 2021-09-30 | E93: 48.30 | F93: 47.50 | G93: 46.35 | H93: 44.40 | I93: 43.25 | J93: 49.45 | K93: 50.60 | L93: 52.55 | M93: 48.65 | N93: 45.55 | O93: 182751500 | P93: -3.12%
A94: 84 | B94: Others | C94: IEX | D94: 2021-09-30 | E94: 637.90 | F94: 623.88 | G94: 603.52 | H94: 569.13 | I94: 548.77 | J94: 658.27 | K94: 678.63 | L94: 713.02 | M94: 644.25 | N94: 589.5 | O94: 8108750 | P94: -0.29%
A95: 85 | B95: Oil_Gas | C95: IGL | D95: 2021-09-30 | E95: 520.20 | F95: 517.72 | G95: 513.58 | H95: 506.97 | I95: 502.83 | J95: 524.33 | K95: 528.47 | L95: 535.08 | M95: 521.85 | N95: 511.1 | O95: 13022625 | P95: 8.33%
A96: 86 | B96: Infrastructure | C96: INDHOTEL | D96: 2021-09-30 | E96: 185.55 | F96: 186.73 | G96: 182.92 | H96: 180.28 | I96: 176.47 | J96: 189.37 | K96: 193.18 | L96: 195.82 | M96: 190.55 | N96: 184.1 | O96: 20455500 | P96: -7.23%
A97: 87 | B97: Others | C97: INDIAMART | D97: 2021-09-30 | E97: 8279.80 | F97: 8258.65 | G97: 8181.15 | H97: 8082.50 | I97: 8005.00 | J97: 8357.30 | K97: 8434.80 | L97: 8533.45 | M97: 8336.15 | N97: 8160 | O97: 178350 | P97: -4.46%
A98: 88 | B98: Others | C98: INDIGO | D98: 2021-09-30 | E98: 2011.75 | F98: 2022.80 | G98: 1988.80 | H98: 1965.85 | I98: 1931.85 | J98: 2045.75 | K98: 2079.75 | L98: 2102.70 | M98: 2056.8 | N98: 1999.85 | O98: 4635500 | P98: -2.93%
A99: 89 | B99: Banking | C99: INDUSINDBK | D99: 2021-09-30 | E99: 1128.25 | F99: 1127.42 | G99: 1116.33 | H99: 1104.42 | I99: 1093.33 | J99: 1139.33 | K99: 1150.42 | L99: 1162.33 | M99: 1138.5 | N99: 1115.5 | O99: 14909400 | P99: 3.46%
A100: 90 | B100: Telecom | C100: INDUSTOWER | D100: 2021-09-30 | E100: 318.40 | F100: 319.25 | G100: 311.30 | H100: 304.20 | I100: 296.25 | J100: 326.35 | K100: 334.30 | L100: 341.40 | M100: 327.2 | N100: 312.15 | O100: 13165600 | P100: -9.42%
A101: 91 | B101: Technology | C101: INFY | D101: 2021-09-30 | E101: 1686.65 | F101: 1679.53 | G101: 1662.12 | H101: 1637.58 | I101: 1620.17 | J101: 1704.07 | K101: 1721.48 | L101: 1746.02 | M101: 1696.95 | N101: 1655 | O101: 34801800 | P101: 4.19%
A102: 92 | B102: Oil_Gas | C102: IOC | D102: 2021-09-30 | E102: 127.25 | F102: 125.75 | G102: 123.70 | H102: 120.15 | I102: 118.10 | J102: 129.30 | K102: 131.35 | L102: 134.90 | M102: 127.8 | N102: 122.2 | O102: 46858500 | P102: -4.29%
A103: 93 | B103: Pharma | C103: IPCALAB | D103: 2021-09-30 | E103: 2355.40 | F103: 2356.85 | G103: 2305.40 | H103: 2255.40 | I103: 2203.95 | J103: 2406.85 | K103: 2458.30 | L103: 2508.30 | M103: 2408.3 | N103: 2306.85 | O103: 459000 | P103: 0.49%
A104: 94 | B104: Others | C104: IRCTC | D104: 2021-09-30 | E104: 3772.75 | F104: 3785.68 | G104: 3723.37 | H104: 3673.98 | I104: 3611.67 | J104: 3835.07 | K104: 3897.38 | L104: 3946.77 | M104: 3848 | N104: 3736.3 | O104: 2249000 | P104: 0.14%
A105: 95 | B105: FMCG | C105: ITC | D105: 2021-09-30 | E105: 237.85 | F105: 238.25 | G105: 235.15 | H105: 232.45 | I105: 229.35 | J105: 240.95 | K105: 244.05 | L105: 246.75 | M105: 241.35 | N105: 235.55 | O105: 188044800 | P105: 2.99%
A106: 96 | B106: Metals | C106: JINDALSTEL | D106: 2021-09-30 | E106: 382.75 | F106: 376.18 | G106: 364.72 | H106: 346.68 | I106: 335.22 | J106: 394.22 | K106: 405.68 | L106: 423.72 | M106: 387.65 | N106: 358.15 | O106: 42910000 | P106: 2.58%
A107: 97 | B107: Metals | C107: JSWSTEEL | D107: 2021-09-30 | E107: 679.00 | F107: 671.90 | G107: 660.05 | H107: 641.10 | I107: 629.25 | J107: 690.85 | K107: 702.70 | L107: 721.65 | M107: 683.75 | N107: 652.95 | O107: 46344150 | P107: -3.77%
A108: 98 | B108: Others | C108: JUBLFOOD | D108: 2021-09-30 | E108: 4074.30 | F108: 4045.68 | G108: 3965.42 | H108: 3856.53 | I108: 3776.27 | J108: 4154.57 | K108: 4234.83 | L108: 4343.72 | M108: 4125.95 | N108: 3936.8 | O108: 1745750 | P108: -1.33%
A109: 99 | B109: Banking | C109: KOTAKBANK | D109: 2021-09-30 | E109: 2030.60 | F109: 2035.98 | G109: 2013.97 | H109: 1997.33 | I109: 1975.32 | J109: 2052.62 | K109: 2074.63 | L109: 2091.27 | M109: 2058 | N109: 2019.35 | O109: 14187200 | P109: -2.02%
A110: 100 | B110: Finance | C110: L&TFH | D110: 2021-09-30 | E110: 90.00 | F110: 89.13 | G110: 87.72 | H110: 85.43 | I110: 84.02 | J110: 91.42 | K110: 92.83 | L110: 95.12 | M110: 90.55 | N110: 86.85 | O110: 64404508 | P110: -8.83%
A111: 101 | B111: Others | C111: LALPATHLAB | D111: 2021-09-30 | E111: 3721.35 | F111: 3676.97 | G111: 3620.58 | H111: 3519.82 | I111: 3463.43 | J111: 3777.73 | K111: 3834.12 | L111: 3934.88 | M111: 3733.35 | N111: 3576.2 | O111: 632750 | P111: -5.31%
A112: 102 | B112: Finance | C112: LICHSGFIN | D112: 2021-09-30 | E112: 436.00 | F112: 435.40 | G112: 429.05 | H112: 422.10 | I112: 415.75 | J112: 442.35 | K112: 448.70 | L112: 455.65 | M112: 441.75 | N112: 428.45 | O112: 18512000 | P112: 2.04%
A113: 103 | B113: Capital_Goods | C113: LT | D113: 2021-09-30 | E113: 1724.15 | F113: 1728.53 | G113: 1714.37 | H113: 1704.58 | I113: 1690.42 | J113: 1738.32 | K113: 1752.48 | L113: 1762.27 | M113: 1742.7 | N113: 1718.75 | O113: 12059475 | P113: -1.60%
A114: 104 | B114: Technology | C114: LTI | D114: 2021-09-30 | E114: 5762.60 | F114: 5774.30 | G114: 5615.05 | H114: 5467.50 | I114: 5308.25 | J114: 5921.85 | K114: 6081.10 | L114: 6228.65 | M114: 5933.55 | N114: 5626.75 | O114: 762450 | P114: 9.31%
A115: 105 | B115: Technology | C115: LTTS | D115: 2021-09-30 | E115: 4775.65 | F115: 4730.15 | G115: 4555.50 | H115: 4335.35 | I115: 4160.70 | J115: 4950.30 | K115: 5124.95 | L115: 5345.10 | M115: 4904.8 | N115: 4510 | O115: 600400 | P115: -9.06%
A116: 106 | B116: Pharma | C116: LUPIN | D116: 2021-09-30 | E116: 949.85 | F116: 953.60 | G116: 943.70 | H116: 937.55 | I116: 927.65 | J116: 959.75 | K116: 969.65 | L116: 975.80 | M116: 963.5 | N116: 947.45 | O116: 12591050 | P116: 4.10%
A117: 107 | B117: Automobile | C117: M&M | D117: 2021-09-30 | E117: 811.75 | F117: 808.48 | G117: 800.97 | H117: 790.18 | I117: 782.67 | J117: 819.27 | K117: 826.78 | L117: 837.57 | M117: 816 | N117: 797.7 | O117: 14686700 | P117: -3.91%
A118: 108 | B118: Finance | C118: M&MFIN | D118: 2021-09-30 | E118: 183.45 | F118: 181.33 | G118: 177.32 | H118: 171.18 | I118: 167.17 | J118: 187.47 | K118: 191.48 | L118: 197.62 | M118: 185.35 | N118: 175.2 | O118: 27256000 | P118: -0.69%
A119: 109 | B119: Finance | C119: MANAPPURAM | D119: 2021-09-30 | E119: 173.40 | F119: 171.70 | G119: 168.30 | H119: 163.20 | I119: 159.80 | J119: 176.80 | K119: 180.20 | L119: 185.30 | M119: 175.1 | N119: 166.6 | O119: 21438000 | P119: -3.01%
A120: 110 | B120: FMCG | C120: MARICO | D120: 2021-09-30 | E120: 553.40 | F120: 552.97 | G120: 547.98 | H120: 542.57 | I120: 537.58 | J120: 558.38 | K120: 563.37 | L120: 568.78 | M120: 557.95 | N120: 547.55 | O120: 10060000 | P120: -3.79%
A121: 111 | B121: Automobile | C121: MARUTI | D121: 2021-09-30 | E121: 7382.25 | F121: 7382.93 | G121: 7295.97 | H121: 7209.68 | I121: 7122.72 | J121: 7469.22 | K121: 7556.18 | L121: 7642.47 | M121: 7469.9 | N121: 7296.65 | O121: 3363500 | P121: -4.42%
A122: 112 | B122: FMCG | C122: MCDOWELL-N | D122: 2021-09-30 | E122: 829.50 | F122: 827.93 | G122: 819.27 | H122: 809.03 | I122: 800.37 | J122: 838.17 | K122: 846.83 | L122: 857.07 | M122: 836.6 | N122: 817.7 | O122: 17666250 | P122: 0.67%
A123: 113 | B123: Others | C123: MCX | D123: 2021-09-30 | E123: 1662.45 | F123: 1657.12 | G123: 1630.48 | H123: 1598.52 | I123: 1571.88 | J123: 1689.08 | K123: 1715.72 | L123: 1747.68 | M123: 1683.75 | N123: 1625.15 | O123: 2315250 | P123: 8.53%
A124: 114 | B124: Pharma | C124: METROPOLIS | D124: 2021-09-30 | E124: 2715.35 | F124: 2732.53 | G124: 2672.52 | H124: 2629.68 | I124: 2569.67 | J124: 2775.37 | K124: 2835.38 | L124: 2878.22 | M124: 2792.55 | N124: 2689.7 | O124: 483600 | P124: 1.51%
A125: 115 | B125: Finance | C125: MFSL | D125: 2021-09-30 | E125: 1006.40 | F125: 1000.60 | G125: 990.20 | H125: 974.00 | I125: 963.60 | J125: 1016.80 | K125: 1027.20 | L125: 1043.40 | M125: 1011 | N125: 984.4 | O125: 2778750 | P125: -1.32%
A126: 116 | B126: Oil_Gas | C126: MGL | D126: 2021-09-30 | E126: 1077.95 | F126: 1073.28 | G126: 1063.77 | H126: 1049.58 | I126: 1040.07 | J126: 1087.47 | K126: 1096.98 | L126: 1111.17 | M126: 1082.8 | N126: 1059.1 | O126: 3136800 | P126: 7.40%
A127: 117 | B127: Technology | C127: MINDTREE | D127: 2021-09-30 | E127: 4238.30 | F127: 4239.10 | G127: 4129.25 | H127: 4020.20 | I127: 3910.35 | J127: 4348.15 | K127: 4458.00 | L127: 4567.05 | M127: 4348.95 | N127: 4130.05 | O127: 2731200 | P127: 9.28%
A128: 118 | B128: Automobile | C128: MOTHERSUMI | D128: 2021-09-30 | E128: 229.75 | F128: 228.55 | G128: 225.00 | H128: 220.25 | I128: 216.70 | J128: 233.30 | K128: 236.85 | L128: 241.60 | M128: 232.1 | N128: 223.8 | O128: 30754500 | P128: -3.15%
A129: 119 | B129: Technology | C129: MPHASIS | D129: 2021-09-30 | E129: 3146.30 | F129: 3150.45 | G129: 3069.85 | H129: 2993.40 | I129: 2912.80 | J129: 3226.90 | K129: 3307.50 | L129: 3383.95 | M129: 3231.05 | N129: 3074 | O129: 2201875 | P129: 11.10%
A130: 120 | B130: Automobile | C130: MRF | D130: 2021-09-30 | E130: 79321.85 | F130: 79656.22 | G130: 78812.63 | H130: 78303.42 | I130: 77459.83 | J130: 80165.43 | K130: 81009.02 | L130: 81518.23 | M130: 80499.8 | N130: 79147 | O130: 48920 | P130: 4.42%
A131: 121 | B131: Finance | C131: MUTHOOTFIN | D131: 2021-09-30 | E131: 1473.00 | F131: 1470.33 | G131: 1451.92 | H131: 1430.83 | I131: 1412.42 | J131: 1491.42 | K131: 1509.83 | L131: 1530.92 | M131: 1488.75 | N131: 1449.25 | O131: 3651000 | P131: 1.29%
A132: 122 | B132: Others | C132: NAM-INDIA | D132: 2021-09-30 | E132: 430.00 | F132: 429.42 | G132: 425.43 | H132: 420.87 | I132: 416.88 | J132: 433.98 | K132: 437.97 | L132: 442.53 | M132: 433.4 | N132: 424.85 | O132: 2454400 | P132: -7.70%
A133: 123 | B133: Metals | C133: NATIONALUM | D133: 2021-09-30 | E133: 94.45 | F133: 92.80 | G133: 89.95 | H133: 85.45 | I133: 82.60 | J133: 97.30 | K133: 100.15 | L133: 104.65 | M133: 95.65 | N133: 88.3 | O133: 94673000 | P133: 4.39%
A134: 124 | B134: Others | C134: NAUKRI | D134: 2021-09-30 | E134: 6460.50 | F134: 6526.35 | G134: 6362.85 | H134: 6265.20 | I134: 6101.70 | J134: 6624.00 | K134: 6787.50 | L134: 6885.15 | M134: 6689.85 | N134: 6428.7 | O134: 993000 | P134: -1.23%
A135: 125 | B135: Chemical | C135: NAVINFLUOR | D135: 2021-09-30 | E135: 3676.85 | F135: 3685.35 | G135: 3627.00 | H135: 3577.15 | I135: 3518.80 | J135: 3735.20 | K135: 3793.55 | L135: 3843.40 | M135: 3743.7 | N135: 3635.5 | O135: 692325 | P135: 10.60%
A136: 126 | B136: FMCG | C136: NESTLEIND | D136: 2021-09-30 | E136: 19536.50 | F136: 19576.02 | G136: 19438.23 | H136: 19339.97 | I136: 19202.18 | J136: 19674.28 | K136: 19812.07 | L136: 19910.33 | M136: 19713.8 | N136: 19477.75 | O136: 376850 | P136: 0.13%
A137: 127 | B137: Metals | C137: NMDC | D137: 2021-09-30 | E137: 143.35 | F137: 142.05 | G137: 138.95 | H137: 134.55 | I137: 131.45 | J137: 146.45 | K137: 149.55 | L137: 153.95 | M137: 145.15 | N137: 137.65 | O137: 110911800 | P137: -3.24%
A138: 128 | B138: Power | C138: NTPC | D138: 2021-09-30 | E138: 140.25 | F138: 138.15 | G138: 132.90 | H138: 125.55 | I138: 120.30 | J138: 145.50 | K138: 150.75 | L138: 158.10 | M138: 143.4 | N138: 130.8 | O138: 60357300 | P138: 1.98%
A139: 129 | B139: Technology | C139: OFSS | D139: 2021-09-30 | E139: 4554.90 | F139: 4536.07 | G139: 4464.13 | H139: 4373.37 | I139: 4301.43 | J139: 4626.83 | K139: 4698.77 | L139: 4789.53 | M139: 4608 | N139: 4445.3 | O139: 753750 | P139: 19.79%
A140: 130 | B140: Oil_Gas | C140: ONGC | D140: 2021-09-30 | E140: 144.50 | F140: 144.02 | G140: 139.83 | H140: 135.17 | I140: 130.98 | J140: 148.68 | K140: 152.87 | L140: 157.53 | M140: 148.2 | N140: 139.35 | O140: 70901600 | P140: 4.39%
A141: 131 | B141: Textile | C141: PAGEIND | D141: 2021-09-30 | E141: 32382.75 | F141: 32378.40 | G141: 31914.35 | H141: 31445.95 | I141: 30981.90 | J141: 32846.80 | K141: 33310.85 | L141: 33779.25 | M141: 32842.45 | N141: 31910 | O141: 83130 | P141: -1.28%
A142: 132 | B142: Pharma | C142: PEL | D142: 2021-09-30 | E142: 2643.15 | F142: 2661.22 | G142: 2610.58 | H142: 2578.02 | I142: 2527.38 | J142: 2693.78 | K142: 2744.42 | L142: 2776.98 | M142: 2711.85 | N142: 2628.65 | O142: 4532825 | P142: 0.02%
A143: 133 | B143: Oil_Gas | C143: PETRONET | D143: 2021-09-30 | E143: 240.10 | F143: 239.60 | G143: 235.75 | H143: 231.40 | I143: 227.55 | J143: 243.95 | K143: 247.80 | L143: 252.15 | M143: 243.45 | N143: 235.25 | O143: 25908000 | P143: -0.93%
A144: 134 | B144: Finance | C144: PFC | D144: 2021-09-30 | E144: 144.70 | F144: 144.32 | G144: 140.48 | H144: 136.27 | I144: 132.43 | J144: 148.53 | K144: 152.37 | L144: 156.58 | M144: 148.15 | N144: 140.1 | O144: 27428800 | P144: -4.39%
A145: 135 | B145: Pharma | C145: PFIZER | D145: 2021-09-30 | E145: 5599.60 | F145: 5596.37 | G145: 5567.78 | H145: 5535.97 | I145: 5507.38 | J145: 5628.18 | K145: 5656.77 | L145: 5688.58 | M145: 5624.95 | N145: 5564.55 | O145: 239500 | P145: -5.20%
A146: 136 | B146: FMCG | C146: PIDILITIND | D146: 2021-09-30 | E146: 2400.40 | F146: 2401.23 | G146: 2384.02 | H146: 2367.63 | I146: 2350.42 | J146: 2417.62 | K146: 2434.83 | L146: 2451.22 | M146: 2418.45 | N146: 2384.85 | O146: 2824000 | P146: -2.70%
A147: 137 | B147: Chemical | C147: PIIND | D147: 2021-09-30 | E147: 3237.25 | F147: 3198.83 | G147: 3134.67 | H147: 3032.08 | I147: 2967.92 | J147: 3301.42 | K147: 3365.58 | L147: 3468.17 | M147: 3263 | N147: 3096.25 | O147: 1406500 | P147: 0.05%
A148: 138 | B148: Banking | C148: PNB | D148: 2021-09-30 | E148: 39.70 | F148: 39.75 | G148: 38.40 | H148: 37.10 | I148: 35.75 | J148: 41.05 | K148: 42.40 | L148: 43.70 | M148: 41.1 | N148: 38.45 | O148: 319568000 | P148: 9.42%
A149: 139 | B149: Others | C149: POLYCAB | D149: 2021-09-30 | E149: 2344.70 | F149: 2336.35 | G149: 2313.60 | H149: 2282.50 | I149: 2259.75 | J149: 2367.45 | K149: 2390.20 | L149: 2421.30 | M149: 2359.1 | N149: 2305.25 | O149: 807600 | P149: -0.04%
A150: 140 | B150: Power | C150: POWERGRID | D150: 2021-09-30 | E150: 194.90 | F150: 191.02 | G150: 186.03 | H150: 177.17 | I150: 172.18 | J150: 199.88 | K150: 204.87 | L150: 213.73 | M150: 196 | N150: 182.15 | O150: 39010895 | P150: 0.48%
A151: 141 | B151: Media | C151: PVR | D151: 2021-09-30 | E151: 1615.65 | F151: 1615.68 | G151: 1583.17 | H151: 1550.68 | I151: 1518.17 | J151: 1648.17 | K151: 1680.68 | L151: 1713.17 | M151: 1648.2 | N151: 1583.2 | O151: 2915748 | P151: -6.46%
A152: 142 | B152: Cement | C152: RAMCOCEM | D152: 2021-09-30 | E152: 990.50 | F152: 985.20 | G152: 978.40 | H152: 966.30 | I152: 959.50 | J152: 997.30 | K152: 1004.10 | L152: 1016.20 | M152: 992 | N152: 973.1 | O152: 2249950 | P152: -0.86%
A153: 143 | B153: Banking | C153: RBLBANK | D153: 2021-09-30 | E153: 188.20 | F153: 187.22 | G153: 183.73 | H153: 179.27 | I153: 175.78 | J153: 191.68 | K153: 195.17 | L153: 199.63 | M153: 190.7 | N153: 182.75 | O153: 26433500 | P153: -4.30%
A154: 144 | B154: Power | C154: RECLTD | D154: 2021-09-30 | E154: 162.50 | F154: 161.90 | G154: 157.55 | H154: 152.60 | I154: 148.25 | J154: 166.85 | K154: 171.20 | L154: 176.15 | M154: 166.25 | N154: 156.95 | O154: 24810000 | P154: -0.39%
A155: 145 | B155: Oil_Gas | C155: RELIANCE | D155: 2021-09-30 | E155: 2523.20 | F155: 2532.48 | G155: 2506.02 | H155: 2488.83 | I155: 2462.37 | J155: 2549.67 | K155: 2576.13 | L155: 2593.32 | M155: 2558.95 | N155: 2515.3 | O155: 30383250 | P155: -2.57%
A156: 146 | B156: Metals | C156: SAIL | D156: 2021-09-30 | E156: 114.70 | F156: 113.88 | G156: 112.27 | H156: 109.83 | I156: 108.22 | J156: 116.32 | K156: 117.93 | L156: 120.37 | M156: 115.5 | N156: 111.45 | O156: 157272500 | P156: -8.20%
A157: 147 | B157: Finance | C157: SBILIFE | D157: 2021-09-30 | E157: 1205.55 | F157: 1206.30 | G157: 1197.95 | H157: 1190.35 | I157: 1182.00 | J157: 1213.90 | K157: 1222.25 | L157: 1229.85 | M157: 1214.65 | N157: 1198.7 | O157: 9880500 | P157: -0.57%
A158: 148 | B158: Banking | C158: SBIN | D158: 2021-09-30 | E158: 459.20 | F158: 453.08 | G158: 445.17 | H158: 431.13 | I158: 423.22 | J158: 467.12 | K158: 475.03 | L158: 489.07 | M158: 461 | N158: 439.05 | O158: 92181000 | P158: 1.22%
A159: 149 | B159: Cement | C159: SHREECEM | D159: 2021-09-30 | E159: 29394.35 | F159: 29407.63 | G159: 29220.87 | H159: 29047.38 | I159: 28860.62 | J159: 29581.12 | K159: 29767.88 | L159: 29941.37 | M159: 29594.4 | N159: 29234.15 | O159: 158150 | P159: -5.21%
A160: 150 | B160: Capital_Goods | C160: SIEMENS | D160: 2021-09-30 | E160: 2128.00 | F160: 2115.00 | G160: 2085.95 | H160: 2043.90 | I160: 2014.85 | J160: 2157.05 | K160: 2186.10 | L160: 2228.15 | M160: 2144.05 | N160: 2072.95 | O160: 2023725 | P160: -3.23%
A161: 151 | B161: Textile | C161: SRF | D161: 2021-09-30 | E161: 11214.85 | F161: 11123.43 | G161: 10951.87 | H161: 10688.88 | I161: 10517.32 | J161: 11386.42 | K161: 11557.98 | L161: 11820.97 | M161: 11295 | N161: 10860.45 | O161: 801125 | P161: -1.96%
A162: 152 | B162: Finance | C162: SRTRANSFIN | D162: 2021-09-30 | E162: 1303.80 | F162: 1299.93 | G162: 1286.92 | H162: 1270.03 | I162: 1257.02 | J162: 1316.82 | K162: 1329.83 | L162: 1346.72 | M162: 1312.95 | N162: 1283.05 | O162: 4700400 | P162: 0.29%
A163: 153 | B163: Pharma | C163: STAR | D163: 2021-09-30 | E163: 596.45 | F163: 590.45 | G163: 578.95 | H163: 561.45 | I163: 549.95 | J163: 607.95 | K163: 619.45 | L163: 636.95 | M163: 601.95 | N163: 572.95 | O163: 2656125 | P163: 3.63%
A164: 154 | B164: Pharma | C164: SUNPHARMA | D164: 2021-09-30 | E164: 810.30 | F164: 800.83 | G164: 782.27 | H164: 754.23 | I164: 735.67 | J164: 828.87 | K164: 847.43 | L164: 875.47 | M164: 819.4 | N164: 772.8 | O164: 38092600 | P164: 13.95%
A165: 155 | B165: Media | C165: SUNTV | D165: 2021-09-30 | E165: 501.40 | F165: 500.60 | G165: 493.25 | H165: 485.10 | I165: 477.75 | J165: 508.75 | K165: 516.10 | L165: 524.25 | M165: 507.95 | N165: 492.45 | O165: 13986000 | P165: -2.36%
A166: 156 | B166: Pharma | C166: SYNGENE | D166: 2021-09-30 | E166: 613.90 | F166: 615.43 | G166: 603.52 | H166: 593.13 | I166: 581.22 | J166: 625.82 | K166: 637.73 | L166: 648.12 | M166: 627.35 | N166: 605.05 | O166: 1950750 | P166: 6.69%
A167: 157 | B167: Chemical | C167: TATACHEM | D167: 2021-09-30 | E167: 933.40 | F167: 921.78 | G167: 906.42 | H167: 879.43 | I167: 864.07 | J167: 948.77 | K167: 964.13 | L167: 991.12 | M167: 937.15 | N167: 894.8 | O167: 12098000 | P167: 2.65%
A168: 158 | B168: FMCG | C168: TATACONSUM | D168: 2021-09-30 | E168: 824.60 | F168: 821.68 | G168: 812.97 | H168: 801.33 | I168: 792.62 | J168: 833.32 | K168: 842.03 | L168: 853.67 | M168: 830.4 | N168: 810.05 | O168: 10841850 | P168: 1.47%
A169: 159 | B169: Automobile | C169: TATAMOTORS | D169: 2021-09-30 | E169: 331.05 | F169: 329.57 | G169: 325.23 | H169: 319.42 | I169: 315.08 | J169: 335.38 | K169: 339.72 | L169: 345.53 | M169: 333.9 | N169: 323.75 | O169: 104241600 | P169: -0.04%
A170: 160 | B170: Power | C170: TATAPOWER | D170: 2021-09-30 | E170: 151.40 | F170: 148.40 | G170: 141.80 | H170: 132.20 | I170: 125.60 | J170: 158.00 | K170: 164.60 | L170: 174.20 | M170: 155 | N170: 138.8 | O170: 143235000 | P170: 0.38%
A171: 161 | B171: Metals | C171: TATASTEEL | D171: 2021-09-30 | E171: 1298.65 | F171: 1293.25 | G171: 1273.40 | H171: 1248.15 | I171: 1228.30 | J171: 1318.50 | K171: 1338.35 | L171: 1363.60 | M171: 1313.1 | N171: 1268 | O171: 50169550 | P171: -1.05%
A172: 162 | B172: Technology | C172: TCS | D172: 2021-09-30 | E172: 3792.65 | F172: 3777.08 | G172: 3743.12 | H172: 3693.58 | I172: 3659.62 | J172: 3826.62 | K172: 3860.58 | L172: 3910.12 | M172: 3811.05 | N172: 3727.55 | O172: 8437500 | P172: -6.03%
A173: 163 | B173: Technology | C173: TECHM | D173: 2021-09-30 | E173: 1400.00 | F173: 1395.93 | G173: 1379.37 | H173: 1358.73 | I173: 1342.17 | J173: 1416.57 | K173: 1433.13 | L173: 1453.77 | M173: 1412.5 | N173: 1375.3 | O173: 12381600 | P173: 14.24%
A174: 164 | B174: FMCG | C174: TITAN | D174: 2021-09-30 | E174: 2148.35 | F174: 2143.55 | G174: 2115.30 | H174: 2082.25 | I174: 2054.00 | J174: 2176.60 | K174: 2204.85 | L174: 2237.90 | M174: 2171.8 | N174: 2110.5 | O174: 4989000 | P174: 1.63%
A175: 165 | B175: Pharma | C175: TORNTPHARM | D175: 2021-09-30 | E175: 3140.60 | F175: 3143.28 | G175: 3092.17 | H175: 3043.73 | I175: 2992.62 | J175: 3191.72 | K175: 3242.83 | L175: 3291.27 | M175: 3194.4 | N175: 3094.85 | O175: 733250 | P175: -1.64%
A176: 166 | B176: Power | C176: TORNTPOWER | D176: 2021-09-30 | E176: 518.25 | F176: 515.07 | G176: 501.53 | H176: 484.82 | I176: 471.28 | J176: 531.78 | K176: 545.32 | L176: 562.03 | M176: 528.6 | N176: 498.35 | O176: 3934500 | P176: 8.39%
A177: 167 | B177: Others | C177: TRENT | D177: 2021-09-30 | E177: 1008.75 | F177: 1001.27 | G177: 988.63 | H177: 968.52 | I177: 955.88 | J177: 1021.38 | K177: 1034.02 | L177: 1054.13 | M177: 1013.9 | N177: 981.15 | O177: 1608775 | P177: -9.21%
A178: 168 | B178: Automobile | C178: TVSMOTOR | D178: 2021-09-30 | E178: 552.15 | F178: 551.27 | G178: 544.88 | H178: 537.62 | I178: 531.23 | J178: 558.53 | K178: 564.92 | L178: 572.18 | M178: 557.65 | N178: 544 | O178: 5671400 | P178: 7.54%
A179: 169 | B179: FMCG | C179: UBL | D179: 2021-09-30 | E179: 1559.60 | F179: 1560.10 | G179: 1537.20 | H179: 1514.80 | I179: 1491.90 | J179: 1582.50 | K179: 1605.40 | L179: 1627.80 | M179: 1583 | N179: 1537.7 | O179: 1859900 | P179: 4.44%
A180: 170 | B180: Cement | C180: ULTRACEMCO | D180: 2021-09-30 | E180: 7480.60 | F180: 7534.85 | G180: 7399.75 | H180: 7318.90 | I180: 7183.80 | J180: 7615.70 | K180: 7750.80 | L180: 7831.65 | M180: 7669.95 | N180: 7454 | O180: 1728800 | P180: -0.89%
A181: 171 | B181: Chemical | C181: UPL | D181: 2021-09-30 | E181: 717.25 | F181: 716.65 | G181: 709.30 | H181: 701.35 | I181: 694.00 | J181: 724.60 | K181: 731.95 | L181: 739.90 | M181: 724 | N181: 708.7 | O181: 24289200 | P181: -0.57%
A182: 172 | B182: Metals | C182: VEDL | D182: 2021-09-30 | E182: 291.95 | F182: 291.35 | G182: 287.60 | H182: 283.25 | I182: 279.50 | J182: 295.70 | K182: 299.45 | L182: 303.80 | M182: 295.1 | N182: 287 | O182: 120757400 | P182: 0.83%
A183: 173 | B183: Capital_Goods | C183: VOLTAS | D183: 2021-09-30 | E183: 1206.90 | F183: 1210.48 | G183: 1195.42 | H183: 1183.93 | I183: 1168.87 | J183: 1221.97 | K183: 1237.03 | L183: 1248.52 | M183: 1225.55 | N183: 1199 | O183: 3520500 | P183: -3.38%
A184: 174 | B184: Technology | C184: WIPRO | D184: 2021-09-30 | E184: 642.60 | F184: 639.73 | G184: 631.07 | H184: 619.53 | I184: 610.87 | J184: 651.27 | K184: 659.93 | L184: 671.47 | M184: 648.4 | N184: 628.2 | O184: 33592000 | P184: 1.26%
A185: 175 | B185: Media | C185: ZEEL | D185: 2021-09-30 | E185: 310.30 | F185: 309.47 | G185: 305.93 | H185: 301.57 | I185: 298.03 | J185: 313.83 | K185: 317.37 | L185: 321.73 | M185: 313 | N185: 305.1 | O185: 49686000 | P185: -3.36%
A203: Pivot Point: This is trigger point for intra day buy/sell based on the price range of the previous day
A204: As per the tool,the trader should take BUY position just above Pivot and keep the stop loss of pivot point and the first target would be Resistance 1(R1)
A205: If R1 is crossed then R2 becomes the next target with stop loss of at R1
A206: Similarly if price goes below pivot point then the trader should sell and keep a stop loss of pivot point and the first target would be S1
A207: If S1 is crossed then S2 becomes the next target with stop loss of at S1
A209: Disclaimer:
A210: This document has been prepared by the Retail Research Desk of Asit C Mehta
A211: Investment Intermediates Ltd. and is meant for use of the recipient only
A212: and is not for circulation. This document is not to be reported or
A213: copied or made available to others. It should not be considered to be
A214: taken as an offer to sell or a solicitation to buy any security. The
A215: information contained herein is from sources believed reliable. We do
A216: not represent that it is accurate or complete and it should not be
A217: relied upon as such. We may from time to time have positions in and buy
A218: and sell securities referred to herein

Sheet Cash Intra
M5: Back to Main Page
A6: FOR INTRA DAY TRADING | K6: =Main!B10 -> 2021-09-30
A8: Sr.no | C8: CLOSE RATE | D8: Pivot Point | E8: Supports | H8: Resistances
E9: S1 | F9: S2 | G9: S3 | H9: R1 | I9: R2 | J9: R3 | K9: HIGH | L9: LOW | M9: Total Trade Quanity in Lakhs
A10: 1 | B10: Nifty 50 | C10: 17711.3 | D10: 17700.40 | E10: 17619.05 | F10: 17526.80 | G10: 17445.45 | H10: 17792.65 | I10: 17874.00 | J10: 17966.25 | K10: 17781.75 | L10: 17608.15
A11: 2 | B11: Nifty Bank | C11: 37743 | D11: 37679.17 | E11: 37434.88 | F11: 37126.77 | G11: 36882.48 | H11: 37987.28 | I11: 38231.57 | J11: 38539.68 | K11: 37923.45 | L11: 37371.05
A12: 3 | B12: Nifty CPSE | C12: 2371.95 | D12: 2340.97 | E12: 2294.08 | F12: 2216.22 | G12: 2169.33 | H12: 2418.83 | I12: 2465.72 | J12: 2543.58 | K12: 2387.85 | L12: 2263.1
A13: 4 | B13: Nifty Infra | C13: 5043.9 | D13: 5034.97 | E13: 5010.38 | F13: 4976.87 | G13: 4952.28 | H13: 5068.48 | I13: 5093.07 | J13: 5126.58 | K13: 5059.55 | L13: 5001.45
A14: 5 | B14: Nifty IT | C14: 35282.65 | D14: 35198.30 | E14: 34818.30 | F14: 34353.95 | G14: 33973.95 | H14: 35662.65 | I14: 36042.65 | J14: 36507.00 | K14: 35578.3 | L14: 34733.95
A15: 6 | B15: Nifty PSE | C15: 4113.7 | D15: 4072.65 | E15: 4015.65 | F15: 3917.60 | G15: 3860.60 | H15: 4170.70 | I15: 4227.70 | J15: 4325.75 | K15: 4129.65 | L15: 3974.6
A16: 7 | B16: Nifty Midcap 50 | C16: 8257.95 | D16: 8219.62 | E16: 8135.68 | F16: 8013.42 | G16: 7929.48 | H16: 8341.88 | I16: 8425.82 | J16: 8548.08 | K16: 8303.55 | L16: 8097.35
A17: 8 | B17: ACC | C17: 2271.1 | D17: 2269.85 | E17: 2246.35 | F17: 2221.60 | G17: 2198.10 | H17: 2294.60 | I17: 2318.10 | J17: 2342.85 | K17: 2293.35 | L17: 2245.1 | M17: 5.18866
A18: 9 | B18: AUBANK | C18: 1158.9 | D18: 1150.13 | E18: 1121.27 | F18: 1083.63 | G18: 1054.77 | H18: 1187.77 | I18: 1216.63 | J18: 1254.27 | K18: 1179 | L18: 1112.5 | M18: 38.2643
A19: 10 | B19: AARTIIND | C19: 937.65 | D19: 932.00 | E19: 922.00 | F19: 906.35 | G19: 896.35 | H19: 947.65 | I19: 957.65 | J19: 973.30 | K19: 942 | L19: 916.35 | M19: 9.80092
A20: 11 | B20: ABBOTINDIA | C20: 19555.8 | D20: 19922.53 | E20: 18834.27 | F20: 18112.73 | G20: 17024.47 | H20: 20644.07 | I20: 21732.33 | J20: 22453.87 | K20: 21010.8 | L20: 19201 | M20: 0.6512
A21: 12 | B21: ADANIENT | C21: 1485.65 | D21: 1482.65 | E21: 1467.30 | F21: 1448.95 | G21: 1433.60 | H21: 1501.00 | I21: 1516.35 | J21: 1534.70 | K21: 1498 | L21: 1464.3 | M21: 17.6435
A22: 13 | B22: ADANIGREEN | C22: 1138.65 | D22: 1133.23 | E22: 1116.67 | F22: 1094.68 | G22: 1078.12 | H22: 1155.22 | I22: 1171.78 | J22: 1193.77 | K22: 1149.8 | L22: 1111.25 | M22: 36.94509
A23: 14 | B23: ADANIPORTS | C23: 742 | D23: 741.95 | E23: 736.05 | F23: 730.10 | G23: 724.20 | H23: 747.90 | I23: 753.80 | J23: 759.75 | K23: 747.85 | L23: 736 | M23: 27.34053
A24: 15 | B24: ATGL | C24: 1417.85 | D24: 1397.78 | E24: 1370.07 | F24: 1322.28 | G24: 1294.57 | H24: 1445.57 | I24: 1473.28 | J24: 1521.07 | K24: 1425.5 | L24: 1350 | M24: 5.01516
A25: 16 | B25: ADANITRANS | C25: 1530.6 | D25: 1540.23 | E25: 1492.47 | F25: 1454.33 | G25: 1406.57 | H25: 1578.37 | I25: 1626.13 | J25: 1664.27 | K25: 1588 | L25: 1502.1 | M25: 2.43398
A26: 17 | B26: ABCAPITAL | C26: 114.15 | D26: 114.38 | E26: 113.07 | F26: 111.98 | G26: 110.67 | H26: 115.47 | I26: 116.78 | J26: 117.87 | K26: 115.7 | L26: 113.3 | M26: 25.55754
A27: 18 | B27: ABFRL | C27: 231.65 | D27: 228.13 | E27: 222.77 | F27: 213.88 | G27: 208.52 | H27: 237.02 | I27: 242.38 | J27: 251.27 | K27: 233.5 | L27: 219.25 | M27: 45.15673
A28: 19 | B28: AJANTPHARM | C28: 2301.2 | D28: 2263.83 | E28: 2207.67 | F28: 2114.13 | G28: 2057.97 | H28: 2357.37 | I28: 2413.53 | J28: 2507.07 | K28: 2320 | L28: 2170.3 | M28: 1.12425
A29: 20 | B29: APLLTD | C29: 794.75 | D29: 789.33 | E29: 780.67 | F29: 766.58 | G29: 757.92 | H29: 803.42 | I29: 812.08 | J29: 826.17 | K29: 798 | L29: 775.25 | M29: 1.75883
A30: 21 | B30: ALKEM | C30: 3936.05 | D30: 3960.88 | E30: 3879.77 | F30: 3823.48 | G30: 3742.37 | H30: 4017.17 | I30: 4098.28 | J30: 4154.57 | K30: 4042 | L30: 3904.6 | M30: 6.62987
A31: 22 | B31: AMARAJABAT | C31: 756.55 | D31: 754.03 | E31: 746.52 | F31: 736.48 | G31: 728.97 | H31: 764.07 | I31: 771.58 | J31: 781.62 | K31: 761.55 | L31: 744 | M31: 11.65596
A32: 23 | B32: AMBUJACEM | C32: 406.45 | D32: 405.87 | E32: 401.73 | F32: 397.02 | G32: 392.88 | H32: 410.58 | I32: 414.72 | J32: 419.43 | K32: 410 | L32: 401.15 | M32: 57.2878
A33: 24 | B33: APOLLOHOSP | C33: 4423.5 | D33: 4443.53 | E33: 4379.97 | F33: 4336.43 | G33: 4272.87 | H33: 4487.07 | I33: 4550.63 | J33: 4594.17 | K33: 4507.1 | L33: 4400 | M33: 5.71896
A34: 25 | B34: APOLLOTYRE | C34: 224.7 | D34: 224.95 | E34: 220.60 | F34: 216.50 | G34: 212.15 | H34: 229.05 | I34: 233.40 | J34: 237.50 | K34: 229.3 | L34: 220.85 | M34: 40.45085
A35: 26 | B35: ASHOKLEY | C35: 129.35 | D35: 128.83 | E35: 126.72 | F35: 124.08 | G35: 121.97 | H35: 131.47 | I35: 133.58 | J35: 136.22 | K35: 130.95 | L35: 126.2 | M35: 189.91879
A36: 27 | B36: ASIANPAINT | C36: 3323.05 | D36: 3338.25 | E36: 3294.80 | F36: 3266.55 | G36: 3223.10 | H36: 3366.50 | I36: 3409.95 | J36: 3438.20 | K36: 3381.7 | L36: 3310 | M36: 9.73387
A37: 28 | B37: AUROPHARMA | C37: 727.95 | D37: 727.92 | E37: 718.93 | F37: 709.92 | G37: 700.93 | H37: 736.93 | I37: 745.92 | J37: 754.93 | K37: 736.9 | L37: 718.9 | M37: 22.40377
A38: 29 | B38: DMART | C38: 4251.2 | D38: 4283.05 | E38: 4170.15 | F38: 4089.10 | G38: 3976.20 | H38: 4364.10 | I38: 4477.00 | J38: 4558.05 | K38: 4395.95 | L38: 4202 | M38: 3.77254
A39: 30 | B39: AXISBANK | C39: 782.15 | D39: 783.38 | E39: 777.27 | F39: 772.38 | G39: 766.27 | H39: 788.27 | I39: 794.38 | J39: 799.27 | K39: 789.5 | L39: 778.5 | M39: 142.41004
A40: 31 | B40: BAJAJ-AUTO | C40: 3899.25 | D40: 3895.05 | E40: 3854.20 | F40: 3809.15 | G40: 3768.30 | H40: 3940.10 | I40: 3980.95 | J40: 4026.00 | K40: 3935.9 | L40: 3850 | M40: 3.79896
A41: 32 | B41: BAJFINANCE | C41: 7515.4 | D41: 7535.80 | E41: 7435.75 | F41: 7356.10 | G41: 7256.05 | H41: 7615.45 | I41: 7715.50 | J41: 7795.15 | K41: 7635.85 | L41: 7456.15 | M41: 9.45879
A42: 33 | B42: BAJAJFINSV | C42: 17433.75 | D42: 17463.15 | E42: 17278.40 | F42: 17123.05 | G42: 16938.30 | H42: 17618.50 | I42: 17803.25 | J42: 17958.60 | K42: 17647.9 | L42: 17307.8 | M42: 3.09712
A43: 34 | B43: BAJAJHLDNG | C43: 4712.55 | D43: 4726.32 | E43: 4636.23 | F43: 4559.92 | G43: 4469.83 | H43: 4802.63 | I43: 4892.72 | J43: 4969.03 | K43: 4816.4 | L43: 4650 | M43: 0.79366
A44: 35 | B44: BALKRISIND | C44: 2504.95 | D44: 2520.87 | E44: 2473.73 | F44: 2442.52 | G44: 2395.38 | H44: 2552.08 | I44: 2599.22 | J44: 2630.43 | K44: 2568 | L44: 2489.65 | M44: 4.41157
A45: 36 | B45: BANDHANBNK | C45: 284.4 | D45: 284.75 | E45: 279.50 | F45: 274.60 | G45: 269.35 | H45: 289.65 | I45: 294.90 | J45: 299.80 | K45: 290 | L45: 279.85 | M45: 66.25067
A46: 37 | B46: BANKBARODA | C46: 81.7 | D46: 80.62 | E46: 79.23 | F46: 76.77 | G46: 75.38 | H46: 83.08 | I46: 84.47 | J46: 86.93 | K46: 82 | L46: 78.15 | M46: 539.12004
A47: 38 | B47: BANKINDIA | C47: 55.1 | D47: 54.52 | E47: 53.28 | F47: 51.47 | G47: 50.23 | H47: 56.33 | I47: 57.57 | J47: 59.38 | K47: 55.75 | L47: 52.7 | M47: 196.61029
A48: 39 | B48: BATAINDIA | C48: 1763.45 | D48: 1761.28 | E48: 1742.42 | F48: 1721.38 | G48: 1702.52 | H48: 1782.32 | I48: 1801.18 | J48: 1822.22 | K48: 1780.15 | L48: 1740.25 | M48: 4.54672
A49: 40 | B49: BERGEPAINT | C49: 817.15 | D49: 816.10 | E49: 811.00 | F49: 804.85 | G49: 799.75 | H49: 822.25 | I49: 827.35 | J49: 833.50 | K49: 821.2 | L49: 809.95 | M49: 4.94533
A50: 41 | B50: BEL | C50: 205.15 | D50: 207.08 | E50: 201.77 | F50: 198.38 | G50: 193.07 | H50: 210.47 | I50: 215.78 | J50: 219.17 | K50: 212.4 | L50: 203.7 | M50: 91.26075
A51: 42 | B51: BHARATFORG | C51: 744.2 | D51: 744.60 | E51: 736.50 | F51: 728.80 | G51: 720.70 | H51: 752.30 | I51: 760.40 | J51: 768.10 | K51: 752.7 | L51: 736.9 | M51: 31.4974
A52: 43 | B52: BHEL | C52: 62.8 | D52: 62.38 | E52: 60.82 | F52: 58.83 | G52: 57.27 | H52: 64.37 | I52: 65.93 | J52: 67.92 | K52: 63.95 | L52: 60.4 | M52: 1303.67062
A53: 44 | B53: BPCL | C53: 436.9 | D53: 433.63 | E53: 429.27 | F53: 421.63 | G53: 417.27 | H53: 441.27 | I53: 445.63 | J53: 453.27 | K53: 438 | L53: 426 | M53: 76.25857
A54: 45 | B54: BHARTIARTL | C54: 694.1 | D54: 695.08 | E54: 688.17 | F54: 682.23 | G54: 675.32 | H54: 701.02 | I54: 707.93 | J54: 713.87 | K54: 702 | L54: 689.15 | M54: 167.29859
A55: 46 | B55: BIOCON | C55: 362.6 | D55: 362.77 | E55: 358.93 | F55: 355.27 | G55: 351.43 | H55: 366.43 | I55: 370.27 | J55: 373.93 | K55: 366.6 | L55: 359.1 | M55: 13.85922
A56: 47 | B56: BBTC | C56: 1146.5 | D56: 1146.28 | E56: 1133.57 | F56: 1120.63 | G56: 1107.92 | H56: 1159.22 | I56: 1171.93 | J56: 1184.87 | K56: 1159 | L56: 1133.35 | M56: 0.42062
A57: 48 | B57: BOSCHLTD | C57: 15638.2 | D57: 15697.47 | E57: 15460.73 | F57: 15283.27 | G57: 15046.53 | H57: 15874.93 | I57: 16111.67 | J57: 16289.13 | K57: 15934.2 | L57: 15520 | M57: 0.42636
A58: 49 | B58: BRITANNIA | C58: 3972.75 | D58: 3983.93 | E58: 3947.97 | F58: 3923.18 | G58: 3887.22 | H58: 4008.72 | I58: 4044.68 | J58: 4069.47 | K58: 4019.9 | L58: 3959.15 | M58: 3.32446
A59: 50 | B59: CESC | C59: 86.65 | D59: 85.45 | E59: 82.70 | F59: 78.75 | G59: 76.00 | H59: 89.40 | I59: 92.15 | J59: 96.10 | K59: 88.2 | L59: 81.5 | M59: 190.06357
A60: 51 | B60: CADILAHC | C60: 547.6 | D60: 546.27 | E60: 536.33 | F60: 525.07 | G60: 515.13 | H60: 557.53 | I60: 567.47 | J60: 578.73 | K60: 556.2 | L60: 535 | M60: 24.03708
A61: 52 | B61: CANBK | C61: 168.15 | D61: 167.28 | E61: 162.57 | F61: 156.98 | G61: 152.27 | H61: 172.87 | I61: 177.58 | J61: 183.17 | K61: 172 | L61: 161.7 | M61: 353.08289
A62: 53 | B62: CASTROLIND | C62: 139.45 | D62: 139.20 | E62: 138.30 | F62: 137.15 | G62: 136.25 | H62: 140.35 | I62: 141.25 | J62: 142.40 | K62: 140.1 | L62: 138.05 | M62: 4.64232
A63: 54 | B63: CHOLAFIN | C63: 573.45 | D63: 565.13 | E63: 552.42 | F63: 531.38 | G63: 518.67 | H63: 586.17 | I63: 598.88 | J63: 619.92 | K63: 577.85 | L63: 544.1 | M63: 47.50941
A64: 55 | B64: CIPLA | C64: 987.6 | D64: 985.92 | E64: 966.83 | F64: 946.07 | G64: 926.98 | H64: 1006.68 | I64: 1025.77 | J64: 1046.53 | K64: 1005 | L64: 965.15 | M64: 40.5298
A65: 56 | B65: CUB | C65: 159.4 | D65: 156.47 | E65: 151.93 | F65: 144.47 | G65: 139.93 | H65: 163.93 | I65: 168.47 | J65: 175.93 | K65: 161 | L65: 149 | M65: 83.55078
A66: 57 | B66: COALINDIA | C66: 185.7 | D66: 185.17 | E66: 173.33 | F66: 160.97 | G66: 149.13 | H66: 197.53 | I66: 209.37 | J66: 221.73 | K66: 197 | L66: 172.8 | M66: 1009.88643
A67: 58 | B67: COFORGE | C67: 5260.7 | D67: 5187.20 | E67: 5074.50 | F67: 4888.30 | G67: 4775.60 | H67: 5373.40 | I67: 5486.10 | J67: 5672.30 | K67: 5299.9 | L67: 5001 | M67: 5.80822
A68: 59 | B68: COLPAL | C68: 1678.45 | D68: 1681.83 | E68: 1668.67 | F68: 1658.88 | G68: 1645.72 | H68: 1691.62 | I68: 1704.78 | J68: 1714.57 | K68: 1695 | L68: 1672.05 | M68: 2.84053
A69: 60 | B69: CONCOR | C69: 703.7 | D69: 704.50 | E69: 696.20 | F69: 688.70 | G69: 680.40 | H69: 712.00 | I69: 720.30 | J69: 727.80 | K69: 712.8 | L69: 697 | M69: 10.44662
A70: 61 | B70: COROMANDEL | C70: 797.15 | D70: 800.03 | E70: 785.12 | F70: 773.08 | G70: 758.17 | H70: 812.07 | I70: 826.98 | J70: 839.02 | K70: 814.95 | L70: 788 | M70: 8.56874
A71: 62 | B71: CROMPTON | C71: 470 | D71: 468.90 | E71: 464.40 | F71: 458.80 | G71: 454.30 | H71: 474.50 | I71: 479.00 | J71: 484.60 | K71: 473.4 | L71: 463.3 | M71: 9.5316
A72: 63 | B72: CUMMINSIND | C72: 996.95 | D72: 1000.63 | E72: 989.32 | F72: 981.68 | G72: 970.37 | H72: 1008.27 | I72: 1019.58 | J72: 1027.22 | K72: 1011.95 | L72: 993 | M72: 2.70602
A73: 64 | B73: DLF | C73: 410.85 | D73: 412.25 | E73: 403.60 | F73: 396.35 | G73: 387.70 | H73: 419.50 | I73: 428.15 | J73: 435.40 | K73: 420.9 | L73: 405 | M73: 172.73596
A74: 65 | B74: DABUR | C74: 623.15 | D74: 623.90 | E74: 619.50 | F74: 615.85 | G74: 611.45 | H74: 627.55 | I74: 631.95 | J74: 635.60 | K74: 628.3 | L74: 620.25 | M74: 18.2733
A75: 66 | B75: DALBHARAT | C75: 2052.45 | D75: 2069.23 | E75: 1978.47 | F75: 1904.48 | G75: 1813.72 | H75: 2143.22 | I75: 2233.98 | J75: 2307.97 | K75: 2160 | L75: 1995.25 | M75: 2.40923
A76: 67 | B76: DEEPAKNTR | C76: 2374.05 | D76: 2368.28 | E76: 2339.57 | F76: 2305.08 | G76: 2276.37 | H76: 2402.77 | I76: 2431.48 | J76: 2465.97 | K76: 2397 | L76: 2333.8 | M76: 8.12697
A77: 68 | B77: DHANI | C77: 182.1 | D77: 182.47 | E77: 179.63 | F77: 177.17 | G77: 174.33 | H77: 184.93 | I77: 187.77 | J77: 190.23 | K77: 185.3 | L77: 180 | M77: 8.99763
A78: 69 | B78: DIVISLAB | C78: 4806.45 | D78: 4824.28 | E78: 4734.27 | F78: 4662.08 | G78: 4572.07 | H78: 4896.47 | I78: 4986.48 | J78: 5058.67 | K78: 4914.3 | L78: 4752.1 | M78: 8.77223
A79: 70 | B79: DIXON | C79: 4465.4 | D79: 4426.13 | E79: 4364.27 | F79: 4263.13 | G79: 4201.27 | H79: 4527.27 | I79: 4589.13 | J79: 4690.27 | K79: 4488 | L79: 4325 | M79: 2.10299
A80: 71 | B80: LALPATHLAB | C80: 3723.7 | D80: 3676.48 | E80: 3620.42 | F80: 3517.13 | G80: 3461.07 | H80: 3779.77 | I80: 3835.83 | J80: 3939.12 | K80: 3732.55 | L80: 3573.2 | M80: 2.11623
A81: 72 | B81: DRREDDY | C81: 4881 | D81: 4865.18 | E81: 4807.47 | F81: 4733.93 | G81: 4676.22 | H81: 4938.72 | I81: 4996.43 | J81: 5069.97 | K81: 4922.9 | L81: 4791.65 | M81: 6.5507
A82: 73 | B82: EICHERMOT | C82: 2843.25 | D82: 2856.08 | E82: 2822.17 | F82: 2801.08 | G82: 2767.17 | H82: 2877.17 | I82: 2911.08 | J82: 2932.17 | K82: 2890 | L82: 2835 | M82: 3.86614
A83: 74 | B83: EMAMILTD | C83: 586.55 | D83: 583.62 | E83: 577.23 | F83: 567.92 | G83: 561.53 | H83: 592.93 | I83: 599.32 | J83: 608.63 | K83: 590 | L83: 574.3 | M83: 4.05323
A84: 75 | B84: ENDURANCE | C84: 1601.15 | D84: 1596.73 | E84: 1574.42 | F84: 1547.68 | G84: 1525.37 | H84: 1623.47 | I84: 1645.78 | J84: 1672.52 | K84: 1619.05 | L84: 1570 | M84: 1.18916
A85: 76 | B85: ESCORTS | C85: 1488.6 | D85: 1487.98 | E85: 1470.82 | F85: 1453.03 | G85: 1435.87 | H85: 1505.77 | I85: 1522.93 | J85: 1540.72 | K85: 1505.15 | L85: 1470.2 | M85: 12.32093
A86: 77 | B86: EXIDEIND | C86: 180.4 | D86: 180.25 | E86: 178.15 | F86: 175.90 | G86: 173.80 | H86: 182.50 | I86: 184.60 | J86: 186.85 | K86: 182.35 | L86: 178 | M86: 33.67588
A87: 78 | B87: FEDERALBNK | C87: 81.35 | D87: 81.03 | E87: 79.82 | F87: 78.28 | G87: 77.07 | H87: 82.57 | I87: 83.78 | J87: 85.32 | K87: 82.25 | L87: 79.5 | M87: 236.86048
A88: 79 | B88: FORTIS | C88: 263.2 | D88: 263.98 | E88: 259.37 | F88: 255.53 | G88: 250.92 | H88: 267.82 | I88: 272.43 | J88: 276.27 | K88: 268.6 | L88: 260.15 | M88: 19.67271
A89: 80 | B89: GAIL | C89: 156.3 | D89: 157.35 | E89: 153.20 | F89: 150.10 | G89: 145.95 | H89: 160.45 | I89: 164.60 | J89: 167.70 | K89: 161.5 | L89: 154.25 | M89: 216.40237
A90: 81 | B90: GMRINFRA | C90: 38 | D90: 37.63 | E90: 35.87 | F90: 33.73 | G90: 31.97 | H90: 39.77 | I90: 41.53 | J90: 43.67 | K90: 39.4 | L90: 35.5 | M90: 664.7048
A91: 82 | B91: GLAND | C91: 3714.75 | D91: 3694.75 | E91: 3624.30 | F91: 3533.85 | G91: 3463.40 | H91: 3785.20 | I91: 3855.65 | J91: 3946.10 | K91: 3765.2 | L91: 3604.3 | M91: 2.03786
A92: 83 | B92: GLENMARK | C92: 509.1 | D92: 505.48 | E92: 496.22 | F92: 483.33 | G92: 474.07 | H92: 518.37 | I92: 527.63 | J92: 540.52 | K92: 514.75 | L92: 492.6 | M92: 18.69419
A93: 84 | B93: GODREJAGRO | C93: 633.85 | D93: 637.05 | E93: 630.05 | F93: 626.25 | G93: 619.25 | H93: 640.85 | I93: 647.85 | J93: 651.65 | K93: 644.05 | L93: 633.25 | M93: 1.28293
A94: 85 | B94: GODREJCP | C94: 1022.35 | D94: 1032.07 | E94: 1005.48 | F94: 988.62 | G94: 962.03 | H94: 1048.93 | I94: 1075.52 | J94: 1092.38 | K94: 1058.65 | L94: 1015.2 | M94: 15.58499
A95: 86 | B95: GODREJIND | C95: 574 | D95: 571.98 | E95: 564.97 | F95: 555.93 | G95: 548.92 | H95: 581.02 | I95: 588.03 | J95: 597.07 | K95: 579 | L95: 562.95 | M95: 1.60916
A96: 87 | B96: GODREJPROP | C96: 2309.5 | D96: 2305.83 | E96: 2201.67 | F96: 2093.83 | G96: 1989.67 | H96: 2413.67 | I96: 2517.83 | J96: 2625.67 | K96: 2410 | L96: 2198 | M96: 56.53173
A97: 88 | B97: GRASIM | C97: 1669.9 | D97: 1661.15 | E97: 1643.80 | F97: 1617.70 | G97: 1600.35 | H97: 1687.25 | I97: 1704.60 | J97: 1730.70 | K97: 1678.5 | L97: 1635.05 | M97: 8.18653
A98: 89 | B98: GUJGASLTD | C98: 625.5 | D98: 625.95 | E98: 617.80 | F98: 610.10 | G98: 601.95 | H98: 633.65 | I98: 641.80 | J98: 649.50 | K98: 634.1 | L98: 618.25 | M98: 40.77657
A99: 90 | B99: GSPL | C99: 322.6 | D99: 316.00 | E99: 309.00 | F99: 295.40 | G99: 288.40 | H99: 329.60 | I99: 336.60 | J99: 350.20 | K99: 323 | L99: 302.4 | M99: 18.60212
A100: 91 | B100: HCLTECH | C100: 1281.2 | D100: 1280.48 | E100: 1259.52 | F100: 1237.83 | G100: 1216.87 | H100: 1302.17 | I100: 1323.13 | J100: 1344.82 | K100: 1301.45 | L100: 1258.8 | M100: 46.39821
A101: 92 | B101: HDFCAMC | C101: 2905.15 | D101: 2905.87 | E101: 2874.93 | F101: 2844.72 | G101: 2813.78 | H101: 2936.08 | I101: 2967.02 | J101: 2997.23 | K101: 2936.8 | L101: 2875.65 | M101: 73.38287
A102: 93 | B102: HDFCBANK | C102: 1593.85 | D102: 1595.20 | E102: 1583.80 | F102: 1573.75 | G102: 1562.35 | H102: 1605.25 | I102: 1616.65 | J102: 1626.70 | K102: 1606.6 | L102: 1585.15 | M102: 81.31518
A103: 94 | B103: HDFCLIFE | C103: 734.75 | D103: 731.25 | E103: 724.50 | F103: 714.25 | G103: 707.50 | H103: 741.50 | I103: 748.25 | J103: 758.50 | K103: 738 | L103: 721 | M103: 52.00234
A104: 95 | B104: HAVELLS | C104: 1367.85 | D104: 1365.43 | E104: 1353.42 | F104: 1338.98 | G104: 1326.97 | H104: 1379.87 | I104: 1391.88 | J104: 1406.32 | K104: 1377.45 | L104: 1351 | M104: 8.69402
A105: 96 | B105: HEROMOTOCO | C105: 2886.15 | D105: 2890.73 | E105: 2860.92 | F105: 2835.68 | G105: 2805.87 | H105: 2915.97 | I105: 2945.78 | J105: 2971.02 | K105: 2920.55 | L105: 2865.5 | M105: 6.13787
A106: 97 | B106: HINDALCO | C106: 494.15 | D106: 488.15 | E106: 479.40 | F106: 464.65 | G106: 455.90 | H106: 502.90 | I106: 511.65 | J106: 526.40 | K106: 496.9 | L106: 473.4 | M106: 95.0822
A107: 98 | B107: HAL | C107: 1339.2 | D107: 1346.68 | E107: 1319.57 | F107: 1299.93 | G107: 1272.82 | H107: 1366.32 | I107: 1393.43 | J107: 1413.07 | K107: 1373.8 | L107: 1327.05 | M107: 12.40587
A108: 99 | B108: HINDPETRO | C108: 299.6 | D108: 296.50 | E108: 292.10 | F108: 284.60 | G108: 280.20 | H108: 304.00 | I108: 308.40 | J108: 315.90 | K108: 300.9 | L108: 289 | M108: 119.27055
A109: 100 | B109: HINDUNILVR | C109: 2685.3 | D109: 2702.25 | E109: 2660.05 | F109: 2634.80 | G109: 2592.60 | H109: 2727.50 | I109: 2769.70 | J109: 2794.95 | K109: 2744.45 | L109: 2677 | M109: 15.03894
A110: 101 | B110: HINDZINC | C110: 321.85 | D110: 321.50 | E110: 318.35 | F110: 314.85 | G110: 311.70 | H110: 325.00 | I110: 328.15 | J110: 331.65 | K110: 324.65 | L110: 318 | M110: 16.13303
A111: 102 | B111: HDFC | C111: 2746.45 | D111: 2759.50 | E111: 2726.05 | F111: 2705.65 | G111: 2672.20 | H111: 2779.90 | I111: 2813.35 | J111: 2833.75 | K111: 2792.95 | L111: 2739.1 | M111: 33.33322
A112: 103 | B112: ICICIBANK | C112: 709.5 | D112: 707.58 | E112: 703.22 | F112: 696.93 | G112: 692.57 | H112: 713.87 | I112: 718.23 | J112: 724.52 | K112: 711.95 | L112: 701.3 | M112: 114.53404
A113: 104 | B113: ICICIGI | C113: 1600.4 | D113: 1581.83 | E113: 1558.62 | F113: 1516.83 | G113: 1493.62 | H113: 1623.62 | I113: 1646.83 | J113: 1688.62 | K113: 1605.05 | L113: 1540.05 | M113: 7.79976
A114: 105 | B114: ICICIPRULI | C114: 673 | D114: 670.43 | E114: 662.37 | F114: 651.73 | G114: 643.67 | H114: 681.07 | I114: 689.13 | J114: 699.77 | K114: 678.5 | L114: 659.8 | M114: 8.09602
A115: 106 | B115: ISEC | C115: 759.1 | D115: 747.70 | E115: 731.40 | F115: 703.70 | G115: 687.40 | H115: 775.40 | I115: 791.70 | J115: 819.40 | K115: 764 | L115: 720 | M115: 4.04784
A116: 107 | B116: IDFCFIRSTB | C116: 48.3 | D116: 47.57 | E116: 46.48 | F116: 44.67 | G116: 43.58 | H116: 49.38 | I116: 50.47 | J116: 52.28 | K116: 48.65 | L116: 45.75 | M116: 351.69381
A117: 108 | B117: ITC | C117: 238.1 | D117: 238.40 | E117: 235.40 | F117: 232.70 | G117: 229.70 | H117: 241.10 | I117: 244.10 | J117: 246.80 | K117: 241.4 | L117: 235.7 | M117: 154.50046
A118: 109 | B118: IBULHSGFIN | C118: 228.55 | D118: 228.13 | E118: 222.97 | F118: 217.38 | G118: 212.22 | H118: 233.72 | I118: 238.88 | J118: 244.47 | K118: 233.3 | L118: 222.55 | M118: 139.68909
A119: 110 | B119: INDIAMART | C119: 8249.6 | D119: 8256.72 | E119: 8168.43 | F119: 8087.27 | G119: 7998.98 | H119: 8337.88 | I119: 8426.17 | J119: 8507.33 | K119: 8345 | L119: 8175.55 | M119: 0.73859
A120: 111 | B120: INDHOTEL | C120: 185.3 | D120: 186.65 | E120: 182.65 | F120: 180.00 | G120: 176.00 | H120: 189.30 | I120: 193.30 | J120: 195.95 | K120: 190.65 | L120: 184 | M120: 94.96831
A121: 112 | B121: IOC | C121: 127.45 | D121: 125.82 | E121: 123.63 | F121: 119.82 | G121: 117.63 | H121: 129.63 | I121: 131.82 | J121: 135.63 | K121: 128 | L121: 122 | M121: 198.48536
A122: 113 | B122: IRCTC | C122: 3770.15 | D122: 3794.87 | E122: 3730.83 | F122: 3691.52 | G122: 3627.48 | H122: 3834.18 | I122: 3898.22 | J122: 3937.53 | K122: 3858.9 | L122: 3755.55 | M122: 25.79151
A123: 114 | B123: IGL | C123: 518.65 | D123: 516.53 | E123: 512.42 | F123: 506.18 | G123: 502.07 | H123: 522.77 | I123: 526.88 | J123: 533.12 | K123: 520.65 | L123: 510.3 | M123: 49.47601
A124: 115 | B124: INDUSTOWER | C124: 318 | D124: 319.35 | E124: 311.10 | F124: 304.20 | G124: 295.95 | H124: 326.25 | I124: 334.50 | J124: 341.40 | K124: 327.6 | L124: 312.45 | M124: 96.90718
A125: 116 | B125: INDUSINDBK | C125: 1123.2 | D125: 1124.73 | E125: 1112.57 | F125: 1101.93 | G125: 1089.77 | H125: 1135.37 | I125: 1147.53 | J125: 1158.17 | K125: 1136.9 | L125: 1114.1 | M125: 55.74048
A126: 117 | B126: NAUKRI | C126: 6441.8 | D126: 6509.87 | E126: 6342.93 | F126: 6244.07 | G126: 6077.13 | H126: 6608.73 | I126: 6775.67 | J126: 6874.53 | K126: 6676.8 | L126: 6411 | M126: 6.44462
A127: 118 | B127: INFY | C127: 1692.25 | D127: 1682.88 | E127: 1664.37 | F127: 1636.48 | G127: 1617.97 | H127: 1710.77 | I127: 1729.28 | J127: 1757.17 | K127: 1701.4 | L127: 1655 | M127: 77.92548
A128: 119 | B128: INDIGO | C128: 2009.3 | D128: 2022.42 | E128: 1986.93 | F128: 1964.57 | G128: 1929.08 | H128: 2044.78 | I128: 2080.27 | J128: 2102.63 | K128: 2057.9 | L128: 2000.05 | M128: 6.93658
A129: 120 | B129: IPCALAB | C129: 2357.25 | D129: 2363.52 | E129: 2317.03 | F129: 2276.82 | G129: 2230.33 | H129: 2403.73 | I129: 2450.22 | J129: 2490.43 | K129: 2410 | L129: 2323.3 | M129: 1.65599
A130: 121 | B130: JSWENERGY | C130: 385.05 | D130: 376.72 | E130: 368.33 | F130: 351.62 | G130: 343.23 | H130: 393.43 | I130: 401.82 | J130: 418.53 | K130: 385.1 | L130: 360 | M130: 15.45461
A131: 122 | B131: JSWSTEEL | C131: 679.8 | D131: 672.57 | E131: 660.83 | F131: 641.87 | G131: 630.13 | H131: 691.53 | I131: 703.27 | J131: 722.23 | K131: 684.3 | L131: 653.6 | M131: 73.45149
A132: 123 | B132: JINDALSTEL | C132: 382.5 | D132: 375.90 | E132: 365.00 | F132: 347.50 | G132: 336.60 | H132: 393.40 | I132: 404.30 | J132: 421.80 | K132: 386.8 | L132: 358.4 | M132: 185.37905
A133: 124 | B133: JUBLFOOD | C133: 4070.5 | D133: 4045.93 | E133: 3966.37 | F133: 3862.23 | G133: 3782.67 | H133: 4150.07 | I133: 4229.63 | J133: 4333.77 | K133: 4125.5 | L133: 3941.8 | M133: 5.31589
A134: 125 | B134: KOTAKBANK | C134: 2030.45 | D134: 2036.87 | E134: 2013.73 | F134: 1997.02 | G134: 1973.88 | H134: 2053.58 | I134: 2076.72 | J134: 2093.43 | K134: 2060 | L134: 2020.15 | M134: 34.20314
A135: 126 | B135: L&TFH | C135: 89.9 | D135: 89.03 | E135: 87.77 | F135: 85.63 | G135: 84.37 | H135: 91.17 | I135: 92.43 | J135: 94.57 | K135: 90.3 | L135: 86.9 | M135: 128.17821
A136: 127 | B136: LTTS | C136: 4785.8 | D136: 4731.67 | E136: 4565.33 | F136: 4344.87 | G136: 4178.53 | H136: 4952.13 | I136: 5118.47 | J136: 5338.93 | K136: 4898 | L136: 4511.2 | M136: 9.31712
A137: 128 | B137: LICHSGFIN | C137: 434.95 | D137: 434.72 | E137: 428.93 | F137: 422.92 | G137: 417.13 | H137: 440.73 | I137: 446.52 | J137: 452.53 | K137: 440.5 | L137: 428.7 | M137: 26.25582
A138: 129 | B138: LTI | C138: 5744.6 | D138: 5766.70 | E138: 5613.45 | F138: 5482.30 | G138: 5329.05 | H138: 5897.85 | I138: 6051.10 | J138: 6182.25 | K138: 5919.95 | L138: 5635.55 | M138: 7.83825
A139: 130 | B139: LT | C139: 1721 | D139: 1726.53 | E139: 1711.07 | F139: 1701.13 | G139: 1685.67 | H139: 1736.47 | I139: 1751.93 | J139: 1761.87 | K139: 1742 | L139: 1716.6 | M139: 16.98747
A140: 131 | B140: LAURUSLABS | C140: 599.7 | D140: 596.32 | E140: 590.63 | F140: 581.57 | G140: 575.88 | H140: 605.38 | I140: 611.07 | J140: 620.13 | K140: 602 | L140: 587.25 | M140: 19.41262
A141: 132 | B141: LUPIN | C141: 947.55 | D141: 952.20 | E141: 940.35 | F141: 933.15 | G141: 921.30 | H141: 959.40 | I141: 971.25 | J141: 978.45 | K141: 964.05 | L141: 945 | M141: 33.89317
A142: 133 | B142: MRF | C142: 79056.7 | D142: 79463.08 | E142: 78494.67 | F142: 77932.63 | G142: 76964.22 | H142: 80025.12 | I142: 80993.53 | J142: 81555.57 | K142: 80431.5 | L142: 78901.05 | M142: 0.25732
A143: 134 | B143: MGL | C143: 1075.1 | D143: 1071.47 | E143: 1062.38 | F143: 1049.67 | G143: 1040.58 | H143: 1084.18 | I143: 1093.27 | J143: 1105.98 | K143: 1080.55 | L143: 1058.75 | M143: 5.58127
A144: 135 | B144: M&MFIN | C144: 183.5 | D144: 181.47 | E144: 177.48 | F144: 171.47 | G144: 167.48 | H144: 187.48 | I144: 191.47 | J144: 197.48 | K144: 185.45 | L144: 175.45 | M144: 56.21283
A145: 136 | B145: M&M | C145: 812.1 | D145: 808.93 | E145: 802.17 | F145: 792.23 | G145: 785.47 | H145: 818.87 | I145: 825.63 | J145: 835.57 | K145: 815.7 | L145: 799 | M145: 22.91977
A146: 137 | B146: MANAPPURAM | C146: 173.25 | D146: 171.77 | E146: 168.28 | F146: 163.32 | G146: 159.83 | H146: 176.73 | I146: 180.22 | J146: 185.18 | K146: 175.25 | L146: 166.8 | M146: 55.49571
A147: 138 | B147: MARICO | C147: 553.45 | D147: 553.30 | E147: 547.40 | F147: 541.35 | G147: 535.45 | H147: 559.35 | I147: 565.25 | J147: 571.30 | K147: 559.2 | L147: 547.25 | M147: 20.90106
A148: 139 | B148: MARUTI | C148: 7384.05 | D148: 7380.02 | E148: 7295.03 | F148: 7206.02 | G148: 7121.03 | H148: 7469.03 | I148: 7554.02 | J148: 7643.03 | K148: 7465 | L148: 7291 | M148: 6.43556
A149: 140 | B149: MFSL | C149: 1004.3 | D149: 998.33 | E149: 988.02 | F149: 971.73 | G149: 961.42 | H149: 1014.62 | I149: 1024.93 | J149: 1041.22 | K149: 1008.65 | L149: 982.05 | M149: 13.36616
A150: 141 | B150: MINDTREE | C150: 4231.9 | D150: 4228.45 | E150: 4121.90 | F150: 4011.90 | G150: 3905.35 | H150: 4338.45 | I150: 4445.00 | J150: 4555.00 | K150: 4335 | L150: 4118.45 | M150: 20.64426
A151: 142 | B151: MPHASIS | C151: 3145.15 | D151: 3147.70 | E151: 3069.40 | F151: 2993.65 | G151: 2915.35 | H151: 3223.45 | I151: 3301.75 | J151: 3377.50 | K151: 3226 | L151: 3071.95 | M151: 11.77475
A152: 143 | B152: MUTHOOTFIN | C152: 1469.5 | D152: 1467.20 | E152: 1449.30 | F152: 1429.10 | G152: 1411.20 | H152: 1487.40 | I152: 1505.30 | J152: 1525.50 | K152: 1485.1 | L152: 1447 | M152: 5.44221
A153: 144 | B153: NATCOPHARM | C153: 886 | D153: 886.37 | E153: 878.23 | F153: 870.47 | G153: 862.33 | H153: 894.13 | I153: 902.27 | J153: 910.03 | K153: 894.5 | L153: 878.6 | M153: 1.39999
A154: 145 | B154: NMDC | C154: 142.9 | D154: 142.27 | E154: 139.68 | F154: 136.47 | G154: 133.88 | H154: 145.48 | I154: 148.07 | J154: 151.28 | K154: 144.85 | L154: 139.05 | M154: 133.37719
A155: 146 | B155: NTPC | C155: 140.65 | D155: 138.50 | E155: 132.75 | F155: 124.85 | G155: 119.10 | H155: 146.40 | I155: 152.15 | J155: 160.05 | K155: 144.25 | L155: 130.6 | M155: 758.5939
A156: 147 | B156: NAVINFLUOR | C156: 3665.15 | D156: 3681.72 | E156: 3628.43 | F156: 3591.72 | G156: 3538.43 | H156: 3718.43 | I156: 3771.72 | J156: 3808.43 | K156: 3735 | L156: 3645 | M156: 2.45965
A157: 148 | B157: NESTLEIND | C157: 19506.75 | D157: 19542.80 | E157: 19385.60 | F157: 19264.45 | G157: 19107.25 | H157: 19663.95 | I157: 19821.15 | J157: 19942.30 | K157: 19700 | L157: 19421.65 | M157: 0.46295
A158: 149 | B158: NAM-INDIA | C158: 431.6 | D158: 429.05 | E158: 424.10 | F158: 416.60 | G158: 411.65 | H158: 436.55 | I158: 441.50 | J158: 449.00 | K158: 434 | L158: 421.55 | M158: 6.14132
A159: 150 | B159: OBEROIRLTY | C159: 934.6 | D159: 921.53 | E159: 894.07 | F159: 853.53 | G159: 826.07 | H159: 962.07 | I159: 989.53 | J159: 1030.07 | K159: 949 | L159: 881 | M159: 22.06118
A160: 151 | B160: ONGC | C160: 144.75 | D160: 144.30 | E160: 139.80 | F160: 134.85 | G160: 130.35 | H160: 149.25 | I160: 153.75 | J160: 158.70 | K160: 148.8 | L160: 139.35 | M160: 680.03697
A161: 152 | B161: OIL | C161: 254.45 | D161: 249.48 | E161: 233.97 | F161: 213.48 | G161: 197.97 | H161: 269.97 | I161: 285.48 | J161: 305.97 | K161: 265 | L161: 229 | M161: 104.18003
A162: 153 | B162: PIIND | C162: 3243.55 | D162: 3205.83 | E162: 3142.72 | F162: 3041.88 | G162: 2978.77 | H162: 3306.67 | I162: 3369.78 | J162: 3470.62 | K162: 3268.95 | L162: 3105 | M162: 9.79437
A163: 154 | B163: PAGEIND | C163: 32338.6 | D163: 32415.97 | E163: 31932.03 | F163: 31525.47 | G163: 31041.53 | H163: 32822.53 | I163: 33306.47 | J163: 33713.03 | K163: 32899.9 | L163: 32009.4 | M163: 0.12605
A164: 155 | B164: PETRONET | C164: 239.5 | D164: 239.65 | E164: 236.40 | F164: 233.30 | G164: 230.05 | H164: 242.75 | I164: 246.00 | J164: 249.10 | K164: 242.9 | L164: 236.55 | M164: 107.62782
A165: 156 | B165: PFIZER | C165: 5613.15 | D165: 5600.75 | E165: 5567.90 | F165: 5522.65 | G165: 5489.80 | H165: 5646.00 | I165: 5678.85 | J165: 5724.10 | K165: 5633.6 | L165: 5555.5 | M165: 0.22583
A166: 157 | B166: PIDILITIND | C166: 2402.25 | D166: 2401.27 | E166: 2385.53 | F166: 2368.82 | G166: 2353.08 | H166: 2417.98 | I166: 2433.72 | J166: 2450.43 | K166: 2417 | L166: 2384.55 | M166: 2.23281
A167: 158 | B167: PEL | C167: 2642.15 | D167: 2657.15 | E167: 2611.00 | F167: 2579.85 | G167: 2533.70 | H167: 2688.30 | I167: 2734.45 | J167: 2765.60 | K167: 2703.3 | L167: 2626 | M167: 10.02614
A168: 159 | B168: POLYCAB | C168: 2338.05 | D168: 2332.68 | E168: 2310.37 | F168: 2282.68 | G168: 2260.37 | H168: 2360.37 | I168: 2382.68 | J168: 2410.37 | K168: 2355 | L168: 2305 | M168: 3.28673
A169: 160 | B169: PFC | C169: 144.25 | D169: 144.25 | E169: 140.35 | F169: 136.45 | G169: 132.55 | H169: 148.15 | I169: 152.05 | J169: 155.95 | K169: 148.15 | L169: 140.35 | M169: 145.22007
A170: 161 | B170: POWERGRID | C170: 195.05 | D170: 191.27 | E170: 186.23 | F170: 177.42 | G170: 172.38 | H170: 200.08 | I170: 205.12 | J170: 213.93 | K170: 196.3 | L170: 182.45 | M170: 402.64997
A171: 162 | B171: PRESTIGE | C171: 478.15 | D171: 473.68 | E171: 464.62 | F171: 451.08 | G171: 442.02 | H171: 487.22 | I171: 496.28 | J171: 509.82 | K171: 482.75 | L171: 460.15 | M171: 20.37043
A172: 163 | B172: PGHH | C172: 13697.35 | D172: 13767.33 | E172: 13560.22 | F172: 13423.08 | G172: 13215.97 | H172: 13904.47 | I172: 14111.58 | J172: 14248.72 | K172: 13974.45 | L172: 13630.2 | M172: 0.10065
A173: 164 | B173: PNB | C173: 39.65 | D173: 39.72 | E173: 38.43 | F173: 37.22 | G173: 35.93 | H173: 40.93 | I173: 42.22 | J173: 43.43 | K173: 41 | L173: 38.5 | M173: 1036.95312
A174: 165 | B174: RBLBANK | C174: 188.15 | D174: 187.28 | E174: 184.42 | F174: 180.68 | G174: 177.82 | H174: 191.02 | I174: 193.88 | J174: 197.62 | K174: 190.15 | L174: 183.55 | M174: 60.60888
A175: 166 | B175: RECLTD | C175: 162.35 | D175: 161.72 | E175: 157.43 | F175: 152.52 | G175: 148.23 | H175: 166.63 | I175: 170.92 | J175: 175.83 | K175: 166 | L175: 156.8 | M175: 94.32123
A176: 167 | B176: RELIANCE | C176: 2527.85 | D176: 2539.30 | E176: 2508.60 | F176: 2489.35 | G176: 2458.65 | H176: 2558.55 | I176: 2589.25 | J176: 2608.50 | K176: 2570 | L176: 2520.05 | M176: 44.85721
A177: 168 | B177: SBICARD | C177: 1020.1 | D177: 1019.03 | E177: 1011.07 | F177: 1002.03 | G177: 994.07 | H177: 1028.07 | I177: 1036.03 | J177: 1045.07 | K177: 1027 | L177: 1010 | M177: 31.68484
A178: 169 | B178: SBILIFE | C178: 1205.95 | D178: 1205.85 | E178: 1196.90 | F178: 1187.85 | G178: 1178.90 | H178: 1214.90 | I178: 1223.85 | J178: 1232.90 | K178: 1214.8 | L178: 1196.8 | M178: 16.23118
A179: 170 | B179: SRF | C179: 11195.45 | D179: 11110.20 | E179: 10965.40 | F179: 10735.35 | G179: 10590.55 | H179: 11340.25 | I179: 11485.05 | J179: 11715.10 | K179: 11255 | L179: 10880.15 | M179: 3.1614
A180: 171 | B180: SANOFI | C180: 7785.25 | D180: 7829.98 | E180: 7730.27 | F180: 7675.28 | G180: 7575.57 | H180: 7884.97 | I180: 7984.68 | J180: 8039.67 | K180: 7929.7 | L180: 7775 | M180: 0.2686
A181: 172 | B181: SHREECEM | C181: 29382.4 | D181: 29358.50 | E181: 29191.90 | F181: 29001.40 | G181: 28834.80 | H181: 29549.00 | I181: 29715.60 | J181: 29906.10 | K181: 29525.1 | L181: 29168 | M181: 0.20612
A182: 173 | B182: SRTRANSFIN | C182: 1300.35 | D182: 1299.18 | E182: 1287.17 | F182: 1273.98 | G182: 1261.97 | H182: 1312.37 | I182: 1324.38 | J182: 1337.57 | K182: 1311.2 | L182: 1286 | M182: 9.06441
A183: 174 | B183: SIEMENS | C183: 2127.55 | D183: 2114.85 | E183: 2084.70 | F183: 2041.85 | G183: 2011.70 | H183: 2157.70 | I183: 2187.85 | J183: 2230.70 | K183: 2145 | L183: 2072 | M183: 2.60703
A184: 175 | B184: SBIN | C184: 460 | D184: 453.80 | E184: 445.30 | F184: 430.60 | G184: 422.10 | H184: 468.50 | I184: 477.00 | J184: 491.70 | K184: 462.3 | L184: 439.1 | M184: 386.35938
A185: 176 | B185: SAIL | C185: 114.4 | D185: 113.47 | E185: 111.53 | F185: 108.67 | G185: 106.73 | H185: 116.33 | I185: 118.27 | J185: 121.13 | K185: 115.4 | L185: 110.6 | M185: 798.33166
A186: 177 | B186: SUNPHARMA | C186: 811.3 | D186: 800.80 | E186: 781.85 | F186: 752.40 | G186: 733.45 | H186: 830.25 | I186: 849.20 | J186: 878.65 | K186: 819.75 | L186: 771.35 | M186: 185.65413
A187: 178 | B187: SUNTV | C187: 500.7 | D187: 500.37 | E187: 494.33 | F187: 487.97 | G187: 481.93 | H187: 506.73 | I187: 512.77 | J187: 519.13 | K187: 506.4 | L187: 494 | M187: 10.71
A188: 179 | B188: SYNGENE | C188: 612.05 | D188: 615.72 | E188: 603.48 | F188: 594.92 | G188: 582.68 | H188: 624.28 | I188: 636.52 | J188: 645.08 | K188: 627.95 | L188: 607.15 | M188: 8.80533
A189: 180 | B189: TVSMOTOR | C189: 550.75 | D189: 550.38 | E189: 543.42 | F189: 536.08 | G189: 529.12 | H189: 557.72 | I189: 564.68 | J189: 572.02 | K189: 557.35 | L189: 543.05 | M189: 9.66528
A190: 181 | B190: TATACHEM | C190: 933.1 | D190: 921.97 | E190: 906.33 | F190: 879.57 | G190: 863.93 | H190: 948.73 | I190: 964.37 | J190: 991.13 | K190: 937.6 | L190: 895.2 | M190: 37.24758
A191: 182 | B191: TCS | C191: 3791.9 | D191: 3773.35 | E191: 3740.70 | F191: 3689.50 | G191: 3656.85 | H191: 3824.55 | I191: 3857.20 | J191: 3908.40 | K191: 3806 | L191: 3722.15 | M191: 24.89161
A192: 183 | B192: TATACONSUM | C192: 823.45 | D192: 821.28 | E192: 813.17 | F192: 802.88 | G192: 794.77 | H192: 831.57 | I192: 839.68 | J192: 849.97 | K192: 829.4 | L192: 811 | M192: 21.56442
A193: 184 | B193: TATAELXSI | C193: 5597.75 | D193: 5615.17 | E193: 5546.33 | F193: 5494.92 | G193: 5426.08 | H193: 5666.58 | I193: 5735.42 | J193: 5786.83 | K193: 5684 | L193: 5563.75 | M193: 1.32221
A194: 185 | B194: TATAMOTORS | C194: 330.25 | D194: 329.08 | E194: 325.17 | F194: 320.08 | G194: 316.17 | H194: 334.17 | I194: 338.08 | J194: 343.17 | K194: 333 | L194: 324 | M194: 197.4015
A195: 186 | B195: TATAPOWER | C195: 151.6 | D195: 149.75 | E195: 140.75 | F195: 129.90 | G195: 120.90 | H195: 160.60 | I195: 169.60 | J195: 180.45 | K195: 158.75 | L195: 138.9 | M195: 1267.4699
A196: 187 | B196: TATASTEEL | C196: 1295.55 | D196: 1290.85 | E196: 1271.90 | F196: 1248.25 | G196: 1229.30 | H196: 1314.50 | I196: 1333.45 | J196: 1357.10 | K196: 1309.8 | L196: 1267.2 | M196: 94.94577
A197: 188 | B197: TECHM | C197: 1395.35 | D197: 1392.35 | E197: 1375.75 | F197: 1356.15 | G197: 1339.55 | H197: 1411.95 | I197: 1428.55 | J197: 1448.15 | K197: 1408.95 | L197: 1372.75 | M197: 79.48104
A198: 189 | B198: RAMCOCEM | C198: 992.45 | D198: 987.95 | E198: 978.90 | F198: 965.35 | G198: 956.30 | H198: 1001.50 | I198: 1010.55 | J198: 1024.10 | K198: 997 | L198: 974.4 | M198: 4.09438
A199: 190 | B199: TITAN | C199: 2147.5 | D199: 2141.82 | E199: 2115.73 | F199: 2083.97 | G199: 2057.88 | H199: 2173.58 | I199: 2199.67 | J199: 2231.43 | K199: 2167.9 | L199: 2110.05 | M199: 9.12912
A200: 191 | B200: TORNTPHARM | C200: 3134.85 | D200: 3134.00 | E200: 3082.95 | F200: 3031.05 | G200: 2980.00 | H200: 3185.90 | I200: 3236.95 | J200: 3288.85 | K200: 3185.05 | L200: 3082.1 | M200: 2.42772
A201: 192 | B201: TORNTPOWER | C201: 516.4 | D201: 514.05 | E201: 500.75 | F201: 485.10 | G201: 471.80 | H201: 529.70 | I201: 543.00 | J201: 558.65 | K201: 527.35 | L201: 498.4 | M201: 48.94804
A202: 193 | B202: TRENT | C202: 1009.6 | D202: 997.85 | E202: 981.75 | F202: 953.90 | G202: 937.80 | H202: 1025.70 | I202: 1041.80 | J202: 1069.65 | K202: 1013.95 | L202: 970 | M202: 4.15354
A203: 194 | B203: UPL | C203: 717.15 | D203: 716.35 | E203: 709.80 | F203: 702.45 | G203: 695.90 | H203: 723.70 | I203: 730.25 | J203: 737.60 | K203: 722.9 | L203: 709 | M203: 21.60616
A204: 195 | B204: ULTRACEMCO | C204: 7464.55 | D204: 7521.97 | E204: 7382.58 | F204: 7300.62 | G204: 7161.23 | H204: 7603.93 | I204: 7743.32 | J204: 7825.28 | K204: 7661.35 | L204: 7440 | M204: 4.90626
A205: 196 | B205: UNIONBANK | C205: 36.4 | D205: 35.98 | E205: 35.17 | F205: 33.93 | G205: 33.12 | H205: 37.22 | I205: 38.03 | J205: 39.27 | K205: 36.8 | L205: 34.75 | M205: 224.49251
... 29 more rows

Sheet MidCap Intra
L5: Back To Main Page
A6: FOR INTRA DAY TRADING | K6: =Main!B10 -> 2021-09-30
A9: Sr.no | B9: Scrip | C9: CLOSE RATE | D9: Pivot Point | E9: Supports | H9: Resistances
E10: S1 | F10: S2 | G10: S3 | H10: R1 | I10: R2 | J10: R3 | K10: HIGH | L10: LOW | M10: Total Trade Quanity in Lakhs
A11: 1 | B11: 3MINDIA | C11: 24685.65 | D11: 24660.33 | E11: 24525.32 | F11: 24364.98 | G11: 24229.97 | H11: 24820.67 | I11: 24955.68 | J11: 25116.02 | K11: 24795.35 | L11: 24500 | M11: 0.01158
A12: 2 | B12: ABB | C12: 1820.55 | D12: 1818.82 | E12: 1798.83 | F12: 1777.12 | G12: 1757.13 | H12: 1840.53 | I12: 1860.52 | J12: 1882.23 | K12: 1838.8 | L12: 1797.1 | M12: 1.52524
A13: 3 | B13: POWERINDIA | C13: 2410.35 | D13: 2420.17 | E13: 2265.33 | F13: 2120.32 | G13: 1965.48 | H13: 2565.18 | I13: 2720.02 | J13: 2865.03 | K13: 2575 | L13: 2275.15 | M13: 4.25566
A14: 4 | B14: ACC | C14: 2271.1 | D14: 2269.85 | E14: 2246.35 | F14: 2221.60 | G14: 2198.10 | H14: 2294.60 | I14: 2318.10 | J14: 2342.85 | K14: 2293.35 | L14: 2245.1 | M14: 5.18866
A15: 5 | B15: AIAENG | C15: 1921 | D15: 1932.32 | E15: 1904.68 | F15: 1888.37 | G15: 1860.73 | H15: 1948.63 | I15: 1976.27 | J15: 1992.58 | K15: 1959.95 | L15: 1916 | M15: 0.18358
A16: 6 | B16: APLAPOLLO | C16: 829.45 | D16: 831.48 | E16: 817.97 | F16: 806.48 | G16: 792.97 | H16: 842.97 | I16: 856.48 | J16: 867.97 | K16: 845 | L16: 820 | M16: 8.80113
A17: 7 | B17: AUBANK | C17: 1158.9 | D17: 1150.13 | E17: 1121.27 | F17: 1083.63 | G17: 1054.77 | H17: 1187.77 | I17: 1216.63 | J17: 1254.27 | K17: 1179 | L17: 1112.5 | M17: 38.2643
A18: 8 | B18: AARTIDRUGS | C18: 608.8 | D18: 609.43 | E18: 604.87 | F18: 600.93 | G18: 596.37 | H18: 613.37 | I18: 617.93 | J18: 621.87 | K18: 614 | L18: 605.5 | M18: 1.18604
A19: 9 | B19: AARTIIND | C19: 937.65 | D19: 932.00 | E19: 922.00 | F19: 906.35 | G19: 896.35 | H19: 947.65 | I19: 957.65 | J19: 973.30 | K19: 942 | L19: 916.35 | M19: 9.80092
A20: 10 | B20: AAVAS | C20: 2612.45 | D20: 2611.52 | E20: 2575.93 | F20: 2539.42 | G20: 2503.83 | H20: 2648.03 | I20: 2683.62 | J20: 2720.13 | K20: 2647.1 | L20: 2575 | M20: 0.51188
A21: 11 | B21: ABBOTINDIA | C21: 19555.8 | D21: 19922.53 | E21: 18834.27 | F21: 18112.73 | G21: 17024.47 | H21: 20644.07 | I21: 21732.33 | J21: 22453.87 | K21: 21010.8 | L21: 19201 | M21: 0.6512
A22: 12 | B22: ADANIENT | C22: 1485.65 | D22: 1482.65 | E22: 1467.30 | F22: 1448.95 | G22: 1433.60 | H22: 1501.00 | I22: 1516.35 | J22: 1534.70 | K22: 1498 | L22: 1464.3 | M22: 17.6435
A23: 13 | B23: ADANIGREEN | C23: 1138.65 | D23: 1133.23 | E23: 1116.67 | F23: 1094.68 | G23: 1078.12 | H23: 1155.22 | I23: 1171.78 | J23: 1193.77 | K23: 1149.8 | L23: 1111.25 | M23: 36.94509
A24: 14 | B24: ADANIPORTS | C24: 742 | D24: 741.95 | E24: 736.05 | F24: 730.10 | G24: 724.20 | H24: 747.90 | I24: 753.80 | J24: 759.75 | K24: 747.85 | L24: 736 | M24: 27.34053
A25: 15 | B25: ATGL | C25: 1417.85 | D25: 1397.78 | E25: 1370.07 | F25: 1322.28 | G25: 1294.57 | H25: 1445.57 | I25: 1473.28 | J25: 1521.07 | K25: 1425.5 | L25: 1350 | M25: 5.01516
A26: 16 | B26: ADANITRANS | C26: 1530.6 | D26: 1540.23 | E26: 1492.47 | F26: 1454.33 | G26: 1406.57 | H26: 1578.37 | I26: 1626.13 | J26: 1664.27 | K26: 1588 | L26: 1502.1 | M26: 2.43398
A27: 17 | B27: ABCAPITAL | C27: 114.15 | D27: 114.38 | E27: 113.07 | F27: 111.98 | G27: 110.67 | H27: 115.47 | I27: 116.78 | J27: 117.87 | K27: 115.7 | L27: 113.3 | M27: 25.55754
A28: 18 | B28: ABFRL | C28: 231.65 | D28: 228.13 | E28: 222.77 | F28: 213.88 | G28: 208.52 | H28: 237.02 | I28: 242.38 | J28: 251.27 | K28: 233.5 | L28: 219.25 | M28: 45.15673
A29: 19 | B29: ADVENZYMES | C29: 390.9 | D29: 390.27 | E29: 383.63 | F29: 376.37 | G29: 369.73 | H29: 397.53 | I29: 404.17 | J29: 411.43 | K29: 396.9 | L29: 383 | M29: 3.21684
A30: 20 | B30: AEGISCHEM | C30: 229.4 | D30: 231.47 | E30: 226.93 | F30: 224.47 | G30: 219.93 | H30: 233.93 | I30: 238.47 | J30: 240.93 | K30: 236 | L30: 229 | M30: 8.73009
A31: 21 | B31: AFFLE | C31: 5291.75 | D31: 5281.63 | E31: 5213.27 | F31: 5134.78 | G31: 5066.42 | H31: 5360.12 | I31: 5428.48 | J31: 5506.97 | K31: 5350 | L31: 5203.15 | M31: 0.62522
A32: 22 | B32: AJANTPHARM | C32: 2301.2 | D32: 2263.83 | E32: 2207.67 | F32: 2114.13 | G32: 2057.97 | H32: 2357.37 | I32: 2413.53 | J32: 2507.07 | K32: 2320 | L32: 2170.3 | M32: 1.12425
A33: 23 | B33: AKZOINDIA | C33: 2258.3 | D33: 2241.17 | E33: 2207.93 | F33: 2157.57 | G33: 2124.33 | H33: 2291.53 | I33: 2324.77 | J33: 2375.13 | K33: 2274.4 | L33: 2190.8 | M33: 0.39119
A34: 24 | B34: ALEMBICLTD | C34: 115.65 | D34: 115.80 | E34: 114.45 | F34: 113.25 | G34: 111.90 | H34: 117.00 | I34: 118.35 | J34: 119.55 | K34: 117.15 | L34: 114.6 | M34: 3.38804
A35: 25 | B35: APLLTD | C35: 794.75 | D35: 789.33 | E35: 780.67 | F35: 766.58 | G35: 757.92 | H35: 803.42 | I35: 812.08 | J35: 826.17 | K35: 798 | L35: 775.25 | M35: 1.75883
A36: 26 | B36: ALKEM | C36: 3936.05 | D36: 3960.88 | E36: 3879.77 | F36: 3823.48 | G36: 3742.37 | H36: 4017.17 | I36: 4098.28 | J36: 4154.57 | K36: 4042 | L36: 3904.6 | M36: 6.62987
A37: 27 | B37: ALKYLAMINE | C37: 3825.45 | D37: 3850.20 | E37: 3770.40 | F37: 3715.35 | G37: 3635.55 | H37: 3905.25 | I37: 3985.05 | J37: 4040.10 | K37: 3930 | L37: 3795.15 | M37: 0.66685
A38: 28 | B38: ALOKINDS | C38: 23.8 | D38: 23.85 | E38: 23.65 | F38: 23.50 | G38: 23.30 | H38: 24.00 | I38: 24.20 | J38: 24.35 | K38: 24.05 | L38: 23.7 | M38: 37.4687
A39: 29 | B39: AMARAJABAT | C39: 756.55 | D39: 754.03 | E39: 746.52 | F39: 736.48 | G39: 728.97 | H39: 764.07 | I39: 771.58 | J39: 781.62 | K39: 761.55 | L39: 744 | M39: 11.65596
A40: 30 | B40: AMBER | C40: 3086.65 | D40: 3079.78 | E40: 3052.87 | F40: 3019.08 | G40: 2992.17 | H40: 3113.57 | I40: 3140.48 | J40: 3174.27 | K40: 3106.7 | L40: 3046 | M40: 0.24711
A41: 31 | B41: AMBUJACEM | C41: 406.45 | D41: 405.87 | E41: 401.73 | F41: 397.02 | G41: 392.88 | H41: 410.58 | I41: 414.72 | J41: 419.43 | K41: 410 | L41: 401.15 | M41: 57.2878
A42: 32 | B42: ANGELBRKG | C42: 1278.55 | D42: 1278.85 | E42: 1259.70 | F42: 1240.85 | G42: 1221.70 | H42: 1297.70 | I42: 1316.85 | J42: 1335.70 | K42: 1298 | L42: 1260 | M42: 2.22939
A43: 33 | B43: APOLLOHOSP | C43: 4423.5 | D43: 4443.53 | E43: 4379.97 | F43: 4336.43 | G43: 4272.87 | H43: 4487.07 | I43: 4550.63 | J43: 4594.17 | K43: 4507.1 | L43: 4400 | M43: 5.71896
A44: 34 | B44: APOLLOTYRE | C44: 224.7 | D44: 224.95 | E44: 220.60 | F44: 216.50 | G44: 212.15 | H44: 229.05 | I44: 233.40 | J44: 237.50 | K44: 229.3 | L44: 220.85 | M44: 40.45085
A45: 35 | B45: ASAHIINDIA | C45: 358.95 | D45: 361.75 | E45: 353.25 | F45: 347.55 | G45: 339.05 | H45: 367.45 | I45: 375.95 | J45: 381.65 | K45: 370.25 | L45: 356.05 | M45: 1.17085
A46: 36 | B46: ASHOKLEY | C46: 129.35 | D46: 128.83 | E46: 126.72 | F46: 124.08 | G46: 121.97 | H46: 131.47 | I46: 133.58 | J46: 136.22 | K46: 130.95 | L46: 126.2 | M46: 189.91879
A47: 37 | B47: ASHOKA | C47: 97.4 | D47: 97.35 | E47: 96.70 | F47: 96.00 | G47: 95.35 | H47: 98.05 | I47: 98.70 | J47: 99.40 | K47: 98 | L47: 96.65 | M47: 6.0332
A48: 38 | B48: ASIANPAINT | C48: 3323.05 | D48: 3338.25 | E48: 3294.80 | F48: 3266.55 | G48: 3223.10 | H48: 3366.50 | I48: 3409.95 | J48: 3438.20 | K48: 3381.7 | L48: 3310 | M48: 9.73387
A49: 39 | B49: ASTERDM | C49: 210.55 | D49: 211.53 | E49: 208.62 | F49: 206.68 | G49: 203.77 | H49: 213.47 | I49: 216.38 | J49: 218.32 | K49: 214.45 | L49: 209.6 | M49: 4.50278
A50: 40 | B50: ASTRAZEN | C50: 3146.7 | D50: 3148.92 | E50: 3097.83 | F50: 3048.97 | G50: 2997.88 | H50: 3197.78 | I50: 3248.87 | J50: 3297.73 | K50: 3200 | L50: 3100.05 | M50: 0.49874
A51: 41 | B51: ASTRAL | C51: 2143.35 | D51: 2114.35 | E51: 2070.50 | F51: 1997.65 | G51: 1953.80 | H51: 2187.20 | I51: 2231.05 | J51: 2303.90 | K51: 2158.2 | L51: 2041.5 | M51: 9.12677
A52: 42 | B52: ATUL | C52: 9382.25 | D52: 9381.08 | E52: 9322.17 | F52: 9262.08 | G52: 9203.17 | H52: 9441.17 | I52: 9500.08 | J52: 9560.17 | K52: 9440 | L52: 9321 | M52: 0.03924
A53: 43 | B53: AUROPHARMA | C53: 727.95 | D53: 727.92 | E53: 718.93 | F53: 709.92 | G53: 700.93 | H53: 736.93 | I53: 745.92 | J53: 754.93 | K53: 736.9 | L53: 718.9 | M53: 22.40377
A54: 44 | B54: AVANTIFEED | C54: 539.75 | D54: 541.43 | E54: 536.67 | F54: 533.58 | G54: 528.82 | H54: 544.52 | I54: 549.28 | J54: 552.37 | K54: 546.2 | L54: 538.35 | M54: 1.25315
A55: 45 | B55: DMART | C55: 4251.2 | D55: 4283.05 | E55: 4170.15 | F55: 4089.10 | G55: 3976.20 | H55: 4364.10 | I55: 4477.00 | J55: 4558.05 | K55: 4395.95 | L55: 4202 | M55: 3.77254
A56: 46 | B56: AXISBANK | C56: 782.15 | D56: 783.38 | E56: 777.27 | F56: 772.38 | G56: 766.27 | H56: 788.27 | I56: 794.38 | J56: 799.27 | K56: 789.5 | L56: 778.5 | M56: 142.41004
A57: 47 | B57: BASF | C57: 3368.45 | D57: 3370.93 | E57: 3348.52 | F57: 3328.58 | G57: 3306.17 | H57: 3390.87 | I57: 3413.28 | J57: 3433.22 | K57: 3393.35 | L57: 3351 | M57: 0.68439
A58: 48 | B58: BEML | C58: 1434.4 | D58: 1427.18 | E58: 1397.37 | F58: 1360.33 | G58: 1330.52 | H58: 1464.22 | I58: 1494.03 | J58: 1531.07 | K58: 1457 | L58: 1390.15 | M58: 5.89823
A59: 49 | B59: BSE | C59: 1241.3 | D59: 1242.52 | E59: 1229.03 | F59: 1216.77 | G59: 1203.28 | H59: 1254.78 | I59: 1268.27 | J59: 1280.53 | K59: 1256 | L59: 1230.25 | M59: 4.66919
A60: 50 | B60: BAJAJ-AUTO | C60: 3899.25 | D60: 3895.05 | E60: 3854.20 | F60: 3809.15 | G60: 3768.30 | H60: 3940.10 | I60: 3980.95 | J60: 4026.00 | K60: 3935.9 | L60: 3850 | M60: 3.79896
A61: 51 | B61: BAJAJCON | C61: 256.5 | D61: 256.17 | E61: 254.43 | F61: 252.37 | G61: 250.63 | H61: 258.23 | I61: 259.97 | J61: 262.03 | K61: 257.9 | L61: 254.1 | M61: 2.45801
A62: 52 | B62: BAJAJELEC | C62: 1343.7 | D62: 1357.28 | E62: 1326.42 | F62: 1309.13 | G62: 1278.27 | H62: 1374.57 | I62: 1405.43 | J62: 1422.72 | K62: 1388.15 | L62: 1340 | M62: 1.37265
A63: 53 | B63: BAJFINANCE | C63: 7515.4 | D63: 7535.80 | E63: 7435.75 | F63: 7356.10 | G63: 7256.05 | H63: 7615.45 | I63: 7715.50 | J63: 7795.15 | K63: 7635.85 | L63: 7456.15 | M63: 9.45879
A64: 54 | B64: BAJAJFINSV | C64: 17433.75 | D64: 17463.15 | E64: 17278.40 | F64: 17123.05 | G64: 16938.30 | H64: 17618.50 | I64: 17803.25 | J64: 17958.60 | K64: 17647.9 | L64: 17307.8 | M64: 3.09712
A65: 55 | B65: BAJAJHLDNG | C65: 4712.55 | D65: 4726.32 | E65: 4636.23 | F65: 4559.92 | G65: 4469.83 | H65: 4802.63 | I65: 4892.72 | J65: 4969.03 | K65: 4816.4 | L65: 4650 | M65: 0.79366
A66: 56 | B66: BALAMINES | C66: 4602.6 | D66: 4576.43 | E66: 4477.87 | F66: 4353.13 | G66: 4254.57 | H66: 4701.17 | I66: 4799.73 | J66: 4924.47 | K66: 4675 | L66: 4451.7 | M66: 0.61462
A67: 57 | B67: BALKRISIND | C67: 2504.95 | D67: 2520.87 | E67: 2473.73 | F67: 2442.52 | G67: 2395.38 | H67: 2552.08 | I67: 2599.22 | J67: 2630.43 | K67: 2568 | L67: 2489.65 | M67: 4.41157
A68: 58 | B68: BALMLAWRIE | C68: 127.3 | D68: 127.87 | E68: 125.08 | F68: 122.87 | G68: 120.08 | H68: 130.08 | I68: 132.87 | J68: 135.08 | K68: 130.65 | L68: 125.65 | M68: 8.45158
A69: 59 | B69: BALRAMCHIN | C69: 356.5 | D69: 355.10 | E69: 350.50 | F69: 344.50 | G69: 339.90 | H69: 361.10 | I69: 365.70 | J69: 371.70 | K69: 359.7 | L69: 349.1 | M69: 5.78639
A70: 60 | B70: BANDHANBNK | C70: 284.4 | D70: 284.75 | E70: 279.50 | F70: 274.60 | G70: 269.35 | H70: 289.65 | I70: 294.90 | J70: 299.80 | K70: 290 | L70: 279.85 | M70: 66.25067
A71: 61 | B71: BANKBARODA | C71: 81.7 | D71: 80.62 | E71: 79.23 | F71: 76.77 | G71: 75.38 | H71: 83.08 | I71: 84.47 | J71: 86.93 | K71: 82 | L71: 78.15 | M71: 539.12004
A72: 62 | B72: BANKINDIA | C72: 55.1 | D72: 54.52 | E72: 53.28 | F72: 51.47 | G72: 50.23 | H72: 56.33 | I72: 57.57 | J72: 59.38 | K72: 55.75 | L72: 52.7 | M72: 196.61029
A73: 63 | B73: MAHABANK | C73: 18.85 | D73: 18.73 | E73: 18.22 | F73: 17.58 | G73: 17.07 | H73: 19.37 | I73: 19.88 | J73: 20.52 | K73: 19.25 | L73: 18.1 | M73: 84.68954
A74: 64 | B74: BATAINDIA | C74: 1763.45 | D74: 1761.28 | E74: 1742.42 | F74: 1721.38 | G74: 1702.52 | H74: 1782.32 | I74: 1801.18 | J74: 1822.22 | K74: 1780.15 | L74: 1740.25 | M74: 4.54672
A75: 65 | B75: BAYERCROP | C75: 5289.6 | D75: 5302.22 | E75: 5263.43 | F75: 5237.27 | G75: 5198.48 | H75: 5328.38 | I75: 5367.17 | J75: 5393.33 | K75: 5341 | L75: 5276.05 | M75: 0.10229
A76: 66 | B76: BERGEPAINT | C76: 817.15 | D76: 816.10 | E76: 811.00 | F76: 804.85 | G76: 799.75 | H76: 822.25 | I76: 827.35 | J76: 833.50 | K76: 821.2 | L76: 809.95 | M76: 4.94533
A77: 67 | B77: BDL | C77: 378.8 | D77: 379.10 | E77: 375.90 | F77: 373.00 | G77: 369.80 | H77: 382.00 | I77: 385.20 | J77: 388.10 | K77: 382.3 | L77: 376.2 | M77: 1.34088
A78: 68 | B78: BEL | C78: 205.15 | D78: 207.08 | E78: 201.77 | F78: 198.38 | G78: 193.07 | H78: 210.47 | I78: 215.78 | J78: 219.17 | K78: 212.4 | L78: 203.7 | M78: 91.26075
A79: 69 | B79: BHARATFORG | C79: 744.2 | D79: 744.60 | E79: 736.50 | F79: 728.80 | G79: 720.70 | H79: 752.30 | I79: 760.40 | J79: 768.10 | K79: 752.7 | L79: 736.9 | M79: 31.4974
A80: 70 | B80: BHEL | C80: 62.8 | D80: 62.38 | E80: 60.82 | F80: 58.83 | G80: 57.27 | H80: 64.37 | I80: 65.93 | J80: 67.92 | K80: 63.95 | L80: 60.4 | M80: 1303.67062
A81: 71 | B81: BPCL | C81: 436.9 | D81: 433.63 | E81: 429.27 | F81: 421.63 | G81: 417.27 | H81: 441.27 | I81: 445.63 | J81: 453.27 | K81: 438 | L81: 426 | M81: 76.25857
A82: 72 | B82: BHARATRAS | C82: 12097.9 | D82: 12198.57 | E82: 11898.33 | F82: 11698.77 | G82: 11398.53 | H82: 12398.13 | I82: 12698.37 | J82: 12897.93 | K82: 12498.8 | L82: 11999 | M82: 0.02857
A83: 73 | B83: BHARTIARTL | C83: 694.1 | D83: 695.08 | E83: 688.17 | F83: 682.23 | G83: 675.32 | H83: 701.02 | I83: 707.93 | J83: 713.87 | K83: 702 | L83: 689.15 | M83: 167.29859
A84: 74 | B84: BIOCON | C84: 362.6 | D84: 362.77 | E84: 358.93 | F84: 355.27 | G84: 351.43 | H84: 366.43 | I84: 370.27 | J84: 373.93 | K84: 366.6 | L84: 359.1 | M84: 13.85922
A85: 75 | B85: BIRLACORPN | C85: 1362.9 | D85: 1343.25 | E85: 1308.50 | F85: 1254.10 | G85: 1219.35 | H85: 1397.65 | I85: 1432.40 | J85: 1486.80 | K85: 1378 | L85: 1288.85 | M85: 3.23551
A86: 76 | B86: BSOFT | C86: 410.05 | D86: 411.90 | E86: 406.50 | F86: 402.95 | G86: 397.55 | H86: 415.45 | I86: 420.85 | J86: 424.40 | K86: 417.3 | L86: 408.35 | M86: 18.30811
A87: 77 | B87: BLISSGVS | C87: 110 | D87: 110.32 | E87: 108.78 | F87: 107.57 | G87: 106.03 | H87: 111.53 | I87: 113.07 | J87: 114.28 | K87: 111.85 | L87: 109.1 | M87: 2.21526
A88: 78 | B88: BLUEDART | C88: 6399.6 | D88: 6412.52 | E88: 6325.78 | F88: 6251.97 | G88: 6165.23 | H88: 6486.33 | I88: 6573.07 | J88: 6646.88 | K88: 6499.25 | L88: 6338.7 | M88: 0.13082
A89: 79 | B89: BLUESTARCO | C89: 888.3 | D89: 901.50 | E89: 863.80 | F89: 839.30 | G89: 801.60 | H89: 926.00 | I89: 963.70 | J89: 988.20 | K89: 939.2 | L89: 877 | M89: 4.22125
A90: 80 | B90: BBTC | C90: 1146.5 | D90: 1146.28 | E90: 1133.57 | F90: 1120.63 | G90: 1107.92 | H90: 1159.22 | I90: 1171.93 | J90: 1184.87 | K90: 1159 | L90: 1133.35 | M90: 0.42062
A91: 81 | B91: BOSCHLTD | C91: 15638.2 | D91: 15697.47 | E91: 15460.73 | F91: 15283.27 | G91: 15046.53 | H91: 15874.93 | I91: 16111.67 | J91: 16289.13 | K91: 15934.2 | L91: 15520 | M91: 0.42636
A92: 82 | B92: BRIGADE | C92: 393.6 | D92: 397.12 | E92: 386.73 | F92: 379.87 | G92: 369.48 | H92: 403.98 | I92: 414.37 | J92: 421.23 | K92: 407.5 | L92: 390.25 | M92: 8.91721
A93: 83 | B93: BRITANNIA | C93: 3972.75 | D93: 3983.93 | E93: 3947.97 | F93: 3923.18 | G93: 3887.22 | H93: 4008.72 | I93: 4044.68 | J93: 4069.47 | K93: 4019.9 | L93: 3959.15 | M93: 3.32446
A94: 84 | B94: BURGERKING | C94: 163.4 | D94: 163.72 | E94: 162.03 | F94: 160.67 | G94: 158.98 | H94: 165.08 | I94: 166.77 | J94: 168.13 | K94: 165.4 | L94: 162.35 | M94: 10.46478
A95: 85 | B95: CCL | C95: 385.55 | D95: 386.38 | E95: 381.17 | F95: 376.78 | G95: 371.57 | H95: 390.77 | I95: 395.98 | J95: 400.37 | K95: 391.6 | L95: 382 | M95: 2.11611
A96: 86 | B96: CESC | C96: 86.65 | D96: 85.45 | E96: 82.70 | F96: 78.75 | G96: 76.00 | H96: 89.40 | I96: 92.15 | J96: 96.10 | K96: 88.2 | L96: 81.5 | M96: 190.06357
A97: 87 | B97: CRISIL | C97: 2713.05 | D97: 2721.83 | E97: 2694.67 | F97: 2676.28 | G97: 2649.12 | H97: 2740.22 | I97: 2767.38 | J97: 2785.77 | K97: 2749 | L97: 2703.45 | M97: 0.14328
A98: 88 | B98: CSBBANK | C98: 319.55 | D98: 314.70 | E98: 307.80 | F98: 296.05 | G98: 289.15 | H98: 326.45 | I98: 333.35 | J98: 345.10 | K98: 321.6 | L98: 302.95 | M98: 4.75442
A99: 89 | B99: CADILAHC | C99: 547.6 | D99: 546.27 | E99: 536.33 | F99: 525.07 | G99: 515.13 | H99: 557.53 | I99: 567.47 | J99: 578.73 | K99: 556.2 | L99: 535 | M99: 24.03708
A100: 90 | B100: CANFINHOME | C100: 652.45 | D100: 654.03 | E100: 640.47 | F100: 628.48 | G100: 614.92 | H100: 666.02 | I100: 679.58 | J100: 691.57 | K100: 667.6 | L100: 642.05 | M100: 14.40451
A101: 91 | B101: CANBK | C101: 168.15 | D101: 167.28 | E101: 162.57 | F101: 156.98 | G101: 152.27 | H101: 172.87 | I101: 177.58 | J101: 183.17 | K101: 172 | L101: 161.7 | M101: 353.08289
A102: 92 | B102: CAPLIPOINT | C102: 890.15 | D102: 887.23 | E102: 876.97 | F102: 863.78 | G102: 853.52 | H102: 900.42 | I102: 910.68 | J102: 923.87 | K102: 897.5 | L102: 874.05 | M102: 1.77233
A103: 93 | B103: CGCL | C103: 501.35 | D103: 500.22 | E103: 496.13 | F103: 490.92 | G103: 486.83 | H103: 505.43 | I103: 509.52 | J103: 514.73 | K103: 504.3 | L103: 495 | M103: 0.16844
A104: 94 | B104: CARBORUNIV | C104: 869.9 | D104: 869.05 | E104: 858.10 | F104: 846.30 | G104: 835.35 | H104: 880.85 | I104: 891.80 | J104: 903.60 | K104: 880 | L104: 857.25 | M104: 1.07697
A105: 95 | B105: CASTROLIND | C105: 139.45 | D105: 139.20 | E105: 138.30 | F105: 137.15 | G105: 136.25 | H105: 140.35 | I105: 141.25 | J105: 142.40 | K105: 140.1 | L105: 138.05 | M105: 4.64232
A106: 96 | B106: CEATLTD | C106: 1322.55 | D106: 1321.83 | E106: 1315.72 | F106: 1308.88 | G106: 1302.77 | H106: 1328.67 | I106: 1334.78 | J106: 1341.62 | K106: 1327.95 | L106: 1315 | M106: 0.61988
A107: 97 | B107: CENTRALBK | C107: 21.2 | D107: 21.22 | E107: 20.73 | F107: 20.27 | G107: 19.78 | H107: 21.68 | I107: 22.17 | J107: 22.63 | K107: 21.7 | L107: 20.75 | M107: 76.17331
A108: 98 | B108: CDSL | C108: 1295.15 | D108: 1296.87 | E108: 1274.28 | F108: 1253.42 | G108: 1230.83 | H108: 1317.73 | I108: 1340.32 | J108: 1361.18 | K108: 1319.45 | L108: 1276 | M108: 2.05391
A109: 99 | B109: CENTURYPLY | C109: 466.7 | D109: 463.07 | E109: 456.13 | F109: 445.57 | G109: 438.63 | H109: 473.63 | I109: 480.57 | J109: 491.13 | K109: 470 | L109: 452.5 | M109: 2.43663
A110: 100 | B110: CENTURYTEX | C110: 924.15 | D110: 924.27 | E110: 911.53 | F110: 898.92 | G110: 886.18 | H110: 936.88 | I110: 949.62 | J110: 962.23 | K110: 937 | L110: 911.65 | M110: 2.85324
A111: 101 | B111: CERA | C111: 5452.75 | D111: 5449.25 | E111: 5313.50 | F111: 5174.25 | G111: 5038.50 | H111: 5588.50 | I111: 5724.25 | J111: 5863.50 | K111: 5585 | L111: 5310 | M111: 0.62698
A112: 102 | B112: CHALET | C112: 238.2 | D112: 237.75 | E112: 230.60 | F112: 223.00 | G112: 215.85 | H112: 245.35 | I112: 252.50 | J112: 260.10 | K112: 244.9 | L112: 230.15 | M112: 4.94176
A113: 103 | B113: CHAMBLFERT | C113: 334.9 | D113: 334.65 | E113: 328.30 | F113: 321.70 | G113: 315.35 | H113: 341.25 | I113: 347.60 | J113: 354.20 | K113: 341 | L113: 328.05 | M113: 12.90781
A114: 104 | B114: CHOLAHLDNG | C114: 688.8 | D114: 695.03 | E114: 680.07 | F114: 671.33 | G114: 656.37 | H114: 703.77 | I114: 718.73 | J114: 727.47 | K114: 710 | L114: 686.3 | M114: 0.15317
A115: 105 | B115: CHOLAFIN | C115: 573.45 | D115: 565.13 | E115: 552.42 | F115: 531.38 | G115: 518.67 | H115: 586.17 | I115: 598.88 | J115: 619.92 | K115: 577.85 | L115: 544.1 | M115: 47.50941
A116: 106 | B116: CIPLA | C116: 987.6 | D116: 985.92 | E116: 966.83 | F116: 946.07 | G116: 926.98 | H116: 1006.68 | I116: 1025.77 | J116: 1046.53 | K116: 1005 | L116: 965.15 | M116: 40.5298
A117: 107 | B117: CUB | C117: 159.4 | D117: 156.47 | E117: 151.93 | F117: 144.47 | G117: 139.93 | H117: 163.93 | I117: 168.47 | J117: 175.93 | K117: 161 | L117: 149 | M117: 83.55078
A118: 108 | B118: COALINDIA | C118: 185.7 | D118: 185.17 | E118: 173.33 | F118: 160.97 | G118: 149.13 | H118: 197.53 | I118: 209.37 | J118: 221.73 | K118: 197 | L118: 172.8 | M118: 1009.88643
A119: 109 | B119: COCHINSHIP | C119: 360.3 | D119: 364.30 | E119: 354.10 | F119: 347.90 | G119: 337.70 | H119: 370.50 | I119: 380.70 | J119: 386.90 | K119: 374.5 | L119: 358.1 | M119: 3.61116
A120: 110 | B120: COFORGE | C120: 5260.7 | D120: 5187.20 | E120: 5074.50 | F120: 4888.30 | G120: 4775.60 | H120: 5373.40 | I120: 5486.10 | J120: 5672.30 | K120: 5299.9 | L120: 5001 | M120: 5.80822
A121: 111 | B121: COLPAL | C121: 1678.45 | D121: 1681.83 | E121: 1668.67 | F121: 1658.88 | G121: 1645.72 | H121: 1691.62 | I121: 1704.78 | J121: 1714.57 | K121: 1695 | L121: 1672.05 | M121: 2.84053
A122: 112 | B122: CAMS | C122: 3134.65 | D122: 3215.22 | E122: 3030.43 | F122: 2926.22 | G122: 2741.43 | H122: 3319.43 | I122: 3504.22 | J122: 3608.43 | K122: 3400 | L122: 3111 | M122: 19.38275
A123: 113 | B123: CONCOR | C123: 703.7 | D123: 704.50 | E123: 696.20 | F123: 688.70 | G123: 680.40 | H123: 712.00 | I123: 720.30 | J123: 727.80 | K123: 712.8 | L123: 697 | M123: 10.44662
A124: 114 | B124: COROMANDEL | C124: 797.15 | D124: 800.03 | E124: 785.12 | F124: 773.08 | G124: 758.17 | H124: 812.07 | I124: 826.98 | J124: 839.02 | K124: 814.95 | L124: 788 | M124: 8.56874
A125: 115 | B125: CREDITACC | C125: 623.2 | D125: 628.68 | E125: 615.52 | F125: 607.83 | G125: 594.67 | H125: 636.37 | I125: 649.53 | J125: 657.22 | K125: 641.85 | L125: 621 | M125: 1.93592
A126: 116 | B126: CROMPTON | C126: 470 | D126: 468.90 | E126: 464.40 | F126: 458.80 | G126: 454.30 | H126: 474.50 | I126: 479.00 | J126: 484.60 | K126: 473.4 | L126: 463.3 | M126: 9.5316
A127: 117 | B127: CUMMINSIND | C127: 996.95 | D127: 1000.63 | E127: 989.32 | F127: 981.68 | G127: 970.37 | H127: 1008.27 | I127: 1019.58 | J127: 1027.22 | K127: 1011.95 | L127: 993 | M127: 2.70602
A128: 118 | B128: CYIENT | C128: 1053.05 | D128: 1029.43 | E128: 998.87 | F128: 944.68 | G128: 914.12 | H128: 1083.62 | I128: 1114.18 | J128: 1168.37 | K128: 1060 | L128: 975.25 | M128: 9.30732
A129: 119 | B129: DCBBANK | C129: 91.8 | D129: 92.08 | E129: 91.22 | F129: 90.63 | G129: 89.77 | H129: 92.67 | I129: 93.53 | J129: 94.12 | K129: 92.95 | L129: 91.5 | M129: 22.11501
A130: 120 | B130: DCMSHRIRAM | C130: 987.25 | D130: 991.23 | E130: 976.02 | F130: 964.78 | G130: 949.57 | H130: 1002.47 | I130: 1017.68 | J130: 1028.92 | K130: 1006.45 | L130: 980 | M130: 0.52373
A131: 121 | B131: DLF | C131: 410.85 | D131: 412.25 | E131: 403.60 | F131: 396.35 | G131: 387.70 | H131: 419.50 | I131: 428.15 | J131: 435.40 | K131: 420.9 | L131: 405 | M131: 172.73596
A132: 122 | B132: DABUR | C132: 623.15 | D132: 623.90 | E132: 619.50 | F132: 615.85 | G132: 611.45 | H132: 627.55 | I132: 631.95 | J132: 635.60 | K132: 628.3 | L132: 620.25 | M132: 18.2733
A133: 123 | B133: DALBHARAT | C133: 2052.45 | D133: 2069.23 | E133: 1978.47 | F133: 1904.48 | G133: 1813.72 | H133: 2143.22 | I133: 2233.98 | J133: 2307.97 | K133: 2160 | L133: 1995.25 | M133: 2.40923
A134: 124 | B134: DEEPAKNTR | C134: 2374.05 | D134: 2368.28 | E134: 2339.57 | F134: 2305.08 | G134: 2276.37 | H134: 2402.77 | I134: 2431.48 | J134: 2465.97 | K134: 2397 | L134: 2333.8 | M134: 8.12697
A135: 125 | B135: DELTACORP | C135: 253.3 | D135: 256.55 | E135: 248.30 | F135: 243.30 | G135: 235.05 | H135: 261.55 | I135: 269.80 | J135: 274.80 | K135: 264.8 | L135: 251.55 | M135: 110.29696
A136: 126 | B136: DHANI | C136: 182.1 | D136: 182.47 | E136: 179.63 | F136: 177.17 | G136: 174.33 | H136: 184.93 | I136: 187.77 | J136: 190.23 | K136: 185.3 | L136: 180 | M136: 8.99763
A137: 127 | B137: DHANUKA | C137: 817.3 | D137: 821.60 | E137: 806.75 | F137: 796.20 | G137: 781.35 | H137: 832.15 | I137: 847.00 | J137: 857.55 | K137: 836.45 | L137: 811.05 | M137: 0.46061
A138: 128 | B138: DBL | C138: 538.95 | D138: 540.77 | E138: 535.43 | F138: 531.92 | G138: 526.58 | H138: 544.28 | I138: 549.62 | J138: 553.13 | K138: 546.1 | L138: 537.25 | M138: 1.54977
A139: 129 | B139: DISHTV | C139: 20.7 | D139: 20.87 | E139: 20.23 | F139: 19.77 | G139: 19.13 | H139: 21.33 | I139: 21.97 | J139: 22.43 | K139: 21.5 | L139: 20.4 | M139: 106.87407
A140: 130 | B140: DCAL | C140: 198.15 | D140: 199.15 | E140: 193.30 | F140: 188.45 | G140: 182.60 | H140: 204.00 | I140: 209.85 | J140: 214.70 | K140: 205 | L140: 194.3 | M140: 10.85111
A141: 131 | B141: DIVISLAB | C141: 4806.45 | D141: 4824.28 | E141: 4734.27 | F141: 4662.08 | G141: 4572.07 | H141: 4896.47 | I141: 4986.48 | J141: 5058.67 | K141: 4914.3 | L141: 4752.1 | M141: 8.77223
A142: 132 | B142: DIXON | C142: 4465.4 | D142: 4426.13 | E142: 4364.27 | F142: 4263.13 | G142: 4201.27 | H142: 4527.27 | I142: 4589.13 | J142: 4690.27 | K142: 4488 | L142: 4325 | M142: 2.10299
A143: 133 | B143: LALPATHLAB | C143: 3723.7 | D143: 3676.48 | E143: 3620.42 | F143: 3517.13 | G143: 3461.07 | H143: 3779.77 | I143: 3835.83 | J143: 3939.12 | K143: 3732.55 | L143: 3573.2 | M143: 2.11623
A144: 134 | B144: DRREDDY | C144: 4881 | D144: 4865.18 | E144: 4807.47 | F144: 4733.93 | G144: 4676.22 | H144: 4938.72 | I144: 4996.43 | J144: 5069.97 | K144: 4922.9 | L144: 4791.65 | M144: 6.5507
A145: 135 | B145: EIDPARRY | C145: 415.45 | D145: 417.42 | E145: 411.93 | F145: 408.42 | G145: 402.93 | H145: 420.93 | I145: 426.42 | J145: 429.93 | K145: 422.9 | L145: 413.9 | M145: 1.13464
A146: 136 | B146: EIHOTEL | C146: 128.95 | D146: 130.02 | E146: 125.03 | F146: 121.12 | G146: 116.13 | H146: 133.93 | I146: 138.92 | J146: 142.83 | K146: 135 | L146: 126.1 | M146: 19.30227
A147: 137 | B147: EPL | C147: 242.2 | D147: 243.37 | E147: 238.73 | F147: 235.27 | G147: 230.63 | H147: 246.83 | I147: 251.47 | J147: 254.93 | K147: 248 | L147: 239.9 | M147: 1.07589
A148: 138 | B148: EDELWEISS | C148: 79.55 | D148: 79.40 | E148: 78.60 | F148: 77.65 | G148: 76.85 | H148: 80.35 | I148: 81.15 | J148: 82.10 | K148: 80.2 | L148: 78.45 | M148: 10.86444
A149: 139 | B149: EICHERMOT | C149: 2843.25 | D149: 2856.08 | E149: 2822.17 | F149: 2801.08 | G149: 2767.17 | H149: 2877.17 | I149: 2911.08 | J149: 2932.17 | K149: 2890 | L149: 2835 | M149: 3.86614
A150: 140 | B150: ELGIEQUIP | C150: 203.5 | D150: 204.50 | E150: 200.90 | F150: 198.30 | G150: 194.70 | H150: 207.10 | I150: 210.70 | J150: 213.30 | K150: 208.1 | L150: 201.9 | M150: 1.19401
A151: 141 | B151: EMAMILTD | C151: 586.55 | D151: 583.62 | E151: 577.23 | F151: 567.92 | G151: 561.53 | H151: 592.93 | I151: 599.32 | J151: 608.63 | K151: 590 | L151: 574.3 | M151: 4.05323
A152: 142 | B152: ENDURANCE | C152: 1601.15 | D152: 1596.73 | E152: 1574.42 | F152: 1547.68 | G152: 1525.37 | H152: 1623.47 | I152: 1645.78 | J152: 1672.52 | K152: 1619.05 | L152: 1570 | M152: 1.18916
A153: 143 | B153: ENGINERSIN | C153: 75.3 | D153: 75.03 | E153: 73.57 | F153: 71.83 | G153: 70.37 | H153: 76.77 | I153: 78.23 | J153: 79.97 | K153: 76.5 | L153: 73.3 | M153: 39.10206
A154: 144 | B154: EQUITAS | C154: 122.9 | D154: 122.67 | E154: 120.93 | F154: 118.97 | G154: 117.23 | H154: 124.63 | I154: 126.37 | J154: 128.33 | K154: 124.4 | L154: 120.7 | M154: 5.88481
A155: 145 | B155: ERIS | C155: 748.95 | D155: 744.70 | E155: 737.25 | F155: 725.55 | G155: 718.10 | H155: 756.40 | I155: 763.85 | J155: 775.55 | K155: 752.15 | L155: 733 | M155: 0.34053
A156: 146 | B156: ESCORTS | C156: 1488.6 | D156: 1487.98 | E156: 1470.82 | F156: 1453.03 | G156: 1435.87 | H156: 1505.77 | I156: 1522.93 | J156: 1540.72 | K156: 1505.15 | L156: 1470.2 | M156: 12.32093
A157: 147 | B157: EXIDEIND | C157: 180.4 | D157: 180.25 | E157: 178.15 | F157: 175.90 | G157: 173.80 | H157: 182.50 | I157: 184.60 | J157: 186.85 | K157: 182.35 | L157: 178 | M157: 33.67588
A158: 148 | B158: FDC | C158: 351.35 | D158: 351.25 | E158: 345.40 | F158: 339.45 | G158: 333.60 | H158: 357.20 | I158: 363.05 | J158: 369.00 | K158: 357.1 | L158: 345.3 | M158: 0.95369
A159: 149 | B159: FEDERALBNK | C159: 81.35 | D159: 81.03 | E159: 79.82 | F159: 78.28 | G159: 77.07 | H159: 82.57 | I159: 83.78 | J159: 85.32 | K159: 82.25 | L159: 79.5 | M159: 236.86048
A160: 150 | B160: FINEORG | C160: 3078.15 | D160: 3053.48 | E160: 3009.02 | F160: 2939.88 | G160: 2895.42 | H160: 3122.62 | I160: 3167.08 | J160: 3236.22 | K160: 3097.95 | L160: 2984.35 | M160: 0.24528
A161: 151 | B161: FINCABLES | C161: 487.45 | D161: 486.80 | E161: 478.35 | F161: 469.25 | G161: 460.80 | H161: 495.90 | I161: 504.35 | J161: 513.45 | K161: 495.25 | L161: 477.7 | M161: 1.13155
A162: 152 | B162: FINPIPE | C162: 207.85 | D162: 207.28 | E162: 205.07 | F162: 202.28 | G162: 200.07 | H162: 210.07 | I162: 212.28 | J162: 215.07 | K162: 209.5 | L162: 204.5 | M162: 19.07167
A163: 153 | B163: FSL | C163: 195.45 | D163: 194.83 | E163: 192.67 | F163: 189.88 | G163: 187.72 | H163: 197.62 | I163: 199.78 | J163: 202.57 | K163: 197 | L163: 192.05 | M163: 17.52343
A164: 154 | B164: FORTIS | C164: 263.2 | D164: 263.98 | E164: 259.37 | F164: 255.53 | G164: 250.92 | H164: 267.82 | I164: 272.43 | J164: 276.27 | K164: 268.6 | L164: 260.15 | M164: 19.67271
A165: 155 | B165: FCONSUMER | C165: 7.9 | D165: 8.15 | E165: 7.55 | F165: 7.20 | G165: 6.60 | H165: 8.50 | I165: 9.10 | J165: 9.45 | K165: 8.75 | L165: 7.8 | M165: 353.49019
A166: 156 | B166: FRETAIL | C166: 54 | D166: 54.80 | E166: 52.70 | F166: 51.40 | G166: 49.30 | H166: 56.10 | I166: 58.20 | J166: 59.50 | K166: 56.9 | L166: 53.5 | M166: 90.25538
A167: 157 | B167: GAIL | C167: 156.3 | D167: 157.35 | E167: 153.20 | F167: 150.10 | G167: 145.95 | H167: 160.45 | I167: 164.60 | J167: 167.70 | K167: 161.5 | L167: 154.25 | M167: 216.40237
A168: 158 | B168: GEPIL | C168: 303.3 | D168: 306.00 | E168: 296.40 | F168: 289.50 | G168: 279.90 | H168: 312.90 | I168: 322.50 | J168: 329.40 | K168: 315.6 | L168: 299.1 | M168: 1.80594
A169: 159 | B169: GMMPFAUDLR | C169: 4398.9 | D169: 4419.63 | E169: 4344.27 | F169: 4289.63 | G169: 4214.27 | H169: 4474.27 | I169: 4549.63 | J169: 4604.27 | K169: 4495 | L169: 4365 | M169: 0.12456
A170: 160 | B170: GMRINFRA | C170: 38 | D170: 37.63 | E170: 35.87 | F170: 33.73 | G170: 31.97 | H170: 39.77 | I170: 41.53 | J170: 43.67 | K170: 39.4 | L170: 35.5 | M170: 664.7048
A171: 161 | B171: GALAXYSURF | C171: 3183.75 | D171: 3192.82 | E171: 3161.43 | F171: 3139.12 | G171: 3107.73 | H171: 3215.13 | I171: 3246.52 | J171: 3268.83 | K171: 3224.2 | L171: 3170.5 | M171: 0.17874
A172: 162 | B172: GRSE | C172: 190.7 | D172: 191.18 | E172: 188.92 | F172: 187.13 | G172: 184.87 | H172: 192.97 | I172: 195.23 | J172: 197.02 | K172: 193.45 | L172: 189.4 | M172: 0.81883
A173: 163 | B173: GARFIBRES | C173: 3378.75 | D173: 3339.75 | E173: 3281.55 | F173: 3184.35 | G173: 3126.15 | H173: 3436.95 | I173: 3495.15 | J173: 3592.35 | K173: 3397.95 | L173: 3242.55 | M173: 0.1547
A174: 164 | B174: GICRE | C174: 137.6 | D174: 139.03 | E174: 134.47 | F174: 131.33 | G174: 126.77 | H174: 142.17 | I174: 146.73 | J174: 149.87 | K174: 143.6 | L174: 135.9 | M174: 20.80255
A175: 165 | B175: GILLETTE | C175: 5940.25 | D175: 5949.27 | E175: 5905.98 | F175: 5871.72 | G175: 5828.43 | H175: 5983.53 | I175: 6026.82 | J175: 6061.08 | K175: 5992.55 | L175: 5915 | M175: 0.02086
A176: 166 | B176: GLAND | C176: 3714.75 | D176: 3694.75 | E176: 3624.30 | F176: 3533.85 | G176: 3463.40 | H176: 3785.20 | I176: 3855.65 | J176: 3946.10 | K176: 3765.2 | L176: 3604.3 | M176: 2.03786
A177: 167 | B177: GLAXO | C177: 1484.25 | D177: 1489.83 | E177: 1477.47 | F177: 1470.68 | G177: 1458.32 | H177: 1496.62 | I177: 1508.98 | J177: 1515.77 | K177: 1502.2 | L177: 1483.05 | M177: 0.28792
A178: 168 | B178: GLENMARK | C178: 509.1 | D178: 505.48 | E178: 496.22 | F178: 483.33 | G178: 474.07 | H178: 518.37 | I178: 527.63 | J178: 540.52 | K178: 514.75 | L178: 492.6 | M178: 18.69419
A179: 169 | B179: GODFRYPHLP | C179: 1167.3 | D179: 1134.13 | E179: 1083.27 | F179: 999.23 | G179: 948.37 | H179: 1218.17 | I179: 1269.03 | J179: 1353.07 | K179: 1185 | L179: 1050.1 | M179: 10.61414
A180: 170 | B180: GODREJAGRO | C180: 633.85 | D180: 637.05 | E180: 630.05 | F180: 626.25 | G180: 619.25 | H180: 640.85 | I180: 647.85 | J180: 651.65 | K180: 644.05 | L180: 633.25 | M180: 1.28293
A181: 171 | B181: GODREJCP | C181: 1022.35 | D181: 1032.07 | E181: 1005.48 | F181: 988.62 | G181: 962.03 | H181: 1048.93 | I181: 1075.52 | J181: 1092.38 | K181: 1058.65 | L181: 1015.2 | M181: 15.58499
A182: 172 | B182: GODREJIND | C182: 574 | D182: 571.98 | E182: 564.97 | F182: 555.93 | G182: 548.92 | H182: 581.02 | I182: 588.03 | J182: 597.07 | K182: 579 | L182: 562.95 | M182: 1.60916
A183: 173 | B183: GODREJPROP | C183: 2309.5 | D183: 2305.83 | E183: 2201.67 | F183: 2093.83 | G183: 1989.67 | H183: 2413.67 | I183: 2517.83 | J183: 2625.67 | K183: 2410 | L183: 2198 | M183: 56.53173
A184: 174 | B184: GRANULES | C184: 322.65 | D184: 322.17 | E184: 318.48 | F184: 314.32 | G184: 310.63 | H184: 326.33 | I184: 330.02 | J184: 334.18 | K184: 325.85 | L184: 318 | M184: 17.01165
A185: 175 | B185: GRAPHITE | C185: 624.3 | D185: 615.70 | E185: 601.60 | F185: 578.90 | G185: 564.80 | H185: 638.40 | I185: 652.50 | J185: 675.20 | K185: 629.8 | L185: 593 | M185: 10.20112
A186: 176 | B186: GRASIM | C186: 1669.9 | D186: 1661.15 | E186: 1643.80 | F186: 1617.70 | G186: 1600.35 | H186: 1687.25 | I186: 1704.60 | J186: 1730.70 | K186: 1678.5 | L186: 1635.05 | M186: 8.18653
A187: 177 | B187: GESHIP | C187: 364.9 | D187: 363.43 | E187: 354.87 | F187: 344.83 | G187: 336.27 | H187: 373.47 | I187: 382.03 | J187: 392.07 | K187: 372 | L187: 353.4 | M187: 3.61229
A188: 178 | B188: GREAVESCOT | C188: 136.45 | D188: 136.60 | E188: 134.45 | F188: 132.45 | G188: 130.30 | H188: 138.60 | I188: 140.75 | J188: 142.75 | K188: 138.75 | L188: 134.6 | M188: 8.0908
A189: 179 | B189: GRINDWELL | C189: 1367.7 | D189: 1382.63 | E189: 1345.07 | F189: 1322.43 | G189: 1284.87 | H189: 1405.27 | I189: 1442.83 | J189: 1465.47 | K189: 1420.2 | L189: 1360 | M189: 0.3844
A190: 180 | B190: GUJALKALI | C190: 670.55 | D190: 658.68 | E190: 632.37 | F190: 594.18 | G190: 567.87 | H190: 696.87 | I190: 723.18 | J190: 761.37 | K190: 685 | L190: 620.5 | M190: 23.28591
A191: 181 | B191: GAEL | C191: 174.25 | D191: 174.00 | E191: 171.25 | F191: 168.25 | G191: 165.50 | H191: 177.00 | I191: 179.75 | J191: 182.75 | K191: 176.75 | L191: 171 | M191: 1.97811
A192: 182 | B192: FLUOROCHEM | C192: 1856.05 | D192: 1848.02 | E192: 1822.03 | F192: 1788.02 | G192: 1762.03 | H192: 1882.03 | I192: 1908.02 | J192: 1942.03 | K192: 1874 | L192: 1814 | M192: 2.26278
A193: 183 | B193: GUJGASLTD | C193: 625.5 | D193: 625.95 | E193: 617.80 | F193: 610.10 | G193: 601.95 | H193: 633.65 | I193: 641.80 | J193: 649.50 | K193: 634.1 | L193: 618.25 | M193: 40.77657
A194: 184 | B194: GNFC | C194: 438.1 | D194: 440.05 | E194: 431.45 | F194: 424.80 | G194: 416.20 | H194: 446.70 | I194: 455.30 | J194: 461.95 | K194: 448.65 | L194: 433.4 | M194: 15.82532
A195: 185 | B195: GPPL | C195: 105.05 | D195: 104.57 | E195: 102.63 | F195: 100.22 | G195: 98.28 | H195: 106.98 | I195: 108.92 | J195: 111.33 | K195: 106.5 | L195: 102.15 | M195: 6.74469
A196: 186 | B196: GSFC | C196: 128.05 | D196: 128.02 | E196: 125.13 | F196: 122.22 | G196: 119.33 | H196: 130.93 | I196: 133.82 | J196: 136.73 | K196: 130.9 | L196: 125.1 | M196: 54.97215
A197: 187 | B197: GSPL | C197: 322.6 | D197: 316.00 | E197: 309.00 | F197: 295.40 | G197: 288.40 | H197: 329.60 | I197: 336.60 | J197: 350.20 | K197: 323 | L197: 302.4 | M197: 18.60212
A198: 188 | B198: GULFOILLUB | C198: 584.75 | D198: 586.95 | E198: 578.90 | F198: 573.05 | G198: 565.00 | H198: 592.80 | I198: 600.85 | J198: 606.70 | K198: 595 | L198: 581.1 | M198: 0.3977
A199: 189 | B199: HEG | C199: 2312.7 | D199: 2270.57 | E199: 2198.78 | F199: 2084.87 | G199: 2013.08 | H199: 2384.48 | I199: 2456.27 | J199: 2570.18 | K199: 2342.35 | L199: 2156.65 | M199: 2.86312
A200: 190 | B200: HCLTECH | C200: 1281.2 | D200: 1280.48 | E200: 1259.52 | F200: 1237.83 | G200: 1216.87 | H200: 1302.17 | I200: 1323.13 | J200: 1344.82 | K200: 1301.45 | L200: 1258.8 | M200: 46.39821
A201: 191 | B201: HDFCAMC | C201: 2905.15 | D201: 2905.87 | E201: 2874.93 | F201: 2844.72 | G201: 2813.78 | H201: 2936.08 | I201: 2967.02 | J201: 2997.23 | K201: 2936.8 | L201: 2875.65 | M201: 73.38287
A202: 192 | B202: HDFCBANK | C202: 1593.85 | D202: 1595.20 | E202: 1583.80 | F202: 1573.75 | G202: 1562.35 | H202: 1605.25 | I202: 1616.65 | J202: 1626.70 | K202: 1606.6 | L202: 1585.15 | M202: 81.31518
A203: 193 | B203: HDFCLIFE | C203: 734.75 | D203: 731.25 | E203: 724.50 | F203: 714.25 | G203: 707.50 | H203: 741.50 | I203: 748.25 | J203: 758.50 | K203: 738 | L203: 721 | M203: 52.00234
A204: 194 | B204: HFCL | C204: 72.7 | D204: 71.83 | E204: 69.87 | F204: 67.03 | G204: 65.07 | H204: 74.67 | I204: 76.63 | J204: 79.47 | K204: 73.8 | L204: 69 | M204: 16.60814
A205: 195 | B205: HAPPSTMNDS | C205: 1384.1 | D205: 1382.03 | E205: 1364.07 | F205: 1344.03 | G205: 1326.07 | H205: 1402.07 | I205: 1420.03 | J205: 1440.07 | K205: 1400 | L205: 1362 | M205: 2.55254
A206: 196 | B206: HATSUN | C206: 1415.8 | D206: 1420.35 | E206: 1400.70 | F206: 1385.60 | G206: 1365.95 | H206: 1435.45 | I206: 1455.10 | J206: 1470.20 | K206: 1440 | L206: 1405.25 | M206: 1.08969
... 321 more rows

Sheet Bulk Deals
E6: Back To Main Page
A7: Subject : | B7: BULK DEAL | D7: =Main!B10 -> 2021-09-30
A9: Date | B9: Scrip code | C9: Scrip Name | D9: Client Name | E9: Buy / Sell | F9: Quantity Traded | G9: Trade Price / Wt.Avg.trade price | H9: Exchange
A10: 2021-09-29 | B10: 538812 | C10: AANCHALISP | D10: ALPHA LEON ENTERPRISES LLP | E10: BUY | F10: 120,582 | G10: 8.09 | H10: BSE
A11: 2021-09-29 | B11: 532701 | C11: CELLA | D11: NEELIMA KARLAPUDI | E11: SELL | F11: 112,503 | G11: 5.07 | H11: BSE
A12: 2021-09-29 | B12: 523100 | C12: COSMOFE | D12: ALPHA LEON ENTERPRISES LLP | E12: BUY | F12: 81,002 | G12: 128.57 | H12: BSE
A13: 2021-09-29 | B13: 523100 | C13: COSMOFE | D13: ALPHA LEON ENTERPRISES LLP | E13: SELL | F13: 127,294 | G13: 130.8 | H13: BSE
A14: 2021-09-29 | B14: 530079 | C14: FAZE3Q | D14: AJAY ANAND | E14: BUY | F14: 250,000 | G14: 288.2 | H14: BSE
A15: 2021-09-29 | B15: 530079 | C15: FAZE3Q | D15: SALIM PYARALI GOVANI | E15: SELL | F15: 734,184 | G15: 288.92 | H15: BSE
A16: 2021-09-29 | B16: 530079 | C16: FAZE3Q | D16: ASHISH RAMESHCHANDRA KACHOLIA | E16: BUY | F16: 450,000 | G16: 288.8 | H16: BSE
A17: 2021-09-29 | B17: 539839 | C17: FRANKLIN | D17: NATURAL INVESTMENT MANAGEMENT PVT LTD | E17: BUY | F17: 96,000 | G17: 7.15 | H17: BSE
A18: 2021-09-29 | B18: 542918 | C18: GIANLIFE | D18: RAJASTHAN GLOBAL SECURITIES PRIVATE LIMITED | E18: BUY | F18: 24,000 | G18: 89.5 | H18: BSE
A19: 2021-09-29 | B19: 542918 | C19: GIANLIFE | D19: PRAVINCHAND BHAYACHANDBHAI PATEL | E19: SELL | F19: 30,000 | G19: 89.5 | H19: BSE
A20: 2021-09-29 | B20: 542918 | C20: GIANLIFE | D20: ALPHA LEON ENTERPRISES LLP | E20: SELL | F20: 30,000 | G20: 93.26 | H20: BSE
A21: 2021-09-29 | B21: 542918 | C21: GIANLIFE | D21: SECUROCROP SECURITIES INDIA PRIVATE LIMTED | E21: BUY | F21: 24,000 | G21: 89.5 | H21: BSE
A22: 2021-09-29 | B22: 541729 | C22: HDFCAMC | D22: STANDARD LIFE INVESTMENTS LIMITED | E22: SELL | F22: 10,650,000 | G22: 2873.79 | H22: BSE
A23: 2021-09-29 | B23: 541729 | C23: HDFCAMC | D23: T. ROWE PRICE EMERGING MARKETS STOCK FUND | E23: BUY | F23: 1,519,557 | G23: 2871.05 | H23: BSE
A24: 2021-09-29 | B24: 514238 | C24: IKAB | D24: R B K SHARE BROKING LIMITED | E24: BUY | F24: 145,000 | G24: 53 | H24: BSE
A25: 2021-09-29 | B25: 514238 | C25: IKAB | D25: NAMRATA CHANDRAPRAKASH KHANDELWAL | E25: SELL | F25: 145,637 | G25: 53 | H25: BSE
A26: 2021-09-29 | B26: 533329 | C26: INDTERRAIN | D26: SYAMALA SUBRAMANIAN | E26: SELL | F26: 260,000 | G26: 39 | H26: BSE
A27: 2021-09-29 | B27: 539083 | C27: INOXWIND | D27: KIRTAN MANEKLAL RUPARELIYA (HUF) | E27: BUY | F27: 1,116,677 | G27: 99.16 | H27: BSE
A28: 2021-09-29 | B28: 539083 | C28: INOXWIND | D28: KIRTAN MANEKLAL RUPARELIYA (HUF) | E28: SELL | F28: 629 | G28: 100.1 | H28: BSE
A29: 2021-09-29 | B29: 536868 | C29: INTELSOFT | D29: MICRO LOGISTICS INDIA PRIVATE LIMITED | E29: SELL | F29: 440,000 | G29: 60.1 | H29: BSE
A30: 2021-09-29 | B30: 543286 | C30: JETMALL | D30: SHAREACCOUNT NA | E30: BUY | F30: 6,000 | G30: 18.25 | H30: BSE
A31: 2021-09-29 | B31: 543286 | C31: JETMALL | D31: SHAREACCOUNT NA | E31: SELL | F31: 30,000 | G31: 18.26 | H31: BSE
A32: 2021-09-29 | B32: 543286 | C32: JETMALL | D32: PRAGNESH JINDASBHAI DOSHI | E32: BUY | F32: 48,000 | G32: 18.33 | H32: BSE
A33: 2021-09-29 | B33: 542446 | C33: JONJUA | D33: DHIRAJ JAIN | E33: SELL | F33: 38,363 | G33: 12.79 | H33: BSE
A34: 2021-09-29 | B34: 590003 | C34: KARURVYSYA | D34: ALPHA LEON ENTERPRISES LLP | E34: BUY | F34: 4,263,050 | G34: 46.62 | H34: BSE
A35: 2021-09-29 | B35: 590003 | C35: KARURVYSYA | D35: ALPHA LEON ENTERPRISES LLP | E35: SELL | F35: 3,655,551 | G35: 47.48 | H35: BSE
A36: 2021-09-29 | B36: 590003 | C36: KARURVYSYA | D36: OLYMPUS INDIA HOLDINGS LIMITED | E36: SELL | F36: 21,000,000 | G36: 46.62 | H36: BSE
A37: 2021-09-29 | B37: 537669 | C37: LAXMIPATI | D37: SONU PRAVIN DADLIKA | E37: SELL | F37: 30,000 | G37: 38.5 | H37: BSE
A38: 2021-09-29 | B38: 537669 | C38: LAXMIPATI | D38: BRAINNATION BUSINESS ADVISORY SERVICES PRIVATE LIMITED | E38: BUY | F38: 51,000 | G38: 38.5 | H38: BSE
A39: 2021-09-29 | B39: 539814 | C39: LELAVOIR | D39: ALPHA LEON ENTERPRISES LLP | E39: BUY | F39: 100,000 | G39: 29 | H39: BSE
A40: 2021-09-29 | B40: 539814 | C40: LELAVOIR | D40: ALPHA LEON ENTERPRISES LLP | E40: SELL | F40: 4,729 | G40: 29.87 | H40: BSE
A41: 2021-09-29 | B41: 534422 | C41: LOOKS | D41: KAVEDI KAVEDI ASHWIN | E41: SELL | F41: 62,300 | G41: 21.75 | H41: BSE
A42: 2021-09-29 | B42: 534422 | C42: LOOKS | D42: VISHWAMURTE TRAD INVEST PE LTD | E42: SELL | F42: 176,500 | G42: 21.75 | H42: BSE
A43: 2021-09-29 | B43: 539767 | C43: MNIL | D43: KABIR SHRAN DAGAR | E43: BUY | F43: 22,596 | G43: 14.16 | H43: BSE
A44: 2021-09-29 | B44: 539767 | C44: MNIL | D44: KABIR SHRAN DAGAR | E44: SELL | F44: 68,459 | G44: 13.4 | H44: BSE
A45: 2021-09-29 | B45: 539767 | C45: MNIL | D45: CHIRAG ARORA | E45: SELL | F45: 25,000 | G45: 14 | H45: BSE
A46: 2021-09-29 | B46: 539767 | C46: MNIL | D46: DEEPAK KUMAR | E46: BUY | F46: 67,778 | G46: 13.64 | H46: BSE
A47: 2021-09-29 | B47: 543207 | C47: NATURAL | D47: ARUN DASHRATHBHAI PRAJAPATI | E47: BUY | F47: 72,393 | G47: 29.4 | H47: BSE
A48: 2021-09-29 | B48: 543207 | C48: NATURAL | D48: ARUN DASHRATHBHAI PRAJAPATI | E48: SELL | F48: 18,014 | G48: 29.22 | H48: BSE
A49: 2021-09-29 | B49: 540243 | C49: NEWLIGHT | D49: TANAY KAMAL SEETHA | E49: BUY | F49: 19,900 | G49: 67.16 | H49: BSE
A50: 2021-09-29 | B50: 540243 | C50: NEWLIGHT | D50: GOLDLINE FINANCIAL SERVICES LIMITED | E50: BUY | F50: 2,218 | G50: 67.39 | H50: BSE
A51: 2021-09-29 | B51: 540243 | C51: NEWLIGHT | D51: GOLDLINE FINANCIAL SERVICES LIMITED | E51: SELL | F51: 13,363 | G51: 66.95 | H51: BSE
A52: 2021-09-29 | B52: 542771 | C52: NOVATEOR | D52: SURESH GADALEY | E52: BUY | F52: 30,000 | G52: 11.62 | H52: BSE
A53: 2021-09-29 | B53: 542771 | C53: NOVATEOR | D53: HEENA S JAIN | E53: SELL | F53: 36,000 | G53: 11.63 | H53: BSE
A54: 2021-09-29 | B54: 543363 | C54: PREVEST | D54: PRUDENT VENTURES | E54: SELL | F54: 81,600 | G54: 204 | H54: BSE
A55: 2021-09-29 | B55: 543363 | C55: PREVEST | D55: JINENDRA KUMAR JAIN | E55: BUY | F55: 64,000 | G55: 196.53 | H55: BSE
A56: 2021-09-29 | B56: 537785 | C56: RACE | D56: MANSINGH HOTELS AND RESORTS LIMITED | E56: BUY | F56: 235,000 | G56: 205 | H56: BSE
A57: 2021-09-29 | B57: 537785 | C57: RACE | D57: SHARE INDIA SECURITIES LIMITED | E57: SELL | F57: 235,000 | G57: 205 | H57: BSE
A58: 2021-09-29 | B58: 539561 | C58: REMLIFE | D58: ZUBER TRADING LLP | E58: BUY | F58: 1 | G58: 128 | H58: BSE
A59: 2021-09-29 | B59: 539561 | C59: REMLIFE | D59: ZUBER TRADING LLP | E59: SELL | F59: 19,000 | G59: 127.16 | H59: BSE
A60: 2021-09-29 | B60: 519191 | C60: RGRL | D60: MOHD AZIM ABDULLAH MAPKAR | E60: BUY | F60: 2,008 | G60: 26.27 | H60: BSE
A61: 2021-09-29 | B61: 519191 | C61: RGRL | D61: SUSHIL C SHINDE | E61: BUY | F61: 32,748 | G61: 25.15 | H61: BSE
A62: 2021-09-29 | B62: 519191 | C62: RGRL | D62: MOHD AZIM ABDULLAH MAPKAR | E62: SELL | F62: 38,896 | G62: 25.22 | H62: BSE
A63: 2021-09-29 | B63: 512634 | C63: SAVERA | D63: SKANDA SUNDARAM | E63: BUY | F63: 108,639 | G63: 50.45 | H63: BSE
A64: 2021-09-29 | B64: 512634 | C64: SAVERA | D64: SARAVANA SECURITIES (PROP: D. SATHYAMOORTHI) | E64: SELL | F64: 108,639 | G64: 50.45 | H64: BSE
A65: 2021-09-29 | B65: 526775 | C65: VALIANT | D65: STAR FINVEST PVT LTD | E65: SELL | F65: 38,386 | G65: 117.25 | H65: BSE
A66: 2021-09-29 | B66: 511074 | C66: WEIZFIN | D66: LEBNITZE REAL ESTATES PRIVATE LIMITED | E66: SELL | F66: 11,999 | G66: 279.1 | H66: BSE
A67: 2021-09-29 | B67: 511074 | C67: WEIZFIN | D67: PILOT CONSULTANTS PRIVATE LIMITED | E67: BUY | F67: 11,999 | G67: 279.1 | H67: BSE
A68: 2021-09-29 | B68: 541167 | C68: YASHO | D68: JIGNESH AMRUTLAL THOBHANI | E68: SELL | F68: 70,000 | G68: 694.64 | H68: BSE
A69: 2021-09-29 | B69: AJOONI | C69: Ajooni Biotech Limited | D69: JILESH NAVIN CHHEDA | E69: BUY | F69: 63,307 | G69: 53.9 | H69: NSE
A70: 2021-09-29 | B70: ASIANTILES | C70: Asian Granito India Limit | D70: CNM FINVEST PRIVATE LIMITED . | E70: BUY | F70: 426,143 | G70: 154.27 | H70: NSE
A71: 2021-09-29 | B71: IEX | C71: Indian Energy Exc Ltd | D71: XTX MARKETS LLP | E71: BUY | F71: 1,980,553 | G71: 626.47 | H71: NSE
A72: 2021-09-29 | B72: JALAN | C72: Jalan Transolu. India Ltd | D72: SWETA AGRAWAL | E72: BUY | F72: 81,000 | G72: 14.53 | H72: NSE
A73: 2021-09-29 | B73: JUSTDIAL | C73: Justdial Ltd. | D73: SANATAN FINANCIAL ADVISORY SERVICES PRIVATE LIMITE | E73: BUY | F73: 559,101 | G73: 989.98 | H73: NSE
A74: 2021-09-29 | B74: LOKESHMACH | C74: Lokesh Machines Limited | D74: P C S SECURITIES LTD | E74: BUY | F74: 106,729 | G74: 51.49 | H74: NSE
A75: 2021-09-29 | B75: MAXHEALTH | C75: Max Healthcare Ins Ltd | D75: VERITAS FUNDS PLC ON BEHALF OF VERITAS ASIAN FUND | E75: BUY | F75: 5,200,000 | G75: 350 | H75: NSE
A76: 2021-09-29 | B76: MAXHEALTH | C76: Max Healthcare Ins Ltd | D76: SBI MUTUAL FUND | E76: BUY | F76: 42,857,000 | G76: 350 | H76: NSE
A77: 2021-09-29 | B77: MAXHEALTH | C77: Max Healthcare Ins Ltd | D77: HDFC MUTUAL FUND | E77: BUY | F77: 5,700,000 | G77: 350 | H77: NSE
A78: 2021-09-29 | B78: ROLLT | C78: Rollatainers Limited | D78: CHANAKYA FINVEST PRIVATE LIMITED | E78: BUY | F78: 2,500,000 | G78: 2.4 | H78: NSE
A79: 2021-09-29 | B79: ROLLT | C79: Rollatainers Limited | D79: DEVADOSS VEDAPUDI NARASIMHAN | E79: BUY | F79: 2,050,000 | G79: 2.4 | H79: NSE
A80: 2021-09-29 | B80: ROLLT | C80: Rollatainers Limited | D80: RAJAN DENTAL INSTITUTE PRIVATE LIMITED | E80: BUY | F80: 2,500,000 | G80: 2.44 | H80: NSE
A81: 2021-09-29 | B81: ROLLT | C81: Rollatainers Limited | D81: NISHITH ATULBHAI SHAH | E81: BUY | F81: 6,944,778 | G81: 2.62 | H81: NSE
A82: 2021-09-29 | B82: ROLLT | C82: Rollatainers Limited | D82: GURVINDER SINGH | E82: BUY | F82: 1,426,687 | G82: 2.8 | H82: NSE
A83: 2021-09-29 | B83: SPECTRUM | C83: Spectrum Electric Ind Ltd | D83: CHANDRAKANT BHASKAR RANE | E83: BUY | F83: 122,000 | G83: 50.05 | H83: NSE
A84: 2021-09-29 | B84: SUNTECK | C84: Sunteck Realty Limited | D84: TATA MUTUAL FUND- MONEY MARKET FUND | E84: BUY | F84: 1,100,000 | G84: 465.12 | H84: NSE
A85: 2021-09-29 | B85: AJOONI | C85: Ajooni Biotech Limited | D85: JILESH NAVIN CHHEDA | E85: SELL | F85: 63,307 | G85: 52.9 | H85: NSE
A86: 2021-09-29 | B86: ALICON | C86: Alicon Castalloy Limited | D86: GUPTA VIMAL | E86: SELL | F86: 101,500 | G86: 770.01 | H86: NSE
A87: 2021-09-29 | B87: ASIANTILES | C87: Asian Granito India Limit | D87: CNM FINVEST PRIVATE LIMITED . | E87: SELL | F87: 426,143 | G87: 153.51 | H87: NSE
A88: 2021-09-29 | B88: IEX | C88: Indian Energy Exc Ltd | D88: XTX MARKETS LLP | E88: SELL | F88: 1,941,186 | G88: 626.62 | H88: NSE
A89: 2021-09-29 | B89: JALAN | C89: Jalan Transolu. India Ltd | D89: RITU JALAN | E89: SELL | F89: 123,000 | G89: 14.5 | H89: NSE
A90: 2021-09-29 | B90: JUSTDIAL | C90: Justdial Ltd. | D90: SANATAN FINANCIAL ADVISORY SERVICES PRIVATE LIMITE | E90: SELL | F90: 55,287 | G90: 989.48 | H90: NSE
A91: 2021-09-29 | B91: JUSTDIAL | C91: Justdial Ltd. | D91: NALANDA INDIA EQUITY FUND LIMITED | E91: SELL | F91: 1,018,295 | G91: 990.01 | H91: NSE
A92: 2021-09-29 | B92: KIL-RE | C92: Kesoram Industries Ltd-RE | D92: INDUSIND BANK LTD CLIENT A/C | E92: SELL | F92: 561,821 | G92: 10.62 | H92: NSE
A93: 2021-09-29 | B93: LOKESHMACH | C93: Lokesh Machines Limited | D93: P C S SECURITIES LTD | E93: SELL | F93: 839 | G93: 52.01 | H93: NSE
A94: 2021-09-29 | B94: MAXHEALTH | C94: Max Healthcare Ins Ltd | D94: KAYAK INVESTMENTS HOLDING PTE LTD | E94: SELL | F94: 60,219,498 | G94: 350 | H94: NSE
A95: 2021-09-29 | B95: MAXHEALTH | C95: Max Healthcare Ins Ltd | D95: KAYAK INVESTMENTS HOLDING PTE.LTD | E95: SELL | F95: 24,230,377 | G95: 350.13 | H95: NSE
A96: 2021-09-29 | B96: ROLLT | C96: Rollatainers Limited | D96: GURVINDER SINGH | E96: SELL | F96: 911,687 | G96: 2.74 | H96: NSE
A97: 2021-09-29 | B97: ROLLT | C97: Rollatainers Limited | D97: W L D INVESTMENT PVT LTD | E97: SELL | F97: 17,500,000 | G97: 2.43 | H97: NSE
A98: 2021-09-29 | B98: ROLLT | C98: Rollatainers Limited | D98: NISHITH ATULBHAI SHAH | E98: SELL | F98: 6,192,501 | G98: 2.81 | H98: NSE
A99: 2021-09-29 | B99: ROLLT | C99: Rollatainers Limited | D99: DEVADOSS VEDAPUDI NARASIMHAN | E99: SELL | F99: 500,000 | G99: 2.85 | H99: NSE
A100: 2021-09-29 | B100: SPECTRUM | C100: Spectrum Electric Ind Ltd | D100: WEALTH MINE NETWORKS PRIVATE LIMITED | E100: SELL | F100: 140,000 | G100: 50.06 | H100: NSE

Sheet Call Tracker (Equity & F&O)
M5: Back To Main Page
A6: Retail Research Technical Calls & Fundamental Performance Report for the month of Sep-2021
M7: =Main!B10 -> 2021-09-30
B8: Positional Call
A9: Sr.no | B9: Date | D9: Company | E9: Rec | F9: Rec Price | G9: Stop Loss*** | H9: Call Closed At | I9: Target | J9: Remark | K9: Profit / Loss per Share | L9: All charges | M9: Net Gain / Loss % | N9: Status | O9: Closed Date | P9: Market Closing Price
A10: 1 | B10: 2021-07-19 | D10: IGL | E10: Buy | F10: 547.5 | G10: 510 | H10: 568.00 | I10: 620-640 | J10: Profit of Rs.20.5/- | K10: =H10-F10 -> 20.5 | L10: =(F10*-0.7)/100 -> -3.83 | M10: =(K10+L10)/F10 -> 3.04% | N10: Successful | O10: 2021-09-06 | R10: H
A11: 2 | B11: 2021-07-20 | D11: IOC | E11: Buy | F11: 104.5 | G11: 96.5 | H11: 111.50 | I11: 120-122 | J11: Profit of Rs.7/- | K11: =H11-F11 -> 7 | L11: =(F11*-0.7)/100 -> -0.73 | M11: =(K11+L11)/F11 -> 6.00% | N11: Successful | O11: 2021-09-03 | R11: H
A12: 3 | B12: 2021-07-30 | D12: AMARAJABAT | E12: Buy | F12: 715 | G12: 675 | H12: 730.00 | I12: 780-800 | J12: Profit of Rs.15/- | K12: =H12-F12 -> 15 | L12: -5.01 | M12: =(K12+L12)/F12 -> 1.40% | N12: Successful | O12: 2021-09-03 | R12: H
A13: 4 | B13: 2021-08-13 | D13: MCX | E13: Buy | F13: 1500 | G13: 1415 | H13: 1,607.50 | I13: 1650-1680 | J13: Profit of Rs.107.5/- | K13: 107.5 | L13: -10.50 | M13: 6.47% | N13: Successful | O13: 2021-09-03 | R13: H
A14: 5 | B14: 2021-09-03 | D14: ALKYLAMINE | E14: Buy | F14: 4085 | G14: 3900 | H14: 3,900.00 | I14: 4400-4500 | J14: Loss of Rs.185/- | K14: -185 | L14: -28.60 | M14: -5.23% | N14: Unsuccessful | O14: 2021-09-16 | R14: H
A15: 6 | B15: 2021-09-03 | D15: JBCHEPHARM | E15: Buy | F15: 1670 | G15: 1570 | H15: 1,785.00 | I15: 1840-1880 | J15: Profit of Rs.115/- | K15: =H15-F15 -> 115 | L15: =(F15*-0.7)/100 -> -11.69 | M15: =(K15+L15)/F15 -> 6.19% | N15: Successful | O15: 2021-09-07 | R15: H
A16: 7 | B16: 2021-09-08 | D16: GLAXO | E16: Buy | F16: 1500 | G16: 1395 | H16: 1,600.00 | I16: 1650-1700 | J16: Profit of Rs.100/- | K16: 100 | L16: -10.50 | M16: 5.97% | N16: Successful | O16: 2021-09-16 | R16: H
A17: 8 | B17: 2021-09-13 | D17: HDFCAMC | E17: Buy | F17: 3205 | G17: 3000 | H17: 3,125.00 | I17: 3500-3600 | J17: Loss of Rs.80/- | K17: =H17-F17 -> -80 | L17: =(F17*-0.7)/100 -> -22.44 | M17: =(K17+L17)/F17 -> -3.20% | N17: Unsuccessful | O17: 2021-09-29 | R17: N
A18: 9 | B18: 2021-09-15 | D18: AKZOINDIA | E18: Buy | F18: 2185-2205 | G18: 2080 | I18: 2400-2500 | J18: Open | P18: =VLOOKUP(D18,'MidCap Intra'!B11:C511,2,0) -> 2258.3 | R18: H
A19: 10 | B19: 2021-09-17 | D19: BANKBARODA | E19: Buy | F19: 84 | G19: 78 | H19: 78.85 | I19: 90-92 | J19: Loss of Rs.5.15/- | K19: =H19-F19 -> -5.15 | L19: =(F19*-0.7)/100 -> -0.59 | M19: =(K19+L19)/F19 -> -6.83% | N19: Unsuccessful | O19: 2021-09-16 | R19: H
A20: 11 | B20: 2021-09-21 | D20: GLAXO | E20: Buy | F20: 1500-1520 | G20: 1395 | I20: 1680-1720 | J20: Open | P20: =VLOOKUP(D20,'MidCap Intra'!B13:C513,2,0) -> 1484.25 | R20: H
A21: 12 | B21: 2021-09-24 | D21: JKCEMENT | E21: Buy | F21: 3110-3150 | G21: 2920 | I21: 3500-3600 | J21: Open | P21: =VLOOKUP(D21,'MidCap Intra'!B14:C514,2,0) -> 3058.65 | R21: H
A22: 13 | B22: 2021-09-27 | D22: IGL | E22: Buy | F22: 525-530 | G22: 495 | I22: 580-600 | J22: Open | P22: =VLOOKUP(D22,'MidCap Intra'!B15:C515,2,0) -> 518.65 | R22: H
A23: 14 | B23: 2021-09-27 | D23: CROMPTON | E23: Buy | F23: 470-475 | G23: 445 | I23: 530 | J23: Open | P23: =VLOOKUP(D23,'MidCap Intra'!B16:C516,2,0) -> 470 | R23: H
A24: 15 | B24: 2021-09-27 | D24: DALBHARAT | E24: Buy | F24: 2030-2050 | G24: 1895 | I24: 2300-2400 | J24: Open | P24: =VLOOKUP(D24,'MidCap Intra'!B17:C517,2,0) -> 2052.45 | R24: N
A25: 16 | B25: 2021-09-27 | D25: ENDURANCE | E25: Buy | F25: 1570-1590 | G25: 1490 | I25: 1750-1800 | J25: Open | P25: =VLOOKUP(D25,'MidCap Intra'!B18:C518,2,0) -> 1601.15 | R25: H
A26: 17 | B26: 2021-09-27 | D26: GSFC | E26: Buy | F26: 122 | G26: 115 | H26: 133.50 | I26: 135-137 | J26: Profit of Rs.11.5/- | K26: =H26-F26 -> 11.5 | L26: =(F26*-0.7)/100 -> -0.85 | M26: =(K26+L26)/F26 -> 8.73% | N26: Successful | O26: 2021-09-28 | R26: N
A27: 18 | B27: 2021-09-29 | D27: CAMS | E27: Buy | F27: 3250-3290 | G27: 3140 | I27: 3600-3700 | J27: Open | P27: =VLOOKUP(D27,'MidCap Intra'!B20:C520,2,0) -> 3134.65 | R27: H
A28: 19 | B28: 2021-09-29 | D28: INDIACEM | E28: Buy | F28: 190-193 | G28: 178 | I28: 210 | J28: Open | P28: =VLOOKUP(D28,'MidCap Intra'!B21:C521,2,0) -> 192.45 | R28: N
A34: CLBS = Closing Basis ***
A35: Dividend adjusted <> | F35: Reinitiated $
A36: Part book {} | F36: Revised stoploss #
B38: Momentum Call
A39: Sr.no | B39: Date | D39: Company | E39: Rec | F39: Rec Price | G39: Stop Loss | H39: Call Closed At | I39: Target | J39: Remark | K39: Profit / Loss per Share/Lot | L39: All charges | M39: Net Gain / Loss % | N39: Status | O39: Closed Date
A40: 1 | B40: 2021-08-20 | D40: AARTIIND | E40: Buy | F40: 934 | G40: 899 | H40: 902.5 | I40: 980-1000 | J40: Loss of Rs.31.5/- | K40: =H40-F40 -> -31.5 | L40: =(F40*-0.7)/100 -> -6.54 | M40: =(K40+L40)/F40 -> -4.07% | N40: Unsuccessful | O40: 2021-09-08 | R40: H
A41: 2 | B41: 2021-08-27 | D41: ZYDUSWELL | E41: Buy | F41: 2305 | G41: 2240 | H41: 2390 | I41: 2400-2420 | J41: Profit of Rs.85/- | K41: =H41-F41 -> 85 | L41: =(F41*-0.7)/100 -> -16.14 | M41: =(K41+L41)/F41 -> 2.99% | N41: Successful | O41: 2021-09-01 | R41: N
A42: 3 | B42: 2021-08-30 | D42: PEL | E42: Buy | F42: 2630 | G42: 2550 | H42: 2700 | I42: 2700-2750 | J42: Profit of Rs.70/- | K42: 70 | L42: -18.41 | M42: 1.96% | N42: Successful | O42: 2021-09-03 | R42: N
A43: 4 | B43: 2021-09-02 | D43: CANBK | E43: Buy | F43: 158.75 | G43: 154.5 | H43: 163.4 | I43: 165-167 | J43: Profit of Rs.4.65/- | K43: =H43-F43 -> 4.65 | L43: =(F43*-0.7)/100 -> -1.11 | M43: =(K43+L43)/F43 -> 2.23% | N43: Successful | O43: 2021-09-03 | R43: H
A44: 5 | B44: 2021-09-03 | D44: HDFCLIFE | E44: Buy | F44: 732.5 | G44: 714 | H44: 746 | I44: 760-770 | J44: Profit of Rs.13.5/- | K44: 13.5 | L44: -5.13 | M44: 1.14% | N44: Successful | O44: 2021-09-15 | R44: H
A45: 6 | B45: 2021-09-03 | D45: CAMLINFINE | E45: Buy | F45: 171.5 | G45: 166 | H45: 176.5 | I45: 182 | J45: Profit of Rs.5/- | K45: =H45-F45 -> 5 | L45: =(F45*-0.7)/100 -> -1.20 | M45: =(K45+L45)/F45 -> 2.22% | N45: Successful | O45: 2021-09-14 | R45: N
A46: 7 | B46: 2021-09-07 | D46: KOTAKBANK | E46: Buy | F46: 1757.5 | G46: 1710 | H46: 1766 | I46: 1820-1850 | J46: Profit of Rs.8.5/- | K46: =H46-F46 -> 8.5 | L46: =(F46*-0.07)/100 -> -1.23 | M46: =(K46+L46)/F46 -> 0.41% | N46: Neutral | O46: 2021-09-07 | R46: H
A47: 8 | B47: 2021-09-07 | D47: JBCHEPHARM | E47: Buy | F47: 1742.5 | G47: 1695 | H47: 1772.5 | I47: 1820-1850 | J47: Profit of Rs.30/- | K47: =H47-F47 -> 30 | L47: =(F47*-0.07)/100 -> -1.22 | M47: =(K47+L47)/F47 -> 1.65% | N47: Successful | O47: 2021-09-07 | R47: H
A48: 9 | B48: 2021-09-08 | D48: HEROMOTOCO | E48: Buy | F48: 2785 | G48: 2697 | H48: 2849 | I48: 2950-2980 | J48: Profit of Rs.64/- | K48: 64 | L48: =(F48*-0.7)/100 -> -19.50 | M48: 1.60% | N48: Successful | O48: 2021-09-14 | R48: H
A49: 10 | B49: 2021-09-09 | D49: AARTIIND | E49: Buy | F49: 904 | G49: 877 | H49: 930 | I49: 950-960 | J49: Profit of Rs.26/- | K49: =H49-F49 -> 26 | L49: =(F49*-0.7)/100 -> -6.33 | M49: =(K49+L49)/F49 -> 2.18% | N49: Successful | O49: 2021-09-13 | R49: H
A50: 11 | B50: 2021-09-13 | D50: JBCHEPHARM | E50: Buy | F50: 1737.5 | G50: 1690 | H50: 1767.5 | I50: 1820-1850 | J50: Profit of Rs.30/- | K50: =H50-F50 -> 30 | L50: =(F50*-0.07)/100 -> -1.22 | M50: =(K50+L50)/F50 -> 1.66% | N50: Successful | O50: 2021-09-13 | R50: N
A51: 12 | B51: 2021-09-13 | D51: AEGISCHEM | E51: Buy | F51: 241 | G51: 234 | H51: 245.25 | I51: 255 | J51: Profit of Rs.4.25/- | K51: =H51-F51 -> 4.25 | L51: =(F51*-0.07)/100 -> -0.17 | M51: =(K51+L51)/F51 -> 1.69% | N51: Successful | O51: 2021-09-13 | R51: H
A52: 13 | B52: 2021-09-13 | D52: THERMAX | E52: Buy | F52: 1410 | G52: 1375 | H52: 1429 | I52: 1450-1470 | J52: Profit of Rs.19/- | K52: =H52-F52 -> 19 | L52: =(F52*-0.07)/100 -> -0.99 | M52: =(K52+L52)/F52 -> 1.28% | N52: Successful | O52: 2021-09-13 | R52: H
A53: 14 | B53: 2021-09-13 | D53: KSCL | E53: Buy | F53: 604 | G53: 590 | H53: 590 | I53: 630-640 | J53: Loss of Rs.14/- | K53: -14 | L53: =(F53*-0.7)/100 -> -4.23 | M53: -3.02% | N53: Unsuccessful | O53: 2021-09-21 | R53: H
A54: 15 | B54: 2021-09-14 | D54: JBCHEPHARM | E54: Buy | F54: 1737.5 | G54: 1690 | H54: 1775 | I54: 1820-1850 | J54: Profit of Rs.37.5/- | K54: 37.5 | L54: -12.16 | M54: 1.46% | N54: Successful | O54: 2021-09-24 | R54: H
A55: 16 | B55: 2021-09-15 | D55: BANKBARODA | E55: Buy | F55: 80.3 | G55: 78 | H55: 81.85 | I55: 83-84 | J55: Profit of Rs.1.55/- | K55: =H55-F55 -> 1.55 | L55: =(F55*-0.07)/100 -> -0.06 | M55: =(K55+L55)/F55 -> 1.86% | N55: Successful | O55: 2021-09-15 | R55: H
A56: 17 | B56: 2021-09-16 | D56: BANKINDIA | E56: Buy | F56: 57.75 | G56: 55 | H56: 58.9 | I56: 60-61 | J56: Profit of Rs.1.15/- | K56: =H56-F56 -> 1.15 | L56: =(F56*-0.07)/100 -> -0.04 | M56: =(K56+L56)/F56 -> 1.92% | N56: Successful | O56: 2021-09-16 | R56: H
A57: 18 | B57: 2021-09-16 | D57: IDFCFIRST | E57: Buy | F57: 49.6 | G57: 48 | H57: 50.7 | I57: 52 | J57: Profit of Rs.1.10/- | K57: =H57-F57 -> 1.1 | L57: =(F57*-0.07)/100 -> -0.03 | M57: =(K57+L57)/F57 -> 2.15% | N57: Successful | O57: 2021-09-16 | R57: H
A58: 19 | B58: 2021-09-16 | D58: IDBI | E58: Buy | F58: 40.05 | G58: 38.8 | H58: 41.5 | I58: 42-42.5 | J58: Profit of Rs.1.45/- | K58: 1.45 | L58: -0.03 | M58: 3.55% | N58: Successful | O58: 2021-09-16 | R58: H
A59: 20 | B59: 2021-09-16 | D59: AEGISCHEM | E59: Buy | F59: 240.5 | G59: 234 | H59: 233 | I59: 250-255 | J59: Loss of Rs.7/- | K59: -7.5 | L59: =(F59*-0.7)/100 -> -1.68 | M59: -3.82% | N59: Unsuccessful | O59: 2021-09-17 | R59: H
A60: 21 | B60: 2021-09-17 | D60: IDFCFIRSTB | E60: Buy | F60: 49.5 | G60: 48 | H60: 49.6 | I60: 52 | J60: Profit of Rs.0.10/- | K60: 0.1 | L60: =(F60*-0.7)/100 -> -0.35 | M60: -0.50% | N60: Neutral | O60: 2021-09-20 | R60: H
A61: 22 | B61: 2021-09-17 | D61: ITC | E61: Buy | F61: 230 | G61: 224 | H61: 236.5 | I61: 240-242 | J61: Profit of Rs.6.5/- | K61: 6.5 | L61: =(F61*-0.7)/100 -> -1.61 | M61: 2.13% | N61: Successful | O61: 2021-09-20 | R61: H
A62: 23 | B62: 2021-09-21 | D62: TATAMTRDVR | E62: Buy | F62: 144.5 | G62: 139.5 | H62: 147.25 | I62: 150-152 | J62: Profit of Rs.2.75/- | K62: =H62-F62 -> 2.75 | L62: =(F62*-0.07)/100 -> -0.10 | M62: =(K62+L62)/F62 -> 1.83% | N62: Successful | O62: 2021-09-21 | R62: H
A63: 24 | B63: 2021-09-22 | D63: GNFC | E63: Buy | F63: 395 | G63: 383 | H63: 405 | I63: 410-415 | J63: Profit of Rs.10/- | K63: 10 | L63: =(F63*-0.7)/100 -> -2.77 | M63: 1.83% | N63: Successful | O63: 2021-09-24 | R63: N
A64: 25 | B64: 2021-09-23 | D64: COLPAL | E64: Buy | F64: 1704-1710 | G64: 1670 | I64: 1760-1780 | J64: Open | R64: H
A65: 26 | B65: 2021-09-23 | D65: HDFCLIFE | E65: Buy | F65: 720-724 | G65: 699 | I65: 755-765 | J65: Open | R65: H
A66: 27 | B66: 2021-09-27 | D66: GLENMARK | E66: Buy | F66: 502 | G66: 487 | H66: 514.5 | I66: 530-540 | J66: Profit of Rs.12.5/- | K66: =H66-F66 -> 12.5 | L66: =(F66*-0.7)/100 -> -3.51 | M66: =(K66+L66)/F66 -> 1.79% | N66: Successful | O66: 2021-09-29 | R66: H
A67: 28 | B67: 2021-09-28 | D67: TATASTEEL | E67: Sell | F67: 1286 | G67: 1316 | H67: 1263 | I67: 1240-1220 | J67: Profit of Rs.23/- | K67: =F67-H67 -> 23 | L67: =(F67*-0.07)/100 -> -0.90 | M67: =(K67+L67)/F67 -> 1.72% | N67: Successful | O67: 2021-09-28 | R67: H
A68: 29 | B68: 2021-09-28 | D68: LAURUSLABS | E68: Buy | F68: 591-594 | G68: 575 | I68: 615-625 | J68: Open | R68: H
A74: CLBS = Closing Basis *** | H74: *
A75: Dividend adjusted <> | F75: Reinitiated $
F76: Revised stoploss #
A78: Master Trade High Risk
A79: Sr.no | B79: Date | D79: Company | E79: Rec | F79: Rec Price | G79: Stop Loss | H79: Call Closed At | I79: Target | J79: Remark | K79: Profit / Loss per share | L79: All charges | M79: Gain / Loss per Lot | N79: Lot | O79: Status | P79: Closed Date
A80: 1 | B80: 2021-08-31 | D80: TATACHEM SEP FUT | E80: Buy | F80: 847 | G80: 834 | H80: 855.5 | I80: 870 | J80: Profit of Rs.8.5/- | K80: =H80-F80 -> 8.5 | L80: =(H80*N80)*0.07% -> 598.85 | M80: =(K80*N80)-L80 -> 7901.2 | N80: 1000 | O80: Successful | P80: 2021-09-02 | R80: N
A81: 2 | B81: 2021-09-02 | D81: LT SEP FUT | E81: Sell | F81: 1703 | G81: 1724 | H81: 1689 | I81: 1660-1650 | J81: Profit of Rs.14/- | K81: =F81-H81 -> 14.00 | L81: 679.82 | M81: =(K81*N81)-L81 -> 7370.2 | N81: 575 | O81: Successful | P81: 2021-09-02 | R81: H
A82: 3 | B82: 2021-09-02 | D82: BATAINDIA SEP FUT | E82: Sell | F82: 1796 | G82: 1824 | H82: 1821 | I82: 1750 | J82: Loss of Rs.25/- | K82: =F82-H82 -> -25.00 | L82: =(H82*N82)*0.07% -> 701.09 | M82: =(K82*N82)-L82 -> -14451.1 | N82: 550 | O82: Unsuccessful | P82: 2021-09-02 | R82: H
A83: 4 | B83: 2021-09-02 | D83: NIFTY SEP FUT | E83: Sell | F83: 17155 | G83: 17340 | H83: 17340 | I83: 16900 | J83: Loss of Rs.185/- | K83: =F83-H83 -> -185.00 | L83: =(H83*N83)*0.07% -> 606.90 | M83: =(K83*N83)-L83 -> -9856.9 | N83: 50 | O83: Unsuccessful | P83: 2021-09-03 | R83: H
A84: 5 | B84: 2021-09-02 | D84: AARTIIND SEP FUT | E84: Buy | F84: 923.5 | G84: 907 | H84: 907 | I84: 945-955 | J84: Loss of Rs.16.5/- | K84: =H84-F84 -> -16.50 | L84: 539.67 | M84: -14564.7 | N84: 850 | O84: Unsuccessful | P84: 2021-09-07 | R84: N
A85: 6 | B85: 2021-09-06 | D85: LT SEP FUT | E85: Sell | F85: 1716 | G85: 1737 | H85: 1699 | I85: 1680-1670 | J85: Profit of Rs.17/- | K85: =F85-H85 -> 17.00 | L85: =(H85*N85)*0.07% -> 683.85 | M85: =(K85*N85)-L85 -> 9091.2 | N85: 575 | O85: Successful | P85: 2021-09-06 | R85: H
A86: 7 | B86: 2021-09-06 | D86: HDFCAMC SEP FUT | E86: Buy | F86: 3190 | G86: 3120 | H86: 3235 | I86: 3300-3330 | J86: Profit of Rs.45/- | K86: =H86-F86 -> 45.00 | L86: 452.90 | M86: 8547.1 | N86: 200 | O86: Successful | P86: 2021-09-08 | R86: N
A87: 8 | B87: 2021-09-06 | D87: SIEMENS SEP FUT | E87: Buy | F87: 2251.5 | G87: 2205 | H87: 2205 | I87: 2320-2340 | J87: Loss of Rs.46.5/- | K87: =H87-F87 -> -46.50 | L87: =(H87*N87)*0.07% -> 424.46 | M87: =(K87*N87)-L87 -> -13212.0 | N87: 275 | O87: Unsuccessful | P87: 2021-09-08 | R87: N
A88: 9 | B88: 2021-09-06 | D88: TATACHEM SEP FUT | E88: Buy | F88: 840 | G88: 827 | H88: 827 | I88: 865 | J88: Loss of Rs.13/- | K88: =H88-F88 -> -13.00 | L88: =(H88*N88)*0.07% -> 578.90 | M88: =(K88*N88)-L88 -> -13578.9 | N88: 1000 | O88: Unsuccessful | P88: 2021-09-07 | R88: N
A89: 10 | B89: 2021-09-07 | D89: TCS SEP FUT | E89: Sell | F89: 3848 | G89: 3890 | H89: 3812.5 | I89: 3770 | J89: Profit of Rs.35.5/- | K89: =F89-H89 -> 35.50 | L89: 800.63 | M89: 9849.4 | N89: 300 | O89: Successful | P89: 2021-09-08 | R89: H
A90: 11 | B90: 2021-09-08 | D90: ITC SEP FUT | E90: Buy | F90: 212.25 | G90: 209 | H90: 215 | I90: 218-220 | J90: Profit of Rs.2.75/- | K90: =H90-F90 -> 2.75 | L90: 481.60 | M90: 8318.4 | N90: 3200 | O90: Successful | P90: 2021-09-13 | R90: H
A91: 12 | B91: 2021-09-08 | D91: COLPAL SEP FUT | E91: Buy | F91: 1708 | G91: 1670 | H91: 1732 | I91: 1760-1780 | J91: Profit of Rs.24/- | K91: =H91-F91 -> 24.00 | L91: =(H91*N91)*0.07% -> 424.34 | M91: =(K91*N91)-L91 -> 7975.7 | N91: 350 | O91: Successful | P91: 2021-09-09 | R91: N
A92: 13 | B92: 2021-09-13 | D92: COLPAL SEP FUT | E92: Buy | F92: 1735 | G92: 1695 | H92: 1695 | I92: 1800-1820 | J92: Loss of Rs.40/- | K92: -40.00 | L92: 415.28 | M92: -14415.3 | N92: 350 | O92: Unsuccessful | P92: 2021-09-24 | R92: N
A93: 14 | B93: 2021-09-15 | D93: LT SEP FUT | E93: Sell | F93: 1705.5 | G93: 1730 | H93: 1722 | I93: 1670-1660 | J93: Loss of Rs.16.5/- | K93: =F93-H93 -> -16.50 | L93: =(H93*N93)*0.07% -> 693.11 | M93: =(K93*N93)-L93 -> -10180.6 | N93: 575 | O93: Unsuccessful | P93: 2021-09-15 | R93: H
A94: 15 | B94: 2021-09-15 | D94: INDUSINDBK SEP FUT | E94: Buy | F94: 1031.5 | G94: 1018 | H94: 1041.5 | I94: 1055-1060 | J94: Profit of Rs.10/- | K94: =H94-F94 -> 10.00 | L94: 656.15 | M94: 8343.9 | N94: 900 | O94: Successful | P94: 2021-09-15 | R94: H
A95: 16 | B95: 2021-09-15 | D95: HDFCBANK SEP FUT | E95: Buy | F95: 1546 | G95: 1522 | H95: 1571 | I95: 1580-1590 | J95: Profit of Rs.25/- | K95: =H95-F95 -> 25.00 | L95: =(H95*N95)*0.07% -> 604.84 | M95: =(K95*N95)-L95 -> 13145.2 | N95: 550 | O95: Successful | P95: 2021-09-17 | R95: H
A96: 17 | B96: 2021-09-17 | D96: AARTIIND SEP FUT | E96: Buy | F96: 946 | G96: 931 | H96: 931 | I96: 975 | J96: Loss of Rs.15/- | K96: -15.00 | L96: 553.95 | M96: -13303.9 | N96: 850 | O96: Unsuccessful | P96: 2021-09-17 | R96: N
A97: 18 | B97: 2021-09-23 | D97: HDFCAMC SEP FUT | E97: Buy | F97: 3245 | G97: 3180 | H97: 3180 | I97: 3300-3350 | J97: Loss of Rs.65/- | K97: =H97-F97 -> -65.00 | L97: =(H97*N97)*0.07% -> 445.20 | M97: =(K97*N97)-L97 -> -13445.2 | N97: 200 | O97: Unsuccessful | P97: 2021-09-27 | R97: N
A98: 19 | B98: 2021-09-23 | D98: NIFTY SEP FUT | E98: Buy | F98: 17830 | G98: 17740 | H98: 17895 | I98: 18000 | J98: Profit of Rs.65/- | K98: =H98-F98 -> 65.00 | L98: =(H98*N98)*0.07% -> 626.33 | M98: =(K98*N98)-L98 -> 2623.7 | N98: 50 | O98: Successful | P98: 2021-09-24 | R98: H
A99: 20 | B99: 2021-09-24 | D99: ICICIBANK SEP FUT | E99: Buy | F99: 721.5 | G99: 712 | H99: 728.5 | I99: 740 | J99: Profit of Rs.7/- | K99: 7.00 | L99: 803.17 | M99: 10221.8 | N99: 1575 | O99: Successful | P99: 2021-09-27 | R99: N
A100: 21 | B100: 2021-09-27 | D100: UPL SEP FUT | E100: Buy | F100: 732.5 | G100: 722 | H100: 722 | I100: 750-755 | J100: Loss of Rs.10.50/- | K100: -10.50 | L100: 606.48 | M100: -13206.5 | N100: 1200 | O100: Unsuccessful | P100: 2021-09-28 | R100: H
A101: 22 | B101: 2021-09-28 | D101: ITC SEP FUT | E101: Buy | F101: 240-241 | G101: 235 | I101: 250-252 | J101: Open | R101: H
A102: 23 | B102: 2021-09-28 | D102: ICICIBANK OCT FUT | E102: Sell | F102: 722 | G102: 734 | H102: 715 | I102: 700 | J102: Profit of Rs.7/- | K102: =F102-H102 -> 7.00 | L102: =(H102*N102)*0.07% -> 788.29 | M102: =(K102*N102)-L102 -> 10236.7 | N102: 1575 | O102: Successful | P102: 2021-09-28 | R102: H
A103: 24 | B103: 2021-09-28 | D103: SIEMENS OCT FUT | E103: Buy | F103: 2115 | G103: 2065 | H103: 2145 | I103: 2200 | J103: Profit of Rs.30/- | K103: =H103-F103 -> 30.00 | L103: =(H103*N103)*0.07% -> 412.91 | M103: =(K103*N103)-L103 -> 7837.1 | N103: 275 | O103: Successful | P103: 2021-09-29 | R103: N
A104: 25 | B104: 2021-09-29 | D104: IGL OCT FUT | E104: Buy | F104: 520-521 | G104: 510 | I104: 540 | J104: Open | R104: H
A112: Master Trade Medium Risk
A113: Sr.no | B113: Date | D113: Company | E113: Rec | F113: Rec Price | G113: Stop Loss | H113: Call Closed At | I113: Target | J113: Remark | K113: Profit/ Loss per lot | L113: All charges | M113: Gain / Loss per Lot | N113: Lot | O113: Status | P113: Closed Date
A114: 1 | B114: 2021-08-30 | D114: BANKNIFTY 36000 PE 2-SEP | E114: Buy | F114: 135 | G114: 0 | H114: 0 | I114: 250-300 | J114: Loss of Rs.135/- | K114: =H114-F114 -> -135.00 | L114: 100.00 | M114: =(K114*N114)-100 -> -3475 | N114: 25 | O114: Unsuccessful | P114: 2021-09-02 | R114: N
A115: 2 | B115: 2021-08-31 | D115: RELIANCE 2300 CE SEP | E115: Buy | F115: 38 | G115: 19 | H115: 45 | I115: 65-75 | J115: Profit of Rs.7/- | K115: =H115-F115 -> 7.00 | L115: 100.00 | M115: =(K115*N115)-100 -> 1650 | N115: 250 | O115: Successful | P115: 2021-09-01 | R115: N
A116: 3 | B116: 2021-08-31 | D116: NIFTY 17000 PE 2-SEP | E116: Buy | F116: 67.5 | G116: 20 | H116: 20 | I116: 120-130 | J116: Loss of Rs.47.5/- | K116: =H116-F116 -> -47.50 | L116: 100.00 | M116: =(K116*N116)-100 -> -2475 | N116: 50 | O116: Unsuccessful | P116: 2021-09-01 | R116: N
A117: 4 | B117: 2021-09-01 | D117: NIFTY 17500 CE 16-SEP | E117: Sell | F117: 86 | G117: 124 | H117: 62 | I117: 0.1 | J117: Profit of Rs.24/- | K117: =F117-H117 -> 24.00 | L117: 100.00 | M117: =(K117*N117)-100 -> 1100 | N117: 50 | O117: Successful | P117: 2021-09-01 | R117: H
A118: 5 | B118: 2021-09-01 | D118: NIFTY 17100 PE 2-SEP | E118: Buy | F118: 53.5 | G118: 14 | H118: 67.5 | I118: 100-110 | J118: Profit of Rs.14/- | K118: =H118-F118 -> 14.00 | L118: 100.00 | M118: 600 | N118: 50 | O118: Successful | P118: 2021-09-01 | R118: H
A119: 6 | B119: 2021-09-01 | D119: NIFTY 17100 PE 2-SEP | E119: Buy | F119: 50 | G119: 14 | H119: 67.5 | I119: 100-110 | J119: Profit of Rs.17.5/- | K119: 17.50 | L119: 100.00 | M119: 775 | N119: 50 | O119: Successful | P119: 2021-09-01 | R119: H
A120: 7 | B120: 2021-09-01 | D120: NIFTY 17150 PE 2-SEP | E120: Buy | F120: 63.5 | G120: 14 | H120: 80 | I120: 100-120 | J120: Profit of Rs.16.5/- | K120: 16.50 | L120: 100.00 | M120: 725 | N120: 50 | O120: Successful | P120: 2021-09-01 | R120: H
A121: 8 | B121: 2021-09-01 | D121: EXIDEIND 165 PE SEP | E121: Buy | F121: 3.45 | G121: 2 | H121: 2.35 | I121: 5.0-6.0 | J121: Loss of Rs.1.10/- | K121: -1.10 | L121: 100.00 | M121: -4060 | N121: 3600 | O121: Unsuccessful | P121: 2021-09-02 | R121: H
A122: 9 | B122: 2021-09-02 | D122: NIFTY 17150 PE 2-SEP | E122: Buy | F122: 56.5 | G122: 14 | H122: 69 | I122: 100-120 | J122: Profit of Rs.12.5/- | K122: =H122-F122 -> 12.50 | L122: 100.00 | M122: =(K122*N122)-100 -> 525 | N122: 50 | O122: Successful | P122: 2021-09-02 | R122: H
A123: 10 | B123: 2021-09-02 | D123: NIFTY 17200 PE 2-SEP | E123: Buy | F123: 47 | G123: 14 | H123: 14 | I123: 80-90 | J123: Loss of Rs.33/- | K123: -33.00 | L123: 100.00 | M123: -1750 | N123: 50 | O123: Unsuccessful | P123: 2021-09-02 | R123: H
A124: 11 | B124: 2021-09-02 | D124: HDFC 2700 PE SEP | E124: Buy | F124: 31 | G124: 15 | H124: 17 | I124: 50-60 | J124: Loss of Rs.14/- | K124: =H124-F124 -> -14.00 | L124: 100.00 | M124: =(K124*N124)-100 -> -4300 | N124: 300 | O124: Unsuccessful | P124: 2021-09-07 | R124: N
A125: 12 | B125: 2021-09-03 | D125: NIFTY 17500 CE 30-SEP | E125: Sell | F125: 127.5 | G125: 210 | H125: 100 | I125: 0.1 | J125: Profit of Rs.27.50/- | K125: =F125-H125 -> 27.50 | L125: 100.00 | M125: 1275 | N125: 50 | O125: Successful | P125: 2021-09-13 | R125: H
A126: 13 | B126: 2021-09-06 | D126: NIFTY 17300 PE 9-SEP | E126: Buy | F126: 61 | G126: 14 | H126: 75 | I126: 120-140 | J126: Profit of Rs.14/- | K126: =H126-F126 -> 14.00 | L126: 100.00 | M126: =(K126*N126)-100 -> 600 | N126: 50 | O126: Successful | P126: 2021-09-06 | R126: H
A127: 14 | B127: 2021-09-06 | D127: M&M 740 PE SEP | E127: Buy | F127: 15 | G127: 8 | H127: 18.15 | I127: 25-30 | J127: Profit of Rs.3.15/- | K127: =H127-F127 -> 3.15 | L127: 100.00 | M127: =(K127*N127)-100 -> 2105 | N127: 700 | O127: Successful | P127: 2021-09-13 | R127: H
A128: 15 | B128: 2021-09-06 | D128: INFY 1760 CE SEP | E128: Sell | F128: 18 | G128: 26 | H128: 25.5 | I128: 0.1 | J128: Loss of Rs.7.50/- | K128: =F128-H128 -> -7.50 | L128: 100.00 | M128: =(K128*N128)-100 -> -4600 | N128: 600 | O128: Unsuccessful | P128: 2021-09-06 | R128: H
A129: 16 | B129: 2021-09-06 | D129: NIFTY 17300 PE 9-SEP | E129: Buy | F129: 59.5 | G129: 14 | H129: 70 | I129: 120-140 | J129: Profit of Rs.10.5/- | K129: =H129-F129 -> 10.50 | L129: 100.00 | M129: 425 | N129: 50 | O129: Successful | P129: 2021-09-07 | R129: H
A130: 17 | B130: 2021-09-07 | D130: BANKNIFTY 36500 CE 16-SEP | E130: Buy | F130: 310 | G130: 130 | H130: 365 | I130: 650 | J130: Profit of Rs.55/- | K130: =H130-F130 -> 55.00 | L130: 100.00 | M130: =(K130*N130)-100 -> 1275 | N130: 25 | O130: Successful | P130: 2021-09-07 | R130: H
A131: 18 | B131: 2021-09-07 | D131: RELIANCE 2400 PE SEP | E131: Buy | F131: 47 | G131: 27 | H131: 52 | I131: 70-75 | J131: Profit of Rs.5/- | K131: 5.00 | L131: 100.00 | M131: 1150 | N131: 250 | O131: Successful | P131: 2021-09-08 | R131: H
A132: 19 | B132: 2021-09-07 | D132: NIFTY 17300 PE 9-SEP | E132: Buy | F132: 55 | G132: 14 | H132: 72 | I132: 120-140 | J132: Profit of Rs.17/- | K132: 17.00 | L132: 100.00 | M132: 750 | N132: 50 | O132: Successful | P132: 2021-09-08 | R132: H
A133: 20 | B133: 2021-09-08 | D133: KOTAKBANK 1840 CE SEP | E133: Buy | F133: 39 | G133: 27 | H133: 45 | I133: 55-60 | J133: Profit of Rs.6/- | K133: =H133-F133 -> 6.00 | L133: 100.00 | M133: =(K133*N133)-100 -> 2300 | N133: 400 | O133: Successful | P133: 2021-09-09 | R133: H
A134: 21 | B134: 2021-09-09 | D134: NIFTY 17350 PE 9-SEP | E134: Buy | F134: 40 | H134: 52 | I134: 100 | J134: Profit of Rs.12/- | K134: =H134-F134 -> 12.00 | L134: 100.00 | M134: =(K134*N134)-100 -> 500 | N134: 50 | O134: Successful | P134: 2021-09-09 | R134: H
A135: 22 | B135: 2021-09-09 | D135: BANKNIFTY 36700 PE 9-SEP | E135: Buy | F135: 72.5 | H135: 115 | I135: 150 | J135: Profit of Rs.42.50/- | K135: =H135-F135 -> 42.50 | L135: 100.00 | M135: =(K135*N135)-100 -> 962.5 | N135: 25 | O135: Successful | P135: 2021-09-09 | R135: N
A136: 23 | B136: 2021-09-09 | D136: NIFTY 17350 PE 9-SEP | E136: Buy | F136: 40 | H136: 51 | I136: 100 | J136: Profit of Rs.11/- | K136: =H136-F136 -> 11.00 | L136: 100.00 | M136: =(K136*N136)-100 -> 450 | N136: 50 | O136: Successful | P136: 2021-09-09 | R136: H
A137: 24 | B137: 2021-09-09 | D137: BANKNIFTY 36700 PE 9-SEP | E137: Buy | F137: 32.5 | H137: 52.5 | I137: 80 | J137: Profit of Rs.20/- | K137: 20.00 | L137: 100.00 | M137: 400 | N137: 25 | O137: Successful | P137: 2021-09-09 | R137: N
A138: 25 | B138: 2021-09-09 | D138: NIFTY 17350 PE 9-SEP | E138: Buy | F138: 26.5 | H138: 13.5 | I138: 70 | J138: Loss of Rs.13/- | K138: =H138-F138 -> -13.00 | L138: 100.00 | M138: =(K138*N138)-100 -> -750 | N138: 50 | O138: Unsuccessful | P138: 2021-09-09 | R138: H
A139: 26 | B139: 2021-09-09 | D139: KOTAKBANK 1840 CE SEP | E139: Buy | F139: 34 | G139: 19 | H139: 42 | I139: 55 | J139: Profit of Rs.8/- | K139: 8.00 | L139: 100.00 | M139: 3100 | N139: 400 | O139: Successful | P139: 2021-09-13 | R139: H
A140: 27 | B140: 2021-09-13 | D140: BALKRISIND 2400 PE SEP | E140: Buy | F140: 38 | G140: 25 | H140: 25 | I140: 65-70 | J140: Loss of Rs.13/- | K140: =H140-F140 -> -13.00 | L140: 100.00 | M140: =(K140*N140)-100 -> -5300 | N140: 400 | O140: Unsuccessful | P140: 2021-09-14 | R140: H
A141: 28 | B141: 2021-09-13 | D141: ICICIGI 1700 CE SEP | E141: Buy | F141: 25.5 | G141: 15 | H141: 15 | I141: 40-50 | J141: Loss of Rs.10.50/- | K141: -10.50 | L141: 100.00 | M141: -4300 | N141: 400 | O141: Unsuccessful | P141: 2021-09-14 | R141: N
A142: 29 | B142: 2021-09-13 | D142: NIFTY 17300 PE 16-SEP | E142: Buy | F142: 56 | G142: 17 | H142: 17 | I142: 110-120 | J142: Loss of Rs.39/- | K142: -39.00 | L142: 100.00 | M142: -2050 | N142: 50 | O142: Unsuccessful | P142: 2021-09-15 | R142: H
A143: 30 | B143: 2021-09-14 | D143: NIFTY 17500 CE 30-SEP | E143: Sell | F143: 124 | G143: 210 | H143: 108 | I143: 0.1 | J143: Profit of Rs.16/- | K143: =F143-H143 -> 16.00 | L143: 100.00 | M143: =(K143*N143)-100 -> 700 | N143: 50 | O143: Successful | P143: 2021-09-14 | R143: H
A144: 31 | B144: 2021-09-14 | D144: LT 1700 CE SEP | E144: Buy | F144: 27 | G144: 18 | H144: 31 | I144: 40-42 | J144: Profit of Rs.4/- | K144: =H144-F144 -> 4.00 | L144: 100.00 | M144: 2200 | N144: 575 | O144: Successful | P144: 2021-09-14 | R144: N
A145: 32 | B145: 2021-09-14 | D145: BANKNIFTY 36600 PE 16-SEP | E145: Buy | F145: 155 | G145: 60 | H145: 215 | I145: 300-350 | J145: Profit of Rs.60/- | K145: =H145-F145 -> 60.00 | L145: 100.00 | M145: =(K145*N145)-100 -> 1400 | N145: 25 | O145: Successful | P145: 2021-09-14 | R145: H
A146: 33 | B146: 2021-09-14 | D146: M&MFIN 185 CE SEP | E146: Sell | F146: 1.55 | G146: 2.7 | H146: 2.7 | I146: 0.1 | J146: Loss of Rs.1.15/- | K146: =F146-H146 -> -1.15 | L146: 100.00 | M146: -4700 | N146: 4000 | O146: Unsuccessful | P146: 2021-09-16 | R146: N
A147: 34 | B147: 2021-09-15 | D147: BANKNIFTY 36600 PE 16-SEP | E147: Buy | F147: 135 | G147: 30 | H147: 47.5 | I147: 300 | J147: Loss of Rs.87.50/- | K147: =H147-F147 -> -87.50 | L147: 100.00 | M147: =(K147*N147)-100 -> -2287.5 | N147: 25 | O147: Unsuccessful | P147: 2021-09-15 | R147: N
A148: 35 | B148: 2021-09-15 | D148: HDFCAMC 3300 CE SEP | E148: Buy | F148: 84 | G148: 60 | H148: 95 | I148: 120 | J148: Profit of Rs.11/- | K148: 11.00 | L148: 100.00 | M148: 2100 | N148: 200 | O148: Successful | P148: 2021-09-15 | R148: N
A149: 36 | B149: 2021-09-15 | D149: NIFTY 17600 CE 30-SEP | E149: Sell | F149: 99.5 | G149: 170 | H149: 170 | I149: 0.1 | J149: Loss of Rs.70.50/- | K149: =F149-H149 -> -70.50 | L149: 100.00 | M149: -3625 | N149: 50 | O149: Unsuccessful | P149: 2021-09-16 | R149: H
A150: 37 | B150: 2021-09-15 | D150: HINDUNILVR 2780 CE SEP | E150: Buy | F150: 45.5 | G150: 30 | H150: 54.5 | I150: 70-75 | J150: Profit of Rs.8/- | K150: =H150-F150 -> 9.00 | L150: 100.00 | M150: 2600 | N150: 300 | O150: Successful | P150: 2021-09-16 | R150: N
A151: 38 | B151: 2021-09-16 | D151: HDFCBANK 1560 CE SEP | E151: Buy | F151: 25 | G151: 16 | H151: 31 | I151: 40-44 | J151: Profit of Rs.6/- | K151: =H151-F151 -> 6.00 | L151: 100.00 | M151: =(K151*N151)-100 -> 3200 | N151: 550 | O151: Successful | P151: 2021-09-16 | R151: N
A152: 39 | B152: 2021-09-16 | D152: NIFTY 17600 PE 16-SEP | E152: Buy | F152: 35 | H152: 0 | I152: 80 | J152: Loss of Rs.35/- | K152: =H152-F152 -> -35.00 | L152: 100.00 | M152: =(K152*N152)-100 -> -1850 | N152: 50 | O152: Unsuccessful | P152: 2021-09-16 | R152: N
A153: 40 | B153: 2021-09-16 | D153: BANKNIFTY 37600 CE 23-SEP | E153: Buy | F153: 385 | G153: 199 | H153: 460 | I153: 700-800 | J153: Profit of Rs.80 | K153: =H153-F153 -> 75.00 | L153: 100.00 | M153: =(80*25)-200 -> 1800 | N153: 25 | O153: Successful | P153: 2021-09-16 | R153: H
D154: BANKNIFTY 37600 CE 16-SEP | E154: Sell | F154: 50 | H154: 45 | K154: =F154-H154 -> 5.00 | L154: 100.00 | R154: H
A155: 41 | B155: 2021-09-16 | D155: HINDUNILVR 2780 CE SEP | E155: Buy | F155: 45.5 | G155: 30 | H155: 30 | I155: 70-75 | J155: Loss of Rs.15.5/- | K155: =H155-F155 -> -15.50 | L155: 100.00 | M155: =(K155*N155)-100 -> -4750 | N155: 300 | O155: Unsuccessful | P155: 2021-09-17 | R155: N
A156: 42 | B156: 2021-09-16 | D156: BANKNIFTY 37700 CE 23-SEP | E156: Buy | F156: 420 | G156: 290 | H156: 600 | I156: 600 | J156: Profit of Rs.180/- | K156: =H156-F156 -> 180.00 | L156: 100.00 | M156: =(K156*N156)-100 -> 4400 | N156: 25 | O156: Successful | P156: 2021-09-17 | R156: H
A157: 43 | B157: 2021-09-17 | D157: BANKNIFTY 37700 CE 23-SEP | E157: Buy | F157: 440 | G157: 290 | H157: 500 | I157: 650 | J157: Profit of Rs.60/- | K157: 60.00 | L157: 100.00 | M157: 1400 | N157: 25 | O157: Successful | P157: 2021-09-17 | R157: H
A158: 44 | B158: 2021-09-17 | D158: HDFCAMC 3300 CE SEP | E158: Buy | F158: 76 | G158: 50 | H158: 86 | I158: 120 | J158: Profit of Rs.10/- | K158: =H158-F158 -> 10.00 | L158: 100.00 | M158: =(K158*N158)-100 -> 1900 | N158: 200 | O158: Successful | P158: 2021-09-17 | R158: N
A159: 45 | B159: 2021-09-17 | D159: BANKNIFTY 37700 CE 23-SEP | E159: Buy | F159: 290 | G159: 180 | H159: 350 | I159: 450-500 | J159: Profit of Rs.60/- | K159: 60.00 | L159: 100.00 | M159: 1400 | N159: 25 | O159: Successful | P159: 2021-09-17 | R159: H
A160: 46 | B160: 2021-09-17 | D160: NIFTY 17700 CE 30-SEP | E160: Sell | F160: 125 | G160: 210 | H160: 65 | I160: 0.1 | J160: Profit of Rs.60/- | K160: =F160-H160 -> 60.00 | L160: 100.00 | M160: 2900 | N160: 50 | O160: Successful | P160: 2021-09-20 | R160: H
A161: 47 | B161: 2021-09-20 | D161: NIFTY 17400 PE 23-SEP | E161: Buy | F161: 66 | G161: 17 | H161: 79 | I161: 130 | J161: Profit of Rs.13/- | K161: =H161-F161 -> 13.00 | L161: 100.00 | M161: 550 | N161: 50 | O161: Successful | P161: 2021-09-20 | R161: H
A162: 48 | B162: 2021-09-20 | D162: HDFCAMC 3300 CE SEP | E162: Buy | F162: 57.5 | G162: 25 | H162: 74.5 | I162: 100 | J162: Profit of Rs.17/- | K162: =H162-F162 -> 17.00 | L162: 100.00 | M162: =(K162*N162)-100 -> 3300 | N162: 200 | O162: Successful | P162: 2021-09-20 | R162: N
A163: 49 | B163: 2021-09-20 | D163: HDFCBANK 1580 CE SEP | E163: Buy | F163: 21 | G163: 12 | H163: 26 | I163: 35-50 | J163: Profit of Rs.5/- | K163: =H163-F163 -> 5.00 | L163: 100.00 | M163: =(K163*N163)-100 -> 2650 | N163: 550 | O163: Successful | P163: 2021-09-20 | R163: N
A164: 50 | B164: 2021-09-20 | D164: NIFTY 17700 CE 30-SEP | E164: Sell | F164: 115 | G164: 202 | H164: 94 | I164: 0.1 | J164: Profit of Rs.21/- | K164: =F164-H164 -> 21.00 | L164: 100.00 | M164: =(K164*N164)-100 -> 950 | N164: 50 | O164: Successful | P164: 2021-09-20 | R164: H
A165: 51 | B165: 2021-09-20 | D165: HDFCAMC 3300 CE SEP | E165: Buy | F165: 54 | G165: 28 | H165: 65 | I165: 100 | J165: Profit of Rs.11/- | K165: =H165-F165 -> 11.00 | L165: 100.00 | M165: 2100 | N165: 200 | O165: Successful | P165: 2021-09-23 | R165: N
A166: 52 | B166: 2021-09-21 | D166: LT 1700 PE SEP | E166: Buy | F166: 23 | G166: 14 | H166: 28.5 | I166: 35-40 | J166: Profit of Rs.5.50/- | K166: =H166-F166 -> 5.50 | L166: 100.00 | M166: =(K166*N166)-100 -> 3062.5 | N166: 575 | O166: Successful | P166: 2021-09-21 | R166: N
A167: 53 | B167: 2021-09-21 | D167: HDFCBANK 1560 CE SEP | E167: Buy | F167: 16.5 | G167: 7 | H167: 21 | I167: 30-35 | J167: Profit of Rs.4.5/- | K167: 4.50 | L167: 100.00 | M167: 2375 | N167: 550 | O167: Successful | P167: 2021-09-23 | R167: N
A168: 54 | B168: 2021-09-21 | D168: LT 1700 PE SEP | E168: Buy | F168: 20 | G168: 12 | H168: 13 | I168: 35-40 | J168: Loss of Rs.7/- | K168: =H168-F168 -> -7.00 | L168: 100.00 | M168: =(K168*N168)-100 -> -4125 | N168: 575 | O168: Unsuccessful | P168: 2021-09-22 | R168: H
A169: 55 | B169: 2021-09-21 | D169: NIFTY 17400 PE 23-SEP | E169: Buy | F169: 72.5 | G169: 19 | H169: 19 | I169: 130-150 | J169: Loss of Rs.53.5/- | K169: =H169-F169 -> -53.50 | L169: 100.00 | M169: =(K169*N169)-100 -> -2775 | N169: 50 | O169: Unsuccessful | P169: 2021-09-22 | R169: H
A170: 56 | B170: 2021-09-21 | D170: HINDUNILVR 2820 CE SEP | E170: Buy | F170: 39.5 | G170: 25 | H170: 51 | I170: 70-75 | J170: Profit of Rs.11.50/- | K170: =H170-F170 -> 11.50 | L170: 100.00 | M170: =(K170*N170)-100 -> 3350 | N170: 300 | O170: Successful | P170: 2021-09-22 | R170: N
A171: 57 | B171: 2021-09-21 | D171: ITC 245 CE SEP | E171: Buy | F171: 5.15 | G171: 3.6 | H171: 6.1 | I171: 7.0-8.0 | J171: Profit of Rs.0.95/- | K171: =H171-F171 -> 0.95 | L171: 100.00 | M171: =(K171*N171)-100 -> 2940 | N171: 3200 | O171: Successful | P171: 2021-09-22 | R171: H
A172: 58 | B172: 2021-09-21 | D172: HDFC 2800 CE SEP | E172: Buy | F172: 34.5 | G172: 19 | H172: 39.5 | I172: 60-65 | J172: Profit of Rs.5/- | K172: 5.00 | L172: 100.00 | M172: 1400 | N172: 300 | O172: Successful | P172: 2021-09-23 | R172: H
A173: 59 | B173: 2021-09-22 | D173: HINDUNILVR 2800 CE SEP | E173: Buy | F173: 37 | G173: 20 | H173: 45.5 | I173: 70 | J173: Profit of Rs.8.5/- | K173: =H173-F173 -> 8.50 | L173: 100.00 | M173: =(K173*N173)-100 -> 2450 | N173: 300 | O173: Successful | P173: 2021-09-23 | R173: N
A174: 60 | B174: 2021-09-22 | D174: BANKNIFTY 37100 PE 30-SEP | E174: Buy | F174: 455 | G174: 110 | H174: 110 | I174: 700-800 | J174: Loss of Rs. 170/- | K174: =H174-F174 -> -345.00 | L174: 100.00 | M174: -4450 | N174: 25 | O174: Unsuccessful | P174: 2021-09-24 | R174: N
D175: BANKNIFTY 37000 PE 23-SEP | E175: Sell | F175: 175 | H175: 0 | K175: 175.00 | L175: 100.00
A176: 61 | B176: 2021-09-23 | D176: NIFTY 17650 PE 23-SEP | E176: Buy | F176: 36 | G176: 7 | H176: 7 | I176: 60-70 | J176: Loss of Rs.29/- | K176: =H176-F176 -> -29.00 | L176: 100.00 | M176: =(K176*N176)-100 -> -1550 | N176: 50 | O176: Unsuccessful | P176: 2021-09-23 | R176: H
A177: 62 | B177: 2021-09-23 | D177: NIFTY 17800 CE 30-SEP | E177: Sell | F177: 95 | G177: 175 | H177: 152.5 | I177: 0.1 | J177: Loss of Rs.57.50/- | K177: =F177-H177 -> -57.50 | L177: 100.00 | M177: -2975 | N177: 50 | O177: Unsuccessful | P177: 2021-09-23 | R177: H
A178: 63 | B178: 2021-09-23 | D178: HINDUNILVR 2800 CE SEP | E178: Buy | F178: 35 | G178: 18 | H178: 18 | I178: 70 | J178: Loss of Rs.17/- | K178: =H178-F178 -> -17.00 | L178: 100.00 | M178: =(K178*N178)-100 -> -5200 | N178: 300 | O178: Unsuccessful | P178: 2021-09-24 | R178: N
A179: 64 | B179: 2021-09-23 | D179: HDFCAMC 3300 CE SEP | E179: Buy | F179: 61 | G179: 35 | H179: 35 | I179: 100-110 | J179: Loss of Rs.26/- | K179: =H179-F179 -> -26.00 | L179: 100.00 | M179: =(K179*N179)-100 -> -5300 | N179: 200 | O179: Unsuccessful | P179: 2021-09-27 | R179: N
A180: 65 | B180: 2021-09-23 | D180: SBIN 450 CE SEP | E180: Buy | F180: 7.25 | G180: 4.7 | H180: 4.7 | I180: 11-12.0 | J180: Loss of Rs.2.25/- | K180: =H180-F180 -> -2.55 | L180: 100.00 | M180: =(K180*N180)-100 -> -3925 | N180: 1500 | O180: Unsuccessful | P180: 2021-09-24 | R180: H
A181: 66 | B181: 2021-09-24 | D181: NIFTY 17800 PE SEP | E181: Buy | F181: 96 | G181: 50 | H181: 113.5 | I181: 150-180 | J181: Profit of Rs.17.5/- | K181: =H181-F181 -> 17.50 | L181: 100.00 | M181: =(K181*N181)-100 -> 775 | N181: 50 | O181: Successful | P181: 2021-09-24 | R181: N
A182: 67 | B182: 2021-09-28 | D182: BANKNIFTY 37300 PE 07-OCT | E182: Buy | F182: 375-385 | G182: 40 | I182: 700-800 | J182: Open | R182: H
D183: BANKNIFTY 37300 PE 30-SEP | E183: Sell | F183: 135-145
A184: 68 | B184: 2021-09-29 | D184: HDFCAMC 2900 CE SEP | E184: Buy | F184: 40 | G184: 18 | H184: 50 | I184: 70-75 | J184: Profit of Rs.10/- | K184: =H184-F184 -> 10.00 | L184: 100.00 | M184: =(K184*N184)-100 -> 1900 | N184: 200 | O184: Successful | P184: 2021-09-29 | R184: H
A185: 69 | B185: 2021-09-29 | D185: HDFCBANK 1600 CE SEP | E185: Buy | F185: 10-11.0 | G185: 2 | I185: 20-22 | J185: Open | R185: N
A186: 70 | B186: 2021-09-29 | D186: NIFTY 17750 PE SEP | E186: Buy | F186: 54 | G186: 14 | H186: 72.5 | I186: 100-120 | J186: Profit of Rs.18.5/- | K186: =H186-F186 -> 18.50 | L186: 100.00 | M186: =(K186*N186)-100 -> 825 | N186: 50 | O186: Successful | P186: 2021-09-29 | R186: H
A192: Techno -Funda (positional)
A193: Sr.no | B193: Date | D193: Company | E193: Rec | F193: Rec Price | G193: Stop Loss*** | H193: Call Closed At | I193: Target | J193: Remark | K193: Profit / Loss per Share/Lot | L193: All charges | M193: Net Gain / Loss % | N193: Status | O193: Closed Date | P193: Market Closing Price
A194: 1 | B194: 2021-08-12 | D194: SHARDACROP | E194: Buy | F194: 314 | G194: 284 | H194: 343.50 | I194: 380-390 | J194: Part profit of Rs.29.5/- | K194: =H194-F194 -> 29.5 | L194: =(F194*-0.7)/100 -> -2.20 | M194: =(K194+L194)/F194 -> 8.69% | N194: Successful | O194: 2021-09-16 | P194: =VLOOKUP(D194,'MidCap Intra'!B170:C670,2,0) -> 327.5 | R194: H
A196: CLBS = Closing Basis *** | F196: Reinitiated $
A197: Dividend adjusted <> | F197: Revised stoploss # | H197: .................
B199: Intrday Call
A200: Sr.no | B200: Date | D200: Company | E200: Rec | F200: Rec Price | G200: Stop Loss | H200: Call Closed At | I200: Target | J200: Remark | K200: Profit / Loss per Share/Lot | L200: Gain / Loss per Lot | M200: Lot | N200: All charges | O200: Net Gain / Loss % | P200: Status | Q200: Closed Date
B213: Investment Idea
A214: Sr.no | B214: Date | D214: Company | E214: Rec | F214: Rec Price | G214: Point of Review | H214: Close Rate | I214: Target | J214: Remark | K214: Profit / Loss per Share | L214: Gain / Loss % | M214: Status | N214: Closed Date
A215: 1 | B215: 2013-11-01 | D215: L&T Finance Holding | E215: Accu | F215: 82.00 | G215: - | H215: 100 | I215: 100.00 | J215: Target Achieved | K215: =H215-F215 -> 18.00 | L215: =K215/F215 -> 21.95% | M215: Successful | N215: 2016-10-14
A216: 2 | B216: 2014-06-04 | D216: Finolex Inds | E216: Buy | F216: 257.00 | G216: - | H216: 300 | I216: 300.00 | J216: Target Achieved | K216: 43.00 | L216: 16.73% | M216: Successful | N216: 2014-07-02
A217: 3 | B217: 2014-07-08 | D217: JK Cement | E217: Buy | F217: 393.00 | G217: - | H217: 468 | I217: 468.00 | J217: Target Achieved | K217: 75.00 | L217: 19.08% | M217: Successful | N217: 2014-08-12
A218: 4 | B218: 2014-08-06 | D218: Finolex Cables | E218: Buy | F218: 205.00 | G218: - | H218: 275 | I218: 250.00 | J218: Target Achieved | K218: 70.00 | L218: 34.15% | M218: Successful | N218: 2014-11-19
A219: 5 | B219: 2014-09-04 | D219: Exide Inds | E219: Buy | F219: 162.00 | G219: - | H219: 190 | I219: 190.00 | J219: Target Achieved | K219: 28.00 | L219: 17.28% | M219: Successful | N219: 2015-01-02
A220: 6 | B220: 2014-09-04 | D220: Deepak Nitrite | E220: Buy | F220: 75.00 | G220: - | H220: 91.5 | I220: 95-100 | J220: Profit of Rs.16.50/- | K220: 16.50 | L220: 22.00% | M220: Successful | N220: 2014-11-11
A221: 7 | B221: 2014-10-01 | D221: Mercks | E221: Buy | F221: 850.00 | G221: - | H221: 982.5 | I221: 1050.00 | J221: Profit of Rs.132.50/- | K221: 132.50 | L221: 15.59% | M221: Successful | N221: 2015-02-04
A222: 8 | B222: 2014-10-01 | D222: Grindwell Norton | E222: Buy | F222: 475.00 | G222: - | H222: 515 | I222: 600.00 | J222: Profit of Rs.40/- | K222: 40.00 | L222: 8.42% | M222: Successful | N222: 2014-10-27
A223: 9 | B223: 2014-10-01 | D223: Snowman Logistics | E223: Buy | F223: 86.00 | G223: - | H223: 99 | I223: 140.00 | J223: Profit of Rs.13.00/- | K223: 13.00 | L223: 15.12% | M223: Successful | N223: 2014-10-27
A224: 10 | B224: 2014-10-14 | D224: Birla Corp | E224: Buy | F224: 496.60 | G224: - | H224: 621 | I224: 580.00 | J224: Target Achieved | K224: 124.40 | L224: 25.05% | M224: Successful | N224: 2016-08-23
A225: 11 | B225: 2014-10-14 | D225: Ultratech Cem | E225: Buy | F225: 2481.90 | G225: - | H225: 2840 | I225: 2870.00 | J225: Profit of Rs.358.10/- | K225: 358.10 | L225: 14.43% | M225: Successful | N225: 2015-01-13
A226: 12 | B226: 2014-10-16 | D226: Sintex Inds | E226: Buy | F226: 84.50 | G226: - | H226: 93 | I226: 110.00 | J226: Profit of Rs.8.50/- | K226: 8.50 | L226: 10.06% | M226: Successful | N226: 2014-10-27
A227: 13 | B227: 2014-10-16 | D227: HSIL | E227: Buy | F227: 401.00 | G227: - | H227: 428 | I227: 450.00 | J227: Profit of Rs.27.00/- | K227: 27.00 | L227: 6.73% | M227: Successful | N227: 2015-01-16
A228: 14 | B228: 2014-10-16 | D228: Eveready Inds | E228: Buy | F228: 101.00 | G228: - | H228: 112 | I228: 120.00 | J228: Profit of Rs.11.00/- | K228: 11.00 | L228: 10.89% | M228: Successful | N228: 2014-10-27
A229: 15 | B229: 2014-11-11 | D229: Pennar Inds | E229: Buy | F229: 59.00 | G229: - | H229: 76 | I229: 76.00 | J229: Target Achieved | K229: 17.00 | L229: 28.81% | M229: Successful | N229: 2017-10-24
A230: 16 | B230: 2014-11-11 | D230: Snowman Logistics | E230: Buy | F230: 99.00 | G230: - | H230: 120 | I230: 120.00 | J230: Profit of Rs.21/- | K230: 21.00 | L230: 21.21% | M230: Successful | N230: 2014-11-17
A231: 17 | B231: 2014-11-13 | D231: Dharamsi Morarji Chem | E231: Buy | F231: 22.00 | G231: - | H231: 33.55 | I231: 32.00 | J231: Profit of Rs 11.55/- | K231: 11.55 | L231: 52.50% | M231: Successful | N231: 2015-07-03
A232: 18 | B232: 2014-12-03 | D232: Tatachem | E232: Buy | F232: 440.00 | G232: - | H232: 520 | I232: 520.00 | J232: Profit of Rs 80.00/- | K232: 80.00 | L232: 18.18% | M232: Successful | N232: 2015-07-23
A233: 19 | B233: 2014-12-03 | D233: Advanta | E233: Buy | F233: 360.00 | G233: - | H233: 427 | I233: 425.00 | J233: Profit of Rs.67.00/- | K233: 67.00 | L233: 18.61% | M233: Successful | N233: 2015-02-23
A234: 20 | B234: 2015-01-08 | D234: GDL | E234: Buy | F234: 360.00 | G234: - | H234: 455 | I234: 420.00 | J234: Profit of Rs.95.00/- | K234: 95.00 | L234: 26.39% | M234: Successful | N234: 2015-01-20
A235: 21 | B235: 2015-01-08 | D235: NRB Bearing | E235: Buy | F235: 130.00 | H235: 175.5 | I235: 165.00 | J235: Profit of Rs 45.50/- | K235: 45.50 | L235: 35.00% | M235: Successful | N235: 2017-12-19
A236: 22 | B236: 2015-02-05 | D236: GSFC | E236: Accu | F236: 98.00 | H236: 120 | I236: 120.00 | J236: Target Achieved | K236: 22.00 | L236: 22.45% | M236: Successful | N236: 2017-01-18
A237: 23 | B237: 2015-02-05 | D237: Sundrmfast | E237: Accu | F237: 196.00 | H237: 262 | I237: 255.00 | J237: Target Achieved | K237: 66.00 | L237: 33.67% | M237: Successful | N237: 2016-08-17
A238: 24 | B238: 2015-03-04 | D238: GPPL | E238: Accu | F238: 235 | H238: 77.00 | I238: 280-285 | J238: Loss of Rs.158/- | K238: -158.00 | L238: -67.23% | M238: Unsuccessful | N238: 2019-02-26
A239: 25 | B239: 2015-03-04 | D239: ORIENTCEM | E239: Accu | F239: 185.00 | H239: 224 | I239: 220-225 | J239: Target Achieved | K239: 39.00 | L239: 21.08% | M239: Successful | N239: 2016-10-04
A240: 26 | B240: 2015-03-27 | D240: PFS | E240: Accu | F240: 49.5 | H240: 15.85 | I240: 67.00 | J240: Loss of Rs.33.65/- | K240: -33.65 | L240: -68% | M240: Unsuccessful | N240: 2019-06-11
A241: 27 | B241: 2015-03-30 | D241: Walchandnagar Ind Ltd | E241: Accu | F241: 183.50 | H241: 219 | I241: 218.00 | J241: Profit of Rs.35.50/- | K241: 35.50 | L241: 19.35% | M241: Successful | N241: 2015-04-09
A242: 28 | B242: 2015-04-20 | D242: Kalpataru Power Transmission Ltd | E242: Accu | F242: =(227+237)/2 -> 232.00 | H242: 298 | I242: 298.00 | J242: Target Achieved | K242: 66.00 | L242: 28.45% | M242: Successful | N242: 2017-03-29
... 142 more rows
